﻿Body Name,Body,Service Area Categorisation,Service Division Categorisation,Responsible Unit,Expenses Type,Detailed Expenses Type,Payment Date,Transaction Number,Payment Amount,Supplier Type,Supplier Name,Supplier Id
Portsmouth City Council,PCC,Housing Revenue Account,Supervision and Management,"Housing, Neighbourhood and Building Services",Premises-Related Expenditure,Rates,25-Jul-22,6652225,"1,198.00",OTHER LOCAL AUTHORITY,HAVANT BOROUGH COUNCIL,300000020457057
Portsmouth City Council,PCC,Housing Revenue Account,Special Services,"Housing, Neighbourhood and Building Services",Premises-Related Expenditure,Rates,25-Jul-22,6652225,182,OTHER LOCAL AUTHORITY,HAVANT BOROUGH COUNCIL,300000020457057
Portsmouth City Council,PCC,Housing Revenue Account,Special Services,"Housing, Neighbourhood and Building Services",Premises-Related Expenditure,Rates,25-Jul-22,6652225,51,OTHER LOCAL AUTHORITY,HAVANT BOROUGH COUNCIL,300000020457057
Portsmouth City Council,PCC,Housing Revenue Account,Supervision and Management,"Housing, Neighbourhood and Building Services",Premises-Related Expenditure,Rates,25-Jul-22,6652225,"3,174.00",OTHER LOCAL AUTHORITY,HAVANT BOROUGH COUNCIL,300000020457057
Portsmouth City Council,PCC,Housing Revenue Account,Special Services,"Housing, Neighbourhood and Building Services",Premises-Related Expenditure,Rates,25-Jul-22,6652225,394,OTHER LOCAL AUTHORITY,HAVANT BOROUGH COUNCIL,300000020457057
Portsmouth City Council,PCC,Housing Revenue Account,Special Services,"Housing, Neighbourhood and Building Services",Premises-Related Expenditure,Rates,25-Jul-22,6652225,254,OTHER LOCAL AUTHORITY,HAVANT BOROUGH COUNCIL,300000020457057
Portsmouth City Council,PCC,Housing Revenue Account,Special Services,"Housing, Neighbourhood and Building Services",Premises-Related Expenditure,Rates,25-Jul-22,6652225,52,OTHER LOCAL AUTHORITY,HAVANT BOROUGH COUNCIL,300000020457057
Portsmouth City Council,PCC,Housing Services,Homelessness,"Housing, Neighbourhood and Building Services",Premises-Related Expenditure,Rents,01-Jul-22,6645314,"6,000.00",SUPPLIER,K H PROPERTY INVESTMENT LIMITED,300000020467836
Portsmouth City Council,PCC,Housing Revenue Account,"Rents, Rates, Taxes and Other Charges","Housing, Neighbourhood and Building Services",Premises-Related Expenditure,Rates,25-Jul-22,6652225,244,OTHER LOCAL AUTHORITY,HAVANT BOROUGH COUNCIL,300000020457057
Portsmouth City Council,PCC,Housing Revenue Account,"Rents, Rates, Taxes and Other Charges","Housing, Neighbourhood and Building Services",Premises-Related Expenditure,Rates,25-Jul-22,6652225,128,OTHER LOCAL AUTHORITY,HAVANT BOROUGH COUNCIL,300000020457057
Portsmouth City Council,PCC,Housing Revenue Account,"Rents, Rates, Taxes and Other Charges","Housing, Neighbourhood and Building Services",Premises-Related Expenditure,Rates,25-Jul-22,6652225,256,OTHER LOCAL AUTHORITY,HAVANT BOROUGH COUNCIL,300000020457057
Portsmouth City Council,PCC,Housing Services,Homelessness,"Housing, Neighbourhood and Building Services",Premises-Related Expenditure,Rents,06-Jul-22,6646663,"2,026.55",SUPPLIER,DOLPHIN PROPERTY RENTAL,300000020461423
Portsmouth City Council,PCC,Housing Revenue Account,"Rents, Rates, Taxes and Other Charges","Housing, Neighbourhood and Building Services",Premises-Related Expenditure,Rates,25-Jul-22,6652225,128,OTHER LOCAL AUTHORITY,HAVANT BOROUGH COUNCIL,300000020457057
Portsmouth City Council,PCC,Housing Revenue Account,"Rents, Rates, Taxes and Other Charges","Housing, Neighbourhood and Building Services",Premises-Related Expenditure,Rates,28-Jul-22,6654600,128,OTHER LOCAL AUTHORITY,HAVANT BOROUGH COUNCIL,300000020457057
Portsmouth City Council,PCC,Housing Revenue Account,"Rents, Rates, Taxes and Other Charges","Housing, Neighbourhood and Building Services",Premises-Related Expenditure,Rates,28-Jul-22,6654600,128,OTHER LOCAL AUTHORITY,HAVANT BOROUGH COUNCIL,300000020457057
Portsmouth City Council,PCC,Housing Revenue Account,"Rents, Rates, Taxes and Other Charges","Housing, Neighbourhood and Building Services",Premises-Related Expenditure,Rates,25-Jul-22,6652225,128,OTHER LOCAL AUTHORITY,HAVANT BOROUGH COUNCIL,300000020457057
Portsmouth City Council,PCC,Housing Revenue Account,"Rents, Rates, Taxes and Other Charges","Housing, Neighbourhood and Building Services",Premises-Related Expenditure,Rates,28-Jul-22,6654600,128,OTHER LOCAL AUTHORITY,HAVANT BOROUGH COUNCIL,300000020457057
Portsmouth City Council,PCC,Housing Revenue Account,"Rents, Rates, Taxes and Other Charges","Housing, Neighbourhood and Building Services",Premises-Related Expenditure,Rates,28-Jul-22,6654600,128,OTHER LOCAL AUTHORITY,HAVANT BOROUGH COUNCIL,300000020457057
Portsmouth City Council,PCC,Housing Revenue Account,"Rents, Rates, Taxes and Other Charges","Housing, Neighbourhood and Building Services",Premises-Related Expenditure,Rates,25-Jul-22,6652225,256,OTHER LOCAL AUTHORITY,HAVANT BOROUGH COUNCIL,300000020457057
Portsmouth City Council,PCC,Housing Revenue Account,"Rents, Rates, Taxes and Other Charges","Housing, Neighbourhood and Building Services",Premises-Related Expenditure,Rates,25-Jul-22,6652225,128,OTHER LOCAL AUTHORITY,HAVANT BOROUGH COUNCIL,300000020457057
Portsmouth City Council,PCC,Housing Revenue Account,"Rents, Rates, Taxes and Other Charges","Housing, Neighbourhood and Building Services",Premises-Related Expenditure,Rates,25-Jul-22,6652225,128,OTHER LOCAL AUTHORITY,HAVANT BOROUGH COUNCIL,300000020457057
Portsmouth City Council,PCC,Housing Revenue Account,"Rents, Rates, Taxes and Other Charges","Housing, Neighbourhood and Building Services",Premises-Related Expenditure,Rates,25-Jul-22,6652225,128,OTHER LOCAL AUTHORITY,HAVANT BOROUGH COUNCIL,300000020457057
Portsmouth City Council,PCC,Housing Revenue Account,"Rents, Rates, Taxes and Other Charges","Housing, Neighbourhood and Building Services",Premises-Related Expenditure,Rates,28-Jul-22,6654600,128,OTHER LOCAL AUTHORITY,HAVANT BOROUGH COUNCIL,300000020457057
Portsmouth City Council,PCC,Housing Revenue Account,"Rents, Rates, Taxes and Other Charges","Housing, Neighbourhood and Building Services",Premises-Related Expenditure,Rates,25-Jul-22,6652225,128,OTHER LOCAL AUTHORITY,HAVANT BOROUGH COUNCIL,300000020457057
Portsmouth City Council,PCC,Housing Revenue Account,"Rents, Rates, Taxes and Other Charges","Housing, Neighbourhood and Building Services",Premises-Related Expenditure,Rates,28-Jul-22,6654600,128,OTHER LOCAL AUTHORITY,HAVANT BOROUGH COUNCIL,300000020457057
Portsmouth City Council,PCC,Housing Revenue Account,"Rents, Rates, Taxes and Other Charges","Housing, Neighbourhood and Building Services",Premises-Related Expenditure,Rates,25-Jul-22,6652225,128,OTHER LOCAL AUTHORITY,HAVANT BOROUGH COUNCIL,300000020457057
Portsmouth City Council,PCC,Housing Revenue Account,"Rents, Rates, Taxes and Other Charges","Housing, Neighbourhood and Building Services",Premises-Related Expenditure,Rates,28-Jul-22,6654600,128,OTHER LOCAL AUTHORITY,HAVANT BOROUGH COUNCIL,300000020457057
Portsmouth City Council,PCC,Housing Revenue Account,"Rents, Rates, Taxes and Other Charges","Housing, Neighbourhood and Building Services",Premises-Related Expenditure,Rates,25-Jul-22,6652225,128,OTHER LOCAL AUTHORITY,HAVANT BOROUGH COUNCIL,300000020457057
Portsmouth City Council,PCC,Housing Revenue Account,"Rents, Rates, Taxes and Other Charges","Housing, Neighbourhood and Building Services",Premises-Related Expenditure,Rates,25-Jul-22,6652225,128,OTHER LOCAL AUTHORITY,HAVANT BOROUGH COUNCIL,300000020457057
Portsmouth City Council,PCC,Housing Revenue Account,"Rents, Rates, Taxes and Other Charges","Housing, Neighbourhood and Building Services",Premises-Related Expenditure,Rates,25-Jul-22,6652225,128,OTHER LOCAL AUTHORITY,HAVANT BOROUGH COUNCIL,300000020457057
Portsmouth City Council,PCC,Housing Revenue Account,"Rents, Rates, Taxes and Other Charges","Housing, Neighbourhood and Building Services",Premises-Related Expenditure,Rates,25-Jul-22,6652225,128,OTHER LOCAL AUTHORITY,HAVANT BOROUGH COUNCIL,300000020457057
Portsmouth City Council,PCC,Children's and Education Services,Special Schools,Children's Services and Education,Third Party Payments,Other establishments,25-Jul-22,6652120,"186,213.68",SUPPLIER,SOLENT ACADEMIES TRUST,300000020477417
Portsmouth City Council,PCC,Children's and Education Services,Special Schools,Children's Services and Education,Third Party Payments,Other establishments,25-Jul-22,6652120,"14,795.92",SUPPLIER,SOLENT ACADEMIES TRUST,300000020477417
Portsmouth City Council,PCC,Children's and Education Services,Special Schools,Children's Services and Education,Third Party Payments,Other establishments,25-Jul-22,6652120,"10,266.64",SUPPLIER,SOLENT ACADEMIES TRUST,300000020477417
Portsmouth City Council,PCC,Children's and Education Services,Special Schools,Children's Services and Education,Third Party Payments,Other establishments,26-Jul-22,6652250,"215,333.92",SUPPLIER,SOLENT ACADEMIES TRUST,300000020477417
Portsmouth City Council,PCC,Children's and Education Services,Special Schools,Children's Services and Education,Third Party Payments,Other establishments,26-Jul-22,6652250,"7,629.28",SUPPLIER,SOLENT ACADEMIES TRUST,300000020477417
Portsmouth City Council,PCC,Children's and Education Services,Special Schools,Children's Services and Education,Third Party Payments,Other establishments,26-Jul-22,6652250,"4,600.00",SUPPLIER,SOLENT ACADEMIES TRUST,300000020477417
Portsmouth City Council,PCC,Children's and Education Services,Special Schools,Children's Services and Education,Third Party Payments,Other establishments,25-Jul-22,6652122,"101,462.32",SUPPLIER,SOLENT ACADEMIES TRUST,300000020477417
Portsmouth City Council,PCC,Children's and Education Services,Special Schools,Children's Services and Education,Third Party Payments,Other establishments,25-Jul-22,6652122,"4,330.48",SUPPLIER,SOLENT ACADEMIES TRUST,300000020477417
Portsmouth City Council,PCC,Children's and Education Services,Special Schools,Children's Services and Education,Third Party Payments,Other establishments,25-Jul-22,6652122,"4,666.64",SUPPLIER,SOLENT ACADEMIES TRUST,300000020477417
Portsmouth City Council,PCC,Children's and Education Services,Special Schools,Children's Services and Education,Third Party Payments,Other establishments,25-Jul-22,6652121,"115,916.80",SUPPLIER,THE DELTA EDUCATION TRUST,300000020481637
Portsmouth City Council,PCC,Children's and Education Services,Special Schools,Children's Services and Education,Third Party Payments,Other establishments,25-Jul-22,6652121,"10,000.00",SUPPLIER,THE DELTA EDUCATION TRUST,300000020481637
Portsmouth City Council,PCC,Children's and Education Services,Special Schools,Children's Services and Education,Third Party Payments,Other establishments,25-Jul-22,6652121,"6,666.67",SUPPLIER,THE DELTA EDUCATION TRUST,300000020481637
Portsmouth City Council,PCC,Children's and Education Services,Management and Support Services,Children's Services and Education,Third Party Payments,Other establishments,25-Jul-22,6652121,"19,622.40",SUPPLIER,THE DELTA EDUCATION TRUST,300000020481637
Portsmouth City Council,PCC,Children's and Education Services,Management and Support Services,Children's Services and Education,Third Party Payments,Other establishments,25-Jul-22,6652121,"4,800.00",SUPPLIER,THE DELTA EDUCATION TRUST,300000020481637
Portsmouth City Council,PCC,Children's and Education Services,Management and Support Services,Children's Services and Education,Third Party Payments,Other establishments,25-Jul-22,6652121,"52,800.00",SUPPLIER,THE DELTA EDUCATION TRUST,300000020481637
Portsmouth City Council,PCC,Children's and Education Services,Management and Support Services,Children's Services and Education,Third Party Payments,Other establishments,25-Jul-22,6652215,"6,666.66",SUPPLIER,THE THINKING SCHOOLS TRUST,300000020481073
Portsmouth City Council,PCC,Children's and Education Services,Management and Support Services,Children's Services and Education,Third Party Payments,Other establishments,26-Jul-22,6652251,"1,666.66",SUPPLIER,THE SALTERNS ACADEMY TRUST,300000020477978
Portsmouth City Council,PCC,Housing Revenue Account,"Rents, Rates, Taxes and Other Charges","Housing, Neighbourhood and Building Services",Premises-Related Expenditure,Rates,25-Jul-22,6652225,127,OTHER LOCAL AUTHORITY,HAVANT BOROUGH COUNCIL,300000020457057
Portsmouth City Council,PCC,Housing Revenue Account,"Rents, Rates, Taxes and Other Charges","Housing, Neighbourhood and Building Services",Premises-Related Expenditure,Rates,25-Jul-22,6652225,121,OTHER LOCAL AUTHORITY,HAVANT BOROUGH COUNCIL,300000020457057
Portsmouth City Council,PCC,Housing Revenue Account,"Rents, Rates, Taxes and Other Charges","Housing, Neighbourhood and Building Services",Premises-Related Expenditure,Rates,25-Jul-22,6652225,141,OTHER LOCAL AUTHORITY,HAVANT BOROUGH COUNCIL,300000020457057
Portsmouth City Council,PCC,Children's and Education Services,Safeguarding Children and Young Peoples Services,Children's Services and Education,Third Party Payments,Other establishments,15-Jul-22,6649976,"-1,625.29",SUPPLIER,BPA CARE LIMITED,300000020475549
Portsmouth City Council,PCC,Children's and Education Services,Safeguarding Children and Young Peoples Services,Children's Services and Education,Third Party Payments,Other establishments,15-Jul-22,6649976,-597.86,SUPPLIER,BPA CARE LIMITED,300000020475549
Portsmouth City Council,PCC,Children's and Education Services,Safeguarding Children and Young Peoples Services,Children's Services and Education,Third Party Payments,Other establishments,15-Jul-22,6649976,-256.41,SUPPLIER,BPA CARE LIMITED,300000020475549
Portsmouth City Council,PCC,Children's and Education Services,Safeguarding Children and Young Peoples Services,Children's Services and Education,Third Party Payments,Other establishments,15-Jul-22,6649976,-135,SUPPLIER,BPA CARE LIMITED,300000020475549
Portsmouth City Council,PCC,Children's and Education Services,Safeguarding Children and Young Peoples Services,Children's Services and Education,Third Party Payments,Other establishments,15-Jul-22,6649976,-135,SUPPLIER,BPA CARE LIMITED,300000020475549
Portsmouth City Council,PCC,Children's and Education Services,Safeguarding Children and Young Peoples Services,Children's Services and Education,Third Party Payments,Other establishments,15-Jul-22,6649976,-57.86,SUPPLIER,BPA CARE LIMITED,300000020475549
Portsmouth City Council,PCC,Children's and Education Services,Safeguarding Children and Young Peoples Services,Children's Services and Education,Third Party Payments,Other establishments,15-Jul-22,6649976,19.29,SUPPLIER,BPA CARE LIMITED,300000020475549
Portsmouth City Council,PCC,Children's and Education Services,Safeguarding Children and Young Peoples Services,Children's Services and Education,Third Party Payments,Other establishments,15-Jul-22,6649976,34.71,SUPPLIER,BPA CARE LIMITED,300000020475549
Portsmouth City Council,PCC,Children's and Education Services,Safeguarding Children and Young Peoples Services,Children's Services and Education,Third Party Payments,Other establishments,15-Jul-22,6649976,44.29,SUPPLIER,BPA CARE LIMITED,300000020475549
Portsmouth City Council,PCC,Children's and Education Services,Safeguarding Children and Young Peoples Services,Children's Services and Education,Third Party Payments,Other establishments,15-Jul-22,6649976,69.43,SUPPLIER,BPA CARE LIMITED,300000020475549
Portsmouth City Council,PCC,Children's and Education Services,Safeguarding Children and Young Peoples Services,Children's Services and Education,Third Party Payments,Other establishments,15-Jul-22,6649976,81,SUPPLIER,BPA CARE LIMITED,300000020475549
Portsmouth City Council,PCC,Children's and Education Services,Safeguarding Children and Young Peoples Services,Children's Services and Education,Third Party Payments,Other establishments,15-Jul-22,6649976,123.43,SUPPLIER,BPA CARE LIMITED,300000020475549
Portsmouth City Council,PCC,Children's and Education Services,Safeguarding Children and Young Peoples Services,Children's Services and Education,Third Party Payments,Other establishments,15-Jul-22,6649976,-44.29,SUPPLIER,BPA CARE LIMITED,300000020475549
Portsmouth City Council,PCC,Children's and Education Services,Safeguarding Children and Young Peoples Services,Children's Services and Education,Third Party Payments,Other establishments,15-Jul-22,6649976,185.14,SUPPLIER,BPA CARE LIMITED,300000020475549
Portsmouth City Council,PCC,Children's and Education Services,Safeguarding Children and Young Peoples Services,Children's Services and Education,Third Party Payments,Other establishments,15-Jul-22,6649976,256.41,SUPPLIER,BPA CARE LIMITED,300000020475549
Portsmouth City Council,PCC,Children's and Education Services,Safeguarding Children and Young Peoples Services,Children's Services and Education,Third Party Payments,Other establishments,15-Jul-22,6649976,289.29,SUPPLIER,BPA CARE LIMITED,300000020475549
Portsmouth City Council,PCC,Children's and Education Services,Safeguarding Children and Young Peoples Services,Children's Services and Education,Third Party Payments,Other establishments,15-Jul-22,6649976,"1,625.29",SUPPLIER,BPA CARE LIMITED,300000020475549
Portsmouth City Council,PCC,Housing Revenue Account,Special Services,"Housing, Neighbourhood and Building Services",Premises-Related Expenditure,Energy costs,14-Jul-22,6649769,-468.44,LIMITED COMPANY,GAZPROM MARKETING AND TRADING LTD,300000250807105
Portsmouth City Council,PCC,Housing Revenue Account,Special Services,"Housing, Neighbourhood and Building Services",Premises-Related Expenditure,Energy costs,14-Jul-22,6649769,463.64,LIMITED COMPANY,GAZPROM MARKETING AND TRADING LTD,300000250807105
Portsmouth City Council,PCC,Housing Revenue Account,Special Services,"Housing, Neighbourhood and Building Services",Premises-Related Expenditure,Energy costs,14-Jul-22,6649769,-34.51,LIMITED COMPANY,GAZPROM MARKETING AND TRADING LTD,300000250807105
Portsmouth City Council,PCC,Housing Revenue Account,Special Services,"Housing, Neighbourhood and Building Services",Premises-Related Expenditure,Energy costs,14-Jul-22,6649769,52.25,LIMITED COMPANY,GAZPROM MARKETING AND TRADING LTD,300000250807105
Portsmouth City Council,PCC,Housing Revenue Account,Special Services,"Housing, Neighbourhood and Building Services",Premises-Related Expenditure,Energy costs,14-Jul-22,6649769,11.69,LIMITED COMPANY,GAZPROM MARKETING AND TRADING LTD,300000250807105
Portsmouth City Council,PCC,Children's and Education Services,Children Looked After,Children's Services and Education,Premises-Related Expenditure,Energy costs,14-Jul-22,6649769,167.66,LIMITED COMPANY,GAZPROM MARKETING AND TRADING LTD,300000250807105
Portsmouth City Council,PCC,Planning Services,Business support,Regeneration,Premises-Related Expenditure,Energy costs,14-Jul-22,6649769,"-5,777.81",LIMITED COMPANY,GAZPROM MARKETING AND TRADING LTD,300000250807105
Portsmouth City Council,PCC,Planning Services,Business support,Regeneration,Premises-Related Expenditure,Energy costs,14-Jul-22,6649769,"4,671.94",LIMITED COMPANY,GAZPROM MARKETING AND TRADING LTD,300000250807105
Portsmouth City Council,PCC,Children's and Education Services,Children Looked After,Children's Services and Education,Third Party Payments,Other establishments,01-Jul-22,6645264,442.44,SUPPLIER,THE CHILDRENS FAMILY TRUST,300000020479545
Portsmouth City Council,PCC,Children's and Education Services,Children Looked After,Children's Services and Education,Third Party Payments,Other establishments,01-Jul-22,6645264,553.05,SUPPLIER,THE CHILDRENS FAMILY TRUST,300000020479545
Portsmouth City Council,PCC,Children's and Education Services,Children Looked After,Children's Services and Education,Third Party Payments,Other establishments,01-Jul-22,6645264,774.27,SUPPLIER,THE CHILDRENS FAMILY TRUST,300000020479545
Portsmouth City Council,PCC,Children's and Education Services,Children Looked After,Children's Services and Education,Third Party Payments,Other establishments,01-Jul-22,6645264,774.27,SUPPLIER,THE CHILDRENS FAMILY TRUST,300000020479545
Portsmouth City Council,PCC,Children's and Education Services,Children Looked After,Children's Services and Education,Third Party Payments,Other establishments,01-Jul-22,6645264,774.27,SUPPLIER,THE CHILDRENS FAMILY TRUST,300000020479545
Portsmouth City Council,PCC,Children's and Education Services,Children Looked After,Children's Services and Education,Third Party Payments,Other establishments,01-Jul-22,6645264,8.95,SUPPLIER,THE CHILDRENS FAMILY TRUST,300000020479545
Portsmouth City Council,PCC,Children's and Education Services,Children Looked After,Children's Services and Education,Third Party Payments,Other establishments,01-Jul-22,6645264,431.25,SUPPLIER,THE CHILDRENS FAMILY TRUST,300000020479545
Portsmouth City Council,PCC,Children's and Education Services,Children Looked After,Children's Services and Education,Third Party Payments,Other establishments,01-Jul-22,6645264,539.06,SUPPLIER,THE CHILDRENS FAMILY TRUST,300000020479545
Portsmouth City Council,PCC,Children's and Education Services,Children Looked After,Children's Services and Education,Third Party Payments,Other establishments,01-Jul-22,6645264,754.68,SUPPLIER,THE CHILDRENS FAMILY TRUST,300000020479545
Portsmouth City Council,PCC,Children's and Education Services,Children Looked After,Children's Services and Education,Third Party Payments,Other establishments,01-Jul-22,6645264,754.68,SUPPLIER,THE CHILDRENS FAMILY TRUST,300000020479545
Portsmouth City Council,PCC,Children's and Education Services,Children Looked After,Children's Services and Education,Third Party Payments,Other establishments,01-Jul-22,6645264,754.68,SUPPLIER,THE CHILDRENS FAMILY TRUST,300000020479545
Portsmouth City Council,PCC,Children's and Education Services,Children Looked After,Children's Services and Education,Third Party Payments,Other establishments,01-Jul-22,6645264,-0.05,SUPPLIER,THE CHILDRENS FAMILY TRUST,300000020479545
Portsmouth City Council,PCC,Children's and Education Services,Children Looked After,Children's Services and Education,Third Party Payments,Other establishments,01-Jul-22,6645264,442.45,SUPPLIER,THE CHILDRENS FAMILY TRUST,300000020479545
Portsmouth City Council,PCC,Children's and Education Services,Children Looked After,Children's Services and Education,Third Party Payments,Other establishments,01-Jul-22,6645264,553.06,SUPPLIER,THE CHILDRENS FAMILY TRUST,300000020479545
Portsmouth City Council,PCC,Children's and Education Services,Children Looked After,Children's Services and Education,Third Party Payments,Other establishments,01-Jul-22,6645264,774.28,SUPPLIER,THE CHILDRENS FAMILY TRUST,300000020479545
Portsmouth City Council,PCC,Children's and Education Services,Children Looked After,Children's Services and Education,Third Party Payments,Other establishments,01-Jul-22,6645264,774.28,SUPPLIER,THE CHILDRENS FAMILY TRUST,300000020479545
Portsmouth City Council,PCC,Children's and Education Services,Children Looked After,Children's Services and Education,Third Party Payments,Other establishments,01-Jul-22,6645264,774.28,SUPPLIER,THE CHILDRENS FAMILY TRUST,300000020479545
Portsmouth City Council,PCC,Children's and Education Services,Children Looked After,Children's Services and Education,Third Party Payments,Other establishments,01-Jul-22,6645264,438,SUPPLIER,THE CHILDRENS FAMILY TRUST,300000020479545
Portsmouth City Council,PCC,Children's and Education Services,Children Looked After,Children's Services and Education,Third Party Payments,Other establishments,01-Jul-22,6645264,547.5,SUPPLIER,THE CHILDRENS FAMILY TRUST,300000020479545
Portsmouth City Council,PCC,Children's and Education Services,Children Looked After,Children's Services and Education,Third Party Payments,Other establishments,01-Jul-22,6645264,766.5,SUPPLIER,THE CHILDRENS FAMILY TRUST,300000020479545
Portsmouth City Council,PCC,Children's and Education Services,Children Looked After,Children's Services and Education,Third Party Payments,Other establishments,01-Jul-22,6645264,766.5,SUPPLIER,THE CHILDRENS FAMILY TRUST,300000020479545
Portsmouth City Council,PCC,Children's and Education Services,Children Looked After,Children's Services and Education,Third Party Payments,Other establishments,01-Jul-22,6645264,766.5,SUPPLIER,THE CHILDRENS FAMILY TRUST,300000020479545
Portsmouth City Council,PCC,Children's and Education Services,Asylum seekers,Children's Services and Education,Third Party Payments,Other establishments,04-Jul-22,6645718,0.04,SUPPLIER,COMPASS FOSTERING LIMITED,300000020462668
Portsmouth City Council,PCC,Children's and Education Services,Asylum seekers,Children's Services and Education,Third Party Payments,Other establishments,04-Jul-22,6645718,353.13,SUPPLIER,COMPASS FOSTERING LIMITED,300000020462668
Portsmouth City Council,PCC,Children's and Education Services,Asylum seekers,Children's Services and Education,Third Party Payments,Other establishments,04-Jul-22,6645718,823.96,SUPPLIER,COMPASS FOSTERING LIMITED,300000020462668
Portsmouth City Council,PCC,Children's and Education Services,Asylum seekers,Children's Services and Education,Third Party Payments,Other establishments,04-Jul-22,6645718,823.96,SUPPLIER,COMPASS FOSTERING LIMITED,300000020462668
Portsmouth City Council,PCC,Children's and Education Services,Asylum seekers,Children's Services and Education,Third Party Payments,Other establishments,04-Jul-22,6645718,823.96,SUPPLIER,COMPASS FOSTERING LIMITED,300000020462668
Portsmouth City Council,PCC,Children's and Education Services,Asylum seekers,Children's Services and Education,Third Party Payments,Other establishments,04-Jul-22,6645718,823.96,SUPPLIER,COMPASS FOSTERING LIMITED,300000020462668
Portsmouth City Council,PCC,Children's and Education Services,Safeguarding Children and Young Peoples Services,Children's Services and Education,Third Party Payments,Other establishments,04-Jul-22,6645718,173.37,SUPPLIER,COMPASS FOSTERING LIMITED,300000020462668
Portsmouth City Council,PCC,Children's and Education Services,Safeguarding Children and Young Peoples Services,Children's Services and Education,Third Party Payments,Other establishments,04-Jul-22,6645718,404.53,SUPPLIER,COMPASS FOSTERING LIMITED,300000020462668
Portsmouth City Council,PCC,Children's and Education Services,Safeguarding Children and Young Peoples Services,Children's Services and Education,Third Party Payments,Other establishments,04-Jul-22,6645718,404.53,SUPPLIER,COMPASS FOSTERING LIMITED,300000020462668
Portsmouth City Council,PCC,Children's and Education Services,Safeguarding Children and Young Peoples Services,Children's Services and Education,Third Party Payments,Other establishments,04-Jul-22,6645718,404.53,SUPPLIER,COMPASS FOSTERING LIMITED,300000020462668
Portsmouth City Council,PCC,Children's and Education Services,Safeguarding Children and Young Peoples Services,Children's Services and Education,Third Party Payments,Other establishments,04-Jul-22,6645718,404.53,SUPPLIER,COMPASS FOSTERING LIMITED,300000020462668
Portsmouth City Council,PCC,Children's and Education Services,Safeguarding Children and Young Peoples Services,Children's Services and Education,Third Party Payments,Other establishments,04-Jul-22,6645719,310.29,SUPPLIER,COMPASS FOSTERING LIMITED,300000020462668
Portsmouth City Council,PCC,Children's and Education Services,Safeguarding Children and Young Peoples Services,Children's Services and Education,Third Party Payments,Other establishments,04-Jul-22,6645719,724.01,SUPPLIER,COMPASS FOSTERING LIMITED,300000020462668
Portsmouth City Council,PCC,Children's and Education Services,Safeguarding Children and Young Peoples Services,Children's Services and Education,Third Party Payments,Other establishments,04-Jul-22,6645719,724.01,SUPPLIER,COMPASS FOSTERING LIMITED,300000020462668
Portsmouth City Council,PCC,Children's and Education Services,Safeguarding Children and Young Peoples Services,Children's Services and Education,Third Party Payments,Other establishments,04-Jul-22,6645719,724.01,SUPPLIER,COMPASS FOSTERING LIMITED,300000020462668
Portsmouth City Council,PCC,Children's and Education Services,Safeguarding Children and Young Peoples Services,Children's Services and Education,Third Party Payments,Other establishments,04-Jul-22,6645719,724.01,SUPPLIER,COMPASS FOSTERING LIMITED,300000020462668
Portsmouth City Council,PCC,Children's and Education Services,Children Looked After,Children's Services and Education,Third Party Payments,Other establishments,04-Jul-22,6645718,-0.04,SUPPLIER,COMPASS FOSTERING LIMITED,300000020462668
Portsmouth City Council,PCC,Children's and Education Services,Children Looked After,Children's Services and Education,Third Party Payments,Other establishments,04-Jul-22,6645718,368.13,SUPPLIER,COMPASS FOSTERING LIMITED,300000020462668
Portsmouth City Council,PCC,Children's and Education Services,Children Looked After,Children's Services and Education,Third Party Payments,Other establishments,04-Jul-22,6645718,858.98,SUPPLIER,COMPASS FOSTERING LIMITED,300000020462668
Portsmouth City Council,PCC,Children's and Education Services,Children Looked After,Children's Services and Education,Third Party Payments,Other establishments,04-Jul-22,6645718,858.98,SUPPLIER,COMPASS FOSTERING LIMITED,300000020462668
Portsmouth City Council,PCC,Children's and Education Services,Children Looked After,Children's Services and Education,Third Party Payments,Other establishments,04-Jul-22,6645718,858.98,SUPPLIER,COMPASS FOSTERING LIMITED,300000020462668
Portsmouth City Council,PCC,Children's and Education Services,Children Looked After,Children's Services and Education,Third Party Payments,Other establishments,04-Jul-22,6645718,858.98,SUPPLIER,COMPASS FOSTERING LIMITED,300000020462668
Portsmouth City Council,PCC,Children's and Education Services,Children Looked After,Children's Services and Education,Third Party Payments,Other establishments,04-Jul-22,6645702,-10,SUPPLIER,STILL WATERS CARE SERVICES LTD,300000020474495
Portsmouth City Council,PCC,Children's and Education Services,Children Looked After,Children's Services and Education,Third Party Payments,Other establishments,04-Jul-22,6645702,-10,SUPPLIER,STILL WATERS CARE SERVICES LTD,300000020474495
Portsmouth City Council,PCC,Children's and Education Services,Children Looked After,Children's Services and Education,Third Party Payments,Other establishments,04-Jul-22,6645702,-10,SUPPLIER,STILL WATERS CARE SERVICES LTD,300000020474495
Portsmouth City Council,PCC,Children's and Education Services,Children Looked After,Children's Services and Education,Third Party Payments,Other establishments,04-Jul-22,6645702,-10,SUPPLIER,STILL WATERS CARE SERVICES LTD,300000020474495
Portsmouth City Council,PCC,Children's and Education Services,Children Looked After,Children's Services and Education,Third Party Payments,Other establishments,04-Jul-22,6645702,-4.29,SUPPLIER,STILL WATERS CARE SERVICES LTD,300000020474495
Portsmouth City Council,PCC,Children's and Education Services,Children Looked After,Children's Services and Education,Third Party Payments,Other establishments,04-Jul-22,6645702,82.29,SUPPLIER,STILL WATERS CARE SERVICES LTD,300000020474495
Portsmouth City Council,PCC,Children's and Education Services,Children Looked After,Children's Services and Education,Third Party Payments,Other establishments,04-Jul-22,6645702,192,SUPPLIER,STILL WATERS CARE SERVICES LTD,300000020474495
Portsmouth City Council,PCC,Children's and Education Services,Children Looked After,Children's Services and Education,Third Party Payments,Other establishments,04-Jul-22,6645702,192,SUPPLIER,STILL WATERS CARE SERVICES LTD,300000020474495
Portsmouth City Council,PCC,Children's and Education Services,Children Looked After,Children's Services and Education,Third Party Payments,Other establishments,04-Jul-22,6645702,192,SUPPLIER,STILL WATERS CARE SERVICES LTD,300000020474495
Portsmouth City Council,PCC,Children's and Education Services,Children Looked After,Children's Services and Education,Third Party Payments,Other establishments,04-Jul-22,6645702,192,SUPPLIER,STILL WATERS CARE SERVICES LTD,300000020474495
Portsmouth City Council,PCC,Children's and Education Services,Children Looked After,Children's Services and Education,Third Party Payments,Other establishments,04-Jul-22,6645702,385.71,SUPPLIER,STILL WATERS CARE SERVICES LTD,300000020474495
Portsmouth City Council,PCC,Children's and Education Services,Children Looked After,Children's Services and Education,Third Party Payments,Other establishments,04-Jul-22,6645702,900,SUPPLIER,STILL WATERS CARE SERVICES LTD,300000020474495
Portsmouth City Council,PCC,Children's and Education Services,Children Looked After,Children's Services and Education,Third Party Payments,Other establishments,04-Jul-22,6645702,900,SUPPLIER,STILL WATERS CARE SERVICES LTD,300000020474495
Portsmouth City Council,PCC,Children's and Education Services,Children Looked After,Children's Services and Education,Third Party Payments,Other establishments,04-Jul-22,6645702,900,SUPPLIER,STILL WATERS CARE SERVICES LTD,300000020474495
Portsmouth City Council,PCC,Children's and Education Services,Children Looked After,Children's Services and Education,Third Party Payments,Other establishments,04-Jul-22,6645702,900,SUPPLIER,STILL WATERS CARE SERVICES LTD,300000020474495
Portsmouth City Council,PCC,Children's and Education Services,Children Looked After,Children's Services and Education,Third Party Payments,Other establishments,04-Jul-22,6645702,-385.71,SUPPLIER,STILL WATERS CARE SERVICES LTD,300000020474495
Portsmouth City Council,PCC,Children's and Education Services,Children Looked After,Children's Services and Education,Third Party Payments,Other establishments,04-Jul-22,6645702,-10,SUPPLIER,STILL WATERS CARE SERVICES LTD,300000020474495
Portsmouth City Council,PCC,Children's and Education Services,Children Looked After,Children's Services and Education,Third Party Payments,Other establishments,04-Jul-22,6645702,-10,SUPPLIER,STILL WATERS CARE SERVICES LTD,300000020474495
Portsmouth City Council,PCC,Children's and Education Services,Children Looked After,Children's Services and Education,Third Party Payments,Other establishments,04-Jul-22,6645702,-10,SUPPLIER,STILL WATERS CARE SERVICES LTD,300000020474495
Portsmouth City Council,PCC,Children's and Education Services,Children Looked After,Children's Services and Education,Third Party Payments,Other establishments,04-Jul-22,6645702,-10,SUPPLIER,STILL WATERS CARE SERVICES LTD,300000020474495
Portsmouth City Council,PCC,Children's and Education Services,Children Looked After,Children's Services and Education,Third Party Payments,Other establishments,04-Jul-22,6645702,-8.58,SUPPLIER,STILL WATERS CARE SERVICES LTD,300000020474495
Portsmouth City Council,PCC,Children's and Education Services,Children Looked After,Children's Services and Education,Third Party Payments,Other establishments,04-Jul-22,6645702,-0.01,SUPPLIER,STILL WATERS CARE SERVICES LTD,300000020474495
Portsmouth City Council,PCC,Children's and Education Services,Children Looked After,Children's Services and Education,Third Party Payments,Other establishments,04-Jul-22,6645702,0.02,SUPPLIER,STILL WATERS CARE SERVICES LTD,300000020474495
Portsmouth City Council,PCC,Children's and Education Services,Children Looked After,Children's Services and Education,Third Party Payments,Other establishments,04-Jul-22,6645702,4.29,SUPPLIER,STILL WATERS CARE SERVICES LTD,300000020474495
Portsmouth City Council,PCC,Children's and Education Services,Children Looked After,Children's Services and Education,Third Party Payments,Other establishments,04-Jul-22,6645702,144,SUPPLIER,STILL WATERS CARE SERVICES LTD,300000020474495
Portsmouth City Council,PCC,Children's and Education Services,Children Looked After,Children's Services and Education,Third Party Payments,Other establishments,04-Jul-22,6645702,336,SUPPLIER,STILL WATERS CARE SERVICES LTD,300000020474495
Portsmouth City Council,PCC,Children's and Education Services,Children Looked After,Children's Services and Education,Third Party Payments,Other establishments,04-Jul-22,6645702,336,SUPPLIER,STILL WATERS CARE SERVICES LTD,300000020474495
Portsmouth City Council,PCC,Children's and Education Services,Children Looked After,Children's Services and Education,Third Party Payments,Other establishments,04-Jul-22,6645702,336,SUPPLIER,STILL WATERS CARE SERVICES LTD,300000020474495
Portsmouth City Council,PCC,Children's and Education Services,Children Looked After,Children's Services and Education,Third Party Payments,Other establishments,04-Jul-22,6645702,336,SUPPLIER,STILL WATERS CARE SERVICES LTD,300000020474495
Portsmouth City Council,PCC,Children's and Education Services,Children Looked After,Children's Services and Education,Third Party Payments,Other establishments,04-Jul-22,6645702,771.42,SUPPLIER,STILL WATERS CARE SERVICES LTD,300000020474495
Portsmouth City Council,PCC,Children's and Education Services,Children Looked After,Children's Services and Education,Third Party Payments,Other establishments,04-Jul-22,6645702,900,SUPPLIER,STILL WATERS CARE SERVICES LTD,300000020474495
Portsmouth City Council,PCC,Children's and Education Services,Children Looked After,Children's Services and Education,Third Party Payments,Other establishments,04-Jul-22,6645702,900,SUPPLIER,STILL WATERS CARE SERVICES LTD,300000020474495
Portsmouth City Council,PCC,Children's and Education Services,Children Looked After,Children's Services and Education,Third Party Payments,Other establishments,04-Jul-22,6645702,900,SUPPLIER,STILL WATERS CARE SERVICES LTD,300000020474495
Portsmouth City Council,PCC,Children's and Education Services,Children Looked After,Children's Services and Education,Third Party Payments,Other establishments,04-Jul-22,6645702,900,SUPPLIER,STILL WATERS CARE SERVICES LTD,300000020474495
Portsmouth City Council,PCC,Children's and Education Services,Asylum seekers,Children's Services and Education,Third Party Payments,Other establishments,04-Jul-22,6645687,355.73,SUPPLIER,BANYA FAMILY PLACEMENT AGENCY LTD,300000020481029
Portsmouth City Council,PCC,Children's and Education Services,Asylum seekers,Children's Services and Education,Third Party Payments,Other establishments,04-Jul-22,6645687,830.03,SUPPLIER,BANYA FAMILY PLACEMENT AGENCY LTD,300000020481029
Portsmouth City Council,PCC,Children's and Education Services,Asylum seekers,Children's Services and Education,Third Party Payments,Other establishments,04-Jul-22,6645687,830.03,SUPPLIER,BANYA FAMILY PLACEMENT AGENCY LTD,300000020481029
Portsmouth City Council,PCC,Children's and Education Services,Asylum seekers,Children's Services and Education,Third Party Payments,Other establishments,04-Jul-22,6645687,830.03,SUPPLIER,BANYA FAMILY PLACEMENT AGENCY LTD,300000020481029
Portsmouth City Council,PCC,Children's and Education Services,Asylum seekers,Children's Services and Education,Third Party Payments,Other establishments,04-Jul-22,6645687,830.03,SUPPLIER,BANYA FAMILY PLACEMENT AGENCY LTD,300000020481029
Portsmouth City Council,PCC,Children's and Education Services,Asylum seekers,Children's Services and Education,Third Party Payments,Other establishments,01-Jul-22,6645372,0.01,LIMITED COMPANY,Connect Fostering Services Ltd,300000378804675
Portsmouth City Council,PCC,Children's and Education Services,Asylum seekers,Children's Services and Education,Third Party Payments,Other establishments,01-Jul-22,6645372,525.71,LIMITED COMPANY,Connect Fostering Services Ltd,300000378804675
Portsmouth City Council,PCC,Children's and Education Services,Asylum seekers,Children's Services and Education,Third Party Payments,Other establishments,01-Jul-22,6645372,657.14,LIMITED COMPANY,Connect Fostering Services Ltd,300000378804675
Portsmouth City Council,PCC,Children's and Education Services,Asylum seekers,Children's Services and Education,Third Party Payments,Other establishments,01-Jul-22,6645372,920,LIMITED COMPANY,Connect Fostering Services Ltd,300000378804675
Portsmouth City Council,PCC,Children's and Education Services,Asylum seekers,Children's Services and Education,Third Party Payments,Other establishments,01-Jul-22,6645372,920,LIMITED COMPANY,Connect Fostering Services Ltd,300000378804675
Portsmouth City Council,PCC,Children's and Education Services,Asylum seekers,Children's Services and Education,Third Party Payments,Other establishments,01-Jul-22,6645372,920,LIMITED COMPANY,Connect Fostering Services Ltd,300000378804675
Portsmouth City Council,PCC,Children's and Education Services,Children Looked After,Children's Services and Education,Third Party Payments,Other establishments,01-Jul-22,6645280,317.79,SUPPLIER,RAINBOW FOSTERING,300000020482345
Portsmouth City Council,PCC,Children's and Education Services,Children Looked After,Children's Services and Education,Third Party Payments,Other establishments,01-Jul-22,6645280,741.51,SUPPLIER,RAINBOW FOSTERING,300000020482345
Portsmouth City Council,PCC,Children's and Education Services,Children Looked After,Children's Services and Education,Third Party Payments,Other establishments,01-Jul-22,6645280,741.51,SUPPLIER,RAINBOW FOSTERING,300000020482345
Portsmouth City Council,PCC,Children's and Education Services,Children Looked After,Children's Services and Education,Third Party Payments,Other establishments,01-Jul-22,6645280,741.51,SUPPLIER,RAINBOW FOSTERING,300000020482345
Portsmouth City Council,PCC,Children's and Education Services,Children Looked After,Children's Services and Education,Third Party Payments,Other establishments,01-Jul-22,6645280,741.51,SUPPLIER,RAINBOW FOSTERING,300000020482345
Portsmouth City Council,PCC,Children's and Education Services,Children Looked After,Children's Services and Education,Third Party Payments,Other establishments,01-Jul-22,6645280,353.57,SUPPLIER,RAINBOW FOSTERING,300000020482345
Portsmouth City Council,PCC,Children's and Education Services,Children Looked After,Children's Services and Education,Third Party Payments,Other establishments,01-Jul-22,6645280,825,SUPPLIER,RAINBOW FOSTERING,300000020482345
Portsmouth City Council,PCC,Children's and Education Services,Children Looked After,Children's Services and Education,Third Party Payments,Other establishments,01-Jul-22,6645280,825,SUPPLIER,RAINBOW FOSTERING,300000020482345
Portsmouth City Council,PCC,Children's and Education Services,Children Looked After,Children's Services and Education,Third Party Payments,Other establishments,01-Jul-22,6645280,825,SUPPLIER,RAINBOW FOSTERING,300000020482345
Portsmouth City Council,PCC,Children's and Education Services,Children Looked After,Children's Services and Education,Third Party Payments,Other establishments,01-Jul-22,6645280,825,SUPPLIER,RAINBOW FOSTERING,300000020482345
Portsmouth City Council,PCC,Children's and Education Services,Children Looked After,Children's Services and Education,Third Party Payments,Other establishments,04-Jul-22,6645723,-57.02,PRIVATE PROVIDER,GRANARY CARE LIMITED,300000114453156
Portsmouth City Council,PCC,Children's and Education Services,Children Looked After,Children's Services and Education,Third Party Payments,Other establishments,04-Jul-22,6645723,"4,571.43",PRIVATE PROVIDER,GRANARY CARE LIMITED,300000114453156
Portsmouth City Council,PCC,Children's and Education Services,Children Looked After,Children's Services and Education,Third Party Payments,Other establishments,04-Jul-22,6645723,"5,714.29",PRIVATE PROVIDER,GRANARY CARE LIMITED,300000114453156
Portsmouth City Council,PCC,Children's and Education Services,Children Looked After,Children's Services and Education,Third Party Payments,Other establishments,04-Jul-22,6645723,"8,000.00",PRIVATE PROVIDER,GRANARY CARE LIMITED,300000114453156
Portsmouth City Council,PCC,Children's and Education Services,Children Looked After,Children's Services and Education,Third Party Payments,Other establishments,04-Jul-22,6645723,"8,000.00",PRIVATE PROVIDER,GRANARY CARE LIMITED,300000114453156
Portsmouth City Council,PCC,Children's and Education Services,Children Looked After,Children's Services and Education,Third Party Payments,Other establishments,04-Jul-22,6645723,"8,000.00",PRIVATE PROVIDER,GRANARY CARE LIMITED,300000114453156
Portsmouth City Council,PCC,Children's and Education Services,Family Support Services,Children's Services and Education,Third Party Payments,Other establishments,04-Jul-22,6645700,950,SUPPLIER,HOPE INTO ACTION PORTSMOUTH,300000020472723
Portsmouth City Council,PCC,Children's and Education Services,Children Looked After,Children's Services and Education,Third Party Payments,Other establishments,05-Jul-22,6645803,0.01,SUPPLIER,LIBRE LIVING LIMITED,300000020474688
Portsmouth City Council,PCC,Children's and Education Services,Children Looked After,Children's Services and Education,Third Party Payments,Other establishments,05-Jul-22,6645803,"1,883.93",SUPPLIER,LIBRE LIVING LIMITED,300000020474688
Portsmouth City Council,PCC,Children's and Education Services,Children Looked After,Children's Services and Education,Third Party Payments,Other establishments,05-Jul-22,6645803,"2,354.91",SUPPLIER,LIBRE LIVING LIMITED,300000020474688
Portsmouth City Council,PCC,Children's and Education Services,Children Looked After,Children's Services and Education,Third Party Payments,Other establishments,05-Jul-22,6645803,"3,296.88",SUPPLIER,LIBRE LIVING LIMITED,300000020474688
Portsmouth City Council,PCC,Children's and Education Services,Children Looked After,Children's Services and Education,Third Party Payments,Other establishments,05-Jul-22,6645803,"3,296.88",SUPPLIER,LIBRE LIVING LIMITED,300000020474688
Portsmouth City Council,PCC,Children's and Education Services,Children Looked After,Children's Services and Education,Third Party Payments,Other establishments,05-Jul-22,6645803,"3,296.88",SUPPLIER,LIBRE LIVING LIMITED,300000020474688
Portsmouth City Council,PCC,Children's and Education Services,Children Looked After,Children's Services and Education,Third Party Payments,Other establishments,01-Jul-22,6645264,0.05,SUPPLIER,THE CHILDRENS FAMILY TRUST,300000020479545
Portsmouth City Council,PCC,Children's and Education Services,Children Looked After,Children's Services and Education,Third Party Payments,Other establishments,01-Jul-22,6645264,448.67,SUPPLIER,THE CHILDRENS FAMILY TRUST,300000020479545
Portsmouth City Council,PCC,Children's and Education Services,Children Looked After,Children's Services and Education,Third Party Payments,Other establishments,01-Jul-22,6645264,560.84,SUPPLIER,THE CHILDRENS FAMILY TRUST,300000020479545
Portsmouth City Council,PCC,Children's and Education Services,Children Looked After,Children's Services and Education,Third Party Payments,Other establishments,01-Jul-22,6645264,785.18,SUPPLIER,THE CHILDRENS FAMILY TRUST,300000020479545
Portsmouth City Council,PCC,Children's and Education Services,Children Looked After,Children's Services and Education,Third Party Payments,Other establishments,01-Jul-22,6645264,785.18,SUPPLIER,THE CHILDRENS FAMILY TRUST,300000020479545
Portsmouth City Council,PCC,Children's and Education Services,Children Looked After,Children's Services and Education,Third Party Payments,Other establishments,01-Jul-22,6645264,785.18,SUPPLIER,THE CHILDRENS FAMILY TRUST,300000020479545
Portsmouth City Council,PCC,Children's and Education Services,Children Looked After,Children's Services and Education,Third Party Payments,Other establishments,04-Jul-22,6645661,752.94,SUPPLIER,BARNARDO SERVICES LTD,300000020461411
Portsmouth City Council,PCC,Children's and Education Services,Children Looked After,Children's Services and Education,Third Party Payments,Other establishments,04-Jul-22,6645718,0.13,SUPPLIER,COMPASS FOSTERING LIMITED,300000020462668
Portsmouth City Council,PCC,Children's and Education Services,Children Looked After,Children's Services and Education,Third Party Payments,Other establishments,04-Jul-22,6645718,348.74,SUPPLIER,COMPASS FOSTERING LIMITED,300000020462668
Portsmouth City Council,PCC,Children's and Education Services,Children Looked After,Children's Services and Education,Third Party Payments,Other establishments,04-Jul-22,6645718,813.72,SUPPLIER,COMPASS FOSTERING LIMITED,300000020462668
Portsmouth City Council,PCC,Children's and Education Services,Children Looked After,Children's Services and Education,Third Party Payments,Other establishments,04-Jul-22,6645718,813.72,SUPPLIER,COMPASS FOSTERING LIMITED,300000020462668
Portsmouth City Council,PCC,Children's and Education Services,Children Looked After,Children's Services and Education,Third Party Payments,Other establishments,04-Jul-22,6645718,813.72,SUPPLIER,COMPASS FOSTERING LIMITED,300000020462668
Portsmouth City Council,PCC,Children's and Education Services,Children Looked After,Children's Services and Education,Third Party Payments,Other establishments,04-Jul-22,6645718,813.72,SUPPLIER,COMPASS FOSTERING LIMITED,300000020462668
Portsmouth City Council,PCC,Children's and Education Services,Asylum seekers,Children's Services and Education,Third Party Payments,Other establishments,04-Jul-22,6645687,100,SUPPLIER,BANYA FAMILY PLACEMENT AGENCY LTD,300000020481029
Portsmouth City Council,PCC,Children's and Education Services,Children Looked After,Children's Services and Education,Third Party Payments,Other establishments,07-Jul-22,6647181,-0.25,SUPPLIER,BLUE SKY FOSTERING,300000020464936
Portsmouth City Council,PCC,Children's and Education Services,Children Looked After,Children's Services and Education,Third Party Payments,Other establishments,07-Jul-22,6647181,441.71,SUPPLIER,BLUE SKY FOSTERING,300000020464936
Portsmouth City Council,PCC,Children's and Education Services,Children Looked After,Children's Services and Education,Third Party Payments,Other establishments,07-Jul-22,6647181,552.14,SUPPLIER,BLUE SKY FOSTERING,300000020464936
Portsmouth City Council,PCC,Children's and Education Services,Children Looked After,Children's Services and Education,Third Party Payments,Other establishments,07-Jul-22,6647181,773,SUPPLIER,BLUE SKY FOSTERING,300000020464936
Portsmouth City Council,PCC,Children's and Education Services,Children Looked After,Children's Services and Education,Third Party Payments,Other establishments,07-Jul-22,6647181,773,SUPPLIER,BLUE SKY FOSTERING,300000020464936
Portsmouth City Council,PCC,Children's and Education Services,Children Looked After,Children's Services and Education,Third Party Payments,Other establishments,07-Jul-22,6647181,773,SUPPLIER,BLUE SKY FOSTERING,300000020464936
Portsmouth City Council,PCC,Children's and Education Services,Children Looked After,Children's Services and Education,Third Party Payments,Other establishments,07-Jul-22,6647181,-0.25,SUPPLIER,BLUE SKY FOSTERING,300000020464936
Portsmouth City Council,PCC,Children's and Education Services,Children Looked After,Children's Services and Education,Third Party Payments,Other establishments,07-Jul-22,6647181,441.71,SUPPLIER,BLUE SKY FOSTERING,300000020464936
Portsmouth City Council,PCC,Children's and Education Services,Children Looked After,Children's Services and Education,Third Party Payments,Other establishments,07-Jul-22,6647181,552.14,SUPPLIER,BLUE SKY FOSTERING,300000020464936
Portsmouth City Council,PCC,Children's and Education Services,Children Looked After,Children's Services and Education,Third Party Payments,Other establishments,07-Jul-22,6647181,773,SUPPLIER,BLUE SKY FOSTERING,300000020464936
Portsmouth City Council,PCC,Children's and Education Services,Children Looked After,Children's Services and Education,Third Party Payments,Other establishments,07-Jul-22,6647181,773,SUPPLIER,BLUE SKY FOSTERING,300000020464936
Portsmouth City Council,PCC,Children's and Education Services,Children Looked After,Children's Services and Education,Third Party Payments,Other establishments,07-Jul-22,6647181,773,SUPPLIER,BLUE SKY FOSTERING,300000020464936
Portsmouth City Council,PCC,Children's and Education Services,Children Looked After,Children's Services and Education,Third Party Payments,Other establishments,07-Jul-22,6647181,888,SUPPLIER,BLUE SKY FOSTERING,300000020464936
Portsmouth City Council,PCC,Children's and Education Services,Children Looked After,Children's Services and Education,Third Party Payments,Other establishments,07-Jul-22,6647181,"1,110.00",SUPPLIER,BLUE SKY FOSTERING,300000020464936
Portsmouth City Council,PCC,Children's and Education Services,Children Looked After,Children's Services and Education,Third Party Payments,Other establishments,07-Jul-22,6647181,"1,554.00",SUPPLIER,BLUE SKY FOSTERING,300000020464936
Portsmouth City Council,PCC,Children's and Education Services,Children Looked After,Children's Services and Education,Third Party Payments,Other establishments,07-Jul-22,6647181,"1,554.00",SUPPLIER,BLUE SKY FOSTERING,300000020464936
Portsmouth City Council,PCC,Children's and Education Services,Children Looked After,Children's Services and Education,Third Party Payments,Other establishments,07-Jul-22,6647181,"1,554.00",SUPPLIER,BLUE SKY FOSTERING,300000020464936
Portsmouth City Council,PCC,Children's and Education Services,Safeguarding Children and Young Peoples Services,Children's Services and Education,Third Party Payments,Other establishments,08-Jul-22,6647989,37.14,PRIVATE PROVIDER,Classified as 'personal data' (under the Data Protection Act 2018),300000169652808
Portsmouth City Council,PCC,Children's and Education Services,Safeguarding Children and Young Peoples Services,Children's Services and Education,Third Party Payments,Other establishments,08-Jul-22,6647989,222.86,PRIVATE PROVIDER,Classified as 'personal data' (under the Data Protection Act 2018),300000169652808
Portsmouth City Council,PCC,Children's and Education Services,Safeguarding Children and Young Peoples Services,Children's Services and Education,Third Party Payments,Other establishments,08-Jul-22,6647989,260,PRIVATE PROVIDER,Classified as 'personal data' (under the Data Protection Act 2018),300000169652808
Portsmouth City Council,PCC,Adult Social Care,Learning Disability Support Adults (18 - 64),Adult Care,Third Party Payments,Other establishments,12-Jul-22,6648571,"3,327.23",SUPPLIER, ACHIEVE TOGETHER LIMITED,300000020469986
Portsmouth City Council,PCC,Adult Social Care,Learning Disability Support Adults (18 - 64),Adult Care,Third Party Payments,Other establishments,12-Jul-22,6648571,"7,163.79",SUPPLIER, ACHIEVE TOGETHER LIMITED,300000020469986
Portsmouth City Council,PCC,Other,Suspense and Capital Schemes,Capital - Housing General Fund,Capital Charges,REFCUS,07-Jul-22,6647454,"7,244.27",LIMITED COMPANY,S & J BUILDING SERVICES (UK) LTD,300000118164690
Portsmouth City Council,PCC,Other,Suspense and Capital Schemes,Capital - Housing General Fund,Capital Charges,REFCUS,11-Jul-22,6648158,"7,109.00",LIMITED COMPANY,CONCEPT DESIGN SOLUTIONS LTD,300000118164776
Portsmouth City Council,PCC,Housing Services,Private Sector Housing Renewal,"Housing, Neighbourhood and Building Services",Income,Other grants reimbursements and contributions,11-Jul-22,6648146,-929.5,LIMITED COMPANY,LIFTECH SYSTEMS (SE) LIMITED,300000020461913
Portsmouth City Council,PCC,Other,Suspense and Capital Schemes,Capital - Housing General Fund,Capital Charges,REFCUS,11-Jul-22,6648146,"1,115.40",LIMITED COMPANY,LIFTECH SYSTEMS (SE) LIMITED,300000020461913
Portsmouth City Council,PCC,Other,Suspense and Capital Schemes,Capital - Housing General Fund,Capital Charges,REFCUS,11-Jul-22,6648146,"4,280.00",LIMITED COMPANY,LIFTECH SYSTEMS (SE) LIMITED,300000020461913
Portsmouth City Council,PCC,Children's and Education Services,Family Support Services,Children's Services and Education,Third Party Payments,Other establishments,01-Jul-22,6645258,75,SUPPLIER,ENABLE ABILITY,300000020465080
Portsmouth City Council,PCC,Children's and Education Services,Family Support Services,Children's Services and Education,Third Party Payments,Other establishments,01-Jul-22,6645258,75,SUPPLIER,ENABLE ABILITY,300000020465080
Portsmouth City Council,PCC,Children's and Education Services,Family Support Services,Children's Services and Education,Third Party Payments,Other establishments,01-Jul-22,6645258,75,SUPPLIER,ENABLE ABILITY,300000020465080
Portsmouth City Council,PCC,Children's and Education Services,Family Support Services,Children's Services and Education,Third Party Payments,Other establishments,01-Jul-22,6645258,75,SUPPLIER,ENABLE ABILITY,300000020465080
Portsmouth City Council,PCC,Children's and Education Services,Family Support Services,Children's Services and Education,Third Party Payments,Other establishments,01-Jul-22,6645258,75,SUPPLIER,ENABLE ABILITY,300000020465080
Portsmouth City Council,PCC,Children's and Education Services,Family Support Services,Children's Services and Education,Third Party Payments,Other establishments,01-Jul-22,6645258,75,SUPPLIER,ENABLE ABILITY,300000020465080
Portsmouth City Council,PCC,Children's and Education Services,Family Support Services,Children's Services and Education,Third Party Payments,Other establishments,01-Jul-22,6645258,75,SUPPLIER,ENABLE ABILITY,300000020465080
Portsmouth City Council,PCC,Children's and Education Services,Other Children and Family Services,Children's Services and Education,Third Party Payments,Other establishments,01-Jul-22,6645258,-150,SUPPLIER,ENABLE ABILITY,300000020465080
Portsmouth City Council,PCC,Children's and Education Services,Other Children and Family Services,Children's Services and Education,Third Party Payments,Other establishments,01-Jul-22,6645258,75,SUPPLIER,ENABLE ABILITY,300000020465080
Portsmouth City Council,PCC,Children's and Education Services,Other Children and Family Services,Children's Services and Education,Third Party Payments,Other establishments,01-Jul-22,6645258,75,SUPPLIER,ENABLE ABILITY,300000020465080
Portsmouth City Council,PCC,Children's and Education Services,Other Children and Family Services,Children's Services and Education,Third Party Payments,Other establishments,01-Jul-22,6645258,75,SUPPLIER,ENABLE ABILITY,300000020465080
Portsmouth City Council,PCC,Children's and Education Services,Other Children and Family Services,Children's Services and Education,Third Party Payments,Other establishments,01-Jul-22,6645258,75,SUPPLIER,ENABLE ABILITY,300000020465080
Portsmouth City Council,PCC,Children's and Education Services,Other Children and Family Services,Children's Services and Education,Third Party Payments,Other establishments,01-Jul-22,6645258,75,SUPPLIER,ENABLE ABILITY,300000020465080
Portsmouth City Council,PCC,Children's and Education Services,Other Children and Family Services,Children's Services and Education,Third Party Payments,Other establishments,01-Jul-22,6645258,-450,SUPPLIER,ENABLE ABILITY,300000020465080
Portsmouth City Council,PCC,Children's and Education Services,Other Children and Family Services,Children's Services and Education,Third Party Payments,Other establishments,01-Jul-22,6645258,75,SUPPLIER,ENABLE ABILITY,300000020465080
Portsmouth City Council,PCC,Children's and Education Services,Other Children and Family Services,Children's Services and Education,Third Party Payments,Other establishments,01-Jul-22,6645258,75,SUPPLIER,ENABLE ABILITY,300000020465080
Portsmouth City Council,PCC,Children's and Education Services,Other Children and Family Services,Children's Services and Education,Third Party Payments,Other establishments,01-Jul-22,6645258,75,SUPPLIER,ENABLE ABILITY,300000020465080
Portsmouth City Council,PCC,Children's and Education Services,Other Children and Family Services,Children's Services and Education,Third Party Payments,Other establishments,01-Jul-22,6645258,75,SUPPLIER,ENABLE ABILITY,300000020465080
Portsmouth City Council,PCC,Children's and Education Services,Family Support Services,Children's Services and Education,Third Party Payments,Other establishments,01-Jul-22,6645258,75,SUPPLIER,ENABLE ABILITY,300000020465080
Portsmouth City Council,PCC,Children's and Education Services,Family Support Services,Children's Services and Education,Third Party Payments,Other establishments,01-Jul-22,6645258,75,SUPPLIER,ENABLE ABILITY,300000020465080
Portsmouth City Council,PCC,Children's and Education Services,Family Support Services,Children's Services and Education,Third Party Payments,Other establishments,01-Jul-22,6645258,75,SUPPLIER,ENABLE ABILITY,300000020465080
Portsmouth City Council,PCC,Children's and Education Services,Family Support Services,Children's Services and Education,Third Party Payments,Other establishments,01-Jul-22,6645258,75,SUPPLIER,ENABLE ABILITY,300000020465080
Portsmouth City Council,PCC,Children's and Education Services,Family Support Services,Children's Services and Education,Third Party Payments,Other establishments,01-Jul-22,6645258,75,SUPPLIER,ENABLE ABILITY,300000020465080
Portsmouth City Council,PCC,Children's and Education Services,Family Support Services,Children's Services and Education,Third Party Payments,Other establishments,01-Jul-22,6645258,-150,SUPPLIER,ENABLE ABILITY,300000020465080
Portsmouth City Council,PCC,Children's and Education Services,Family Support Services,Children's Services and Education,Third Party Payments,Other establishments,01-Jul-22,6645258,75,SUPPLIER,ENABLE ABILITY,300000020465080
Portsmouth City Council,PCC,Children's and Education Services,Family Support Services,Children's Services and Education,Third Party Payments,Other establishments,01-Jul-22,6645258,75,SUPPLIER,ENABLE ABILITY,300000020465080
Portsmouth City Council,PCC,Children's and Education Services,Family Support Services,Children's Services and Education,Third Party Payments,Other establishments,01-Jul-22,6645258,75,SUPPLIER,ENABLE ABILITY,300000020465080
Portsmouth City Council,PCC,Children's and Education Services,Family Support Services,Children's Services and Education,Third Party Payments,Other establishments,01-Jul-22,6645258,75,SUPPLIER,ENABLE ABILITY,300000020465080
Portsmouth City Council,PCC,Children's and Education Services,Family Support Services,Children's Services and Education,Third Party Payments,Other establishments,01-Jul-22,6645258,75,SUPPLIER,ENABLE ABILITY,300000020465080
Portsmouth City Council,PCC,Children's and Education Services,Family Support Services,Children's Services and Education,Third Party Payments,Other establishments,01-Jul-22,6645258,75,SUPPLIER,ENABLE ABILITY,300000020465080
Portsmouth City Council,PCC,Children's and Education Services,Family Support Services,Children's Services and Education,Third Party Payments,Other establishments,01-Jul-22,6645258,75,SUPPLIER,ENABLE ABILITY,300000020465080
Portsmouth City Council,PCC,Children's and Education Services,Family Support Services,Children's Services and Education,Third Party Payments,Other establishments,06-Jul-22,6646402,75,SUPPLIER,ENABLE ABILITY,300000020465080
Portsmouth City Council,PCC,Children's and Education Services,Family Support Services,Children's Services and Education,Third Party Payments,Other establishments,06-Jul-22,6646402,75,SUPPLIER,ENABLE ABILITY,300000020465080
Portsmouth City Council,PCC,Children's and Education Services,Family Support Services,Children's Services and Education,Third Party Payments,Other establishments,06-Jul-22,6646402,75,SUPPLIER,ENABLE ABILITY,300000020465080
Portsmouth City Council,PCC,Children's and Education Services,Family Support Services,Children's Services and Education,Third Party Payments,Other establishments,06-Jul-22,6646402,75,SUPPLIER,ENABLE ABILITY,300000020465080
Portsmouth City Council,PCC,Children's and Education Services,Family Support Services,Children's Services and Education,Third Party Payments,Other establishments,06-Jul-22,6646402,-225,SUPPLIER,ENABLE ABILITY,300000020465080
Portsmouth City Council,PCC,Children's and Education Services,Family Support Services,Children's Services and Education,Third Party Payments,Other establishments,06-Jul-22,6646402,75,SUPPLIER,ENABLE ABILITY,300000020465080
Portsmouth City Council,PCC,Children's and Education Services,Family Support Services,Children's Services and Education,Third Party Payments,Other establishments,06-Jul-22,6646402,75,SUPPLIER,ENABLE ABILITY,300000020465080
Portsmouth City Council,PCC,Children's and Education Services,Family Support Services,Children's Services and Education,Third Party Payments,Other establishments,06-Jul-22,6646402,75,SUPPLIER,ENABLE ABILITY,300000020465080
Portsmouth City Council,PCC,Children's and Education Services,Family Support Services,Children's Services and Education,Third Party Payments,Other establishments,06-Jul-22,6646402,75,SUPPLIER,ENABLE ABILITY,300000020465080
Portsmouth City Council,PCC,Children's and Education Services,Family Support Services,Children's Services and Education,Third Party Payments,Other establishments,06-Jul-22,6646402,75,SUPPLIER,ENABLE ABILITY,300000020465080
Portsmouth City Council,PCC,Children's and Education Services,Family Support Services,Children's Services and Education,Third Party Payments,Other establishments,05-Jul-22,6646071,950,SUPPLIER,Classified as 'personal data' (under the Data Protection Act 2018),300000194059597
Portsmouth City Council,PCC,Children's and Education Services,Family Support Services,Children's Services and Education,Third Party Payments,Other establishments,06-Jul-22,6646402,75,SUPPLIER,ENABLE ABILITY,300000020465080
Portsmouth City Council,PCC,Children's and Education Services,Family Support Services,Children's Services and Education,Third Party Payments,Other establishments,06-Jul-22,6646402,75,SUPPLIER,ENABLE ABILITY,300000020465080
Portsmouth City Council,PCC,Children's and Education Services,Family Support Services,Children's Services and Education,Third Party Payments,Other establishments,06-Jul-22,6646402,75,SUPPLIER,ENABLE ABILITY,300000020465080
Portsmouth City Council,PCC,Children's and Education Services,Family Support Services,Children's Services and Education,Third Party Payments,Other establishments,06-Jul-22,6646402,75,SUPPLIER,ENABLE ABILITY,300000020465080
Portsmouth City Council,PCC,Children's and Education Services,Family Support Services,Children's Services and Education,Third Party Payments,Other establishments,06-Jul-22,6646402,75,SUPPLIER,ENABLE ABILITY,300000020465080
Portsmouth City Council,PCC,Children's and Education Services,Family Support Services,Children's Services and Education,Third Party Payments,Other establishments,06-Jul-22,6646402,75,SUPPLIER,ENABLE ABILITY,300000020465080
Portsmouth City Council,PCC,Children's and Education Services,Family Support Services,Children's Services and Education,Third Party Payments,Other establishments,06-Jul-22,6646402,75,SUPPLIER,ENABLE ABILITY,300000020465080
Portsmouth City Council,PCC,Children's and Education Services,Family Support Services,Children's Services and Education,Third Party Payments,Other establishments,06-Jul-22,6646402,75,SUPPLIER,ENABLE ABILITY,300000020465080
Portsmouth City Council,PCC,Children's and Education Services,Family Support Services,Children's Services and Education,Third Party Payments,Other establishments,06-Jul-22,6646402,-300,SUPPLIER,ENABLE ABILITY,300000020465080
Portsmouth City Council,PCC,Children's and Education Services,Family Support Services,Children's Services and Education,Third Party Payments,Other establishments,06-Jul-22,6646402,150,SUPPLIER,ENABLE ABILITY,300000020465080
Portsmouth City Council,PCC,Children's and Education Services,Family Support Services,Children's Services and Education,Third Party Payments,Other establishments,06-Jul-22,6646402,150,SUPPLIER,ENABLE ABILITY,300000020465080
Portsmouth City Council,PCC,Children's and Education Services,Family Support Services,Children's Services and Education,Third Party Payments,Other establishments,06-Jul-22,6646402,150,SUPPLIER,ENABLE ABILITY,300000020465080
Portsmouth City Council,PCC,Children's and Education Services,Family Support Services,Children's Services and Education,Third Party Payments,Other establishments,06-Jul-22,6646402,150,SUPPLIER,ENABLE ABILITY,300000020465080
Portsmouth City Council,PCC,Children's and Education Services,Family Support Services,Children's Services and Education,Third Party Payments,Other establishments,06-Jul-22,6646402,150,SUPPLIER,ENABLE ABILITY,300000020465080
Portsmouth City Council,PCC,Children's and Education Services,Family Support Services,Children's Services and Education,Third Party Payments,Other establishments,06-Jul-22,6646402,75,SUPPLIER,ENABLE ABILITY,300000020465080
Portsmouth City Council,PCC,Children's and Education Services,Family Support Services,Children's Services and Education,Third Party Payments,Other establishments,06-Jul-22,6646402,75,SUPPLIER,ENABLE ABILITY,300000020465080
Portsmouth City Council,PCC,Children's and Education Services,Family Support Services,Children's Services and Education,Third Party Payments,Other establishments,06-Jul-22,6646402,-225,SUPPLIER,ENABLE ABILITY,300000020465080
Portsmouth City Council,PCC,Children's and Education Services,Family Support Services,Children's Services and Education,Third Party Payments,Other establishments,06-Jul-22,6646402,75,SUPPLIER,ENABLE ABILITY,300000020465080
Portsmouth City Council,PCC,Children's and Education Services,Family Support Services,Children's Services and Education,Third Party Payments,Other establishments,06-Jul-22,6646402,75,SUPPLIER,ENABLE ABILITY,300000020465080
Portsmouth City Council,PCC,Children's and Education Services,Family Support Services,Children's Services and Education,Third Party Payments,Other establishments,06-Jul-22,6646402,75,SUPPLIER,ENABLE ABILITY,300000020465080
Portsmouth City Council,PCC,Children's and Education Services,Family Support Services,Children's Services and Education,Third Party Payments,Other establishments,06-Jul-22,6646402,75,SUPPLIER,ENABLE ABILITY,300000020465080
Portsmouth City Council,PCC,Children's and Education Services,Family Support Services,Children's Services and Education,Third Party Payments,Other establishments,06-Jul-22,6646402,75,SUPPLIER,ENABLE ABILITY,300000020465080
Portsmouth City Council,PCC,Children's and Education Services,Family Support Services,Children's Services and Education,Third Party Payments,Other establishments,06-Jul-22,6646402,75,SUPPLIER,ENABLE ABILITY,300000020465080
Portsmouth City Council,PCC,Children's and Education Services,Family Support Services,Children's Services and Education,Third Party Payments,Other establishments,06-Jul-22,6646402,75,SUPPLIER,ENABLE ABILITY,300000020465080
Portsmouth City Council,PCC,Children's and Education Services,Family Support Services,Children's Services and Education,Third Party Payments,Other establishments,06-Jul-22,6646402,75,SUPPLIER,ENABLE ABILITY,300000020465080
Portsmouth City Council,PCC,Children's and Education Services,Family Support Services,Children's Services and Education,Third Party Payments,Other establishments,06-Jul-22,6646402,75,SUPPLIER,ENABLE ABILITY,300000020465080
Portsmouth City Council,PCC,Children's and Education Services,Family Support Services,Children's Services and Education,Third Party Payments,Other establishments,06-Jul-22,6646402,75,SUPPLIER,ENABLE ABILITY,300000020465080
Portsmouth City Council,PCC,Children's and Education Services,Family Support Services,Children's Services and Education,Third Party Payments,Other establishments,06-Jul-22,6646402,75,SUPPLIER,ENABLE ABILITY,300000020465080
Portsmouth City Council,PCC,Children's and Education Services,Family Support Services,Children's Services and Education,Third Party Payments,Other establishments,06-Jul-22,6646402,75,SUPPLIER,ENABLE ABILITY,300000020465080
Portsmouth City Council,PCC,Children's and Education Services,Family Support Services,Children's Services and Education,Third Party Payments,Other establishments,06-Jul-22,6646402,-150,SUPPLIER,ENABLE ABILITY,300000020465080
Portsmouth City Council,PCC,Children's and Education Services,Family Support Services,Children's Services and Education,Third Party Payments,Other establishments,06-Jul-22,6646402,75,SUPPLIER,ENABLE ABILITY,300000020465080
Portsmouth City Council,PCC,Children's and Education Services,Family Support Services,Children's Services and Education,Third Party Payments,Other establishments,06-Jul-22,6646402,75,SUPPLIER,ENABLE ABILITY,300000020465080
Portsmouth City Council,PCC,Children's and Education Services,Family Support Services,Children's Services and Education,Third Party Payments,Other establishments,06-Jul-22,6646402,75,SUPPLIER,ENABLE ABILITY,300000020465080
Portsmouth City Council,PCC,Children's and Education Services,Family Support Services,Children's Services and Education,Third Party Payments,Other establishments,06-Jul-22,6646402,75,SUPPLIER,ENABLE ABILITY,300000020465080
Portsmouth City Council,PCC,Children's and Education Services,Family Support Services,Children's Services and Education,Third Party Payments,Other establishments,06-Jul-22,6646402,75,SUPPLIER,ENABLE ABILITY,300000020465080
Portsmouth City Council,PCC,Children's and Education Services,Family Support Services,Children's Services and Education,Third Party Payments,Other establishments,06-Jul-22,6646402,75,SUPPLIER,ENABLE ABILITY,300000020465080
Portsmouth City Council,PCC,Children's and Education Services,Family Support Services,Children's Services and Education,Third Party Payments,Other establishments,06-Jul-22,6646402,75,SUPPLIER,ENABLE ABILITY,300000020465080
Portsmouth City Council,PCC,Children's and Education Services,Family Support Services,Children's Services and Education,Third Party Payments,Other establishments,06-Jul-22,6646402,75,SUPPLIER,ENABLE ABILITY,300000020465080
Portsmouth City Council,PCC,Children's and Education Services,Family Support Services,Children's Services and Education,Third Party Payments,Other establishments,06-Jul-22,6646402,75,SUPPLIER,ENABLE ABILITY,300000020465080
Portsmouth City Council,PCC,Children's and Education Services,Family Support Services,Children's Services and Education,Third Party Payments,Other establishments,06-Jul-22,6646402,75,SUPPLIER,ENABLE ABILITY,300000020465080
Portsmouth City Council,PCC,Children's and Education Services,Family Support Services,Children's Services and Education,Third Party Payments,Other establishments,06-Jul-22,6646402,-150,SUPPLIER,ENABLE ABILITY,300000020465080
Portsmouth City Council,PCC,Children's and Education Services,Family Support Services,Children's Services and Education,Third Party Payments,Other establishments,06-Jul-22,6646402,75,SUPPLIER,ENABLE ABILITY,300000020465080
Portsmouth City Council,PCC,Children's and Education Services,Family Support Services,Children's Services and Education,Third Party Payments,Other establishments,06-Jul-22,6646402,75,SUPPLIER,ENABLE ABILITY,300000020465080
Portsmouth City Council,PCC,Children's and Education Services,Family Support Services,Children's Services and Education,Third Party Payments,Other establishments,06-Jul-22,6646402,75,SUPPLIER,ENABLE ABILITY,300000020465080
Portsmouth City Council,PCC,Children's and Education Services,Family Support Services,Children's Services and Education,Third Party Payments,Other establishments,06-Jul-22,6646402,75,SUPPLIER,ENABLE ABILITY,300000020465080
Portsmouth City Council,PCC,Children's and Education Services,Family Support Services,Children's Services and Education,Third Party Payments,Other establishments,06-Jul-22,6646402,75,SUPPLIER,ENABLE ABILITY,300000020465080
Portsmouth City Council,PCC,Children's and Education Services,Asylum seekers,Children's Services and Education,Third Party Payments,Other establishments,12-Jul-22,6648591,-636.9,SUPPLIER,LILIAN DAVIS GROUP LTD,300000020467263
Portsmouth City Council,PCC,Children's and Education Services,Family Support Services,Children's Services and Education,Third Party Payments,Other establishments,06-Jul-22,6646402,75,SUPPLIER,ENABLE ABILITY,300000020465080
Portsmouth City Council,PCC,Children's and Education Services,Family Support Services,Children's Services and Education,Third Party Payments,Other establishments,06-Jul-22,6646402,75,SUPPLIER,ENABLE ABILITY,300000020465080
Portsmouth City Council,PCC,Children's and Education Services,Other Children and Family Services,Children's Services and Education,Third Party Payments,Other establishments,06-Jul-22,6646402,-675,SUPPLIER,ENABLE ABILITY,300000020465080
Portsmouth City Council,PCC,Children's and Education Services,Other Children and Family Services,Children's Services and Education,Third Party Payments,Other establishments,06-Jul-22,6646402,75,SUPPLIER,ENABLE ABILITY,300000020465080
Portsmouth City Council,PCC,Children's and Education Services,Other Children and Family Services,Children's Services and Education,Third Party Payments,Other establishments,06-Jul-22,6646402,75,SUPPLIER,ENABLE ABILITY,300000020465080
Portsmouth City Council,PCC,Children's and Education Services,Other Children and Family Services,Children's Services and Education,Third Party Payments,Other establishments,06-Jul-22,6646402,75,SUPPLIER,ENABLE ABILITY,300000020465080
Portsmouth City Council,PCC,Children's and Education Services,Other Children and Family Services,Children's Services and Education,Third Party Payments,Other establishments,06-Jul-22,6646402,75,SUPPLIER,ENABLE ABILITY,300000020465080
Portsmouth City Council,PCC,Children's and Education Services,Other Children and Family Services,Children's Services and Education,Third Party Payments,Other establishments,06-Jul-22,6646402,75,SUPPLIER,ENABLE ABILITY,300000020465080
Portsmouth City Council,PCC,Children's and Education Services,Family Support Services,Children's Services and Education,Third Party Payments,Other establishments,06-Jul-22,6646402,75,SUPPLIER,ENABLE ABILITY,300000020465080
Portsmouth City Council,PCC,Children's and Education Services,Family Support Services,Children's Services and Education,Third Party Payments,Other establishments,06-Jul-22,6646402,75,SUPPLIER,ENABLE ABILITY,300000020465080
Portsmouth City Council,PCC,Children's and Education Services,Family Support Services,Children's Services and Education,Third Party Payments,Other establishments,06-Jul-22,6646402,75,SUPPLIER,ENABLE ABILITY,300000020465080
Portsmouth City Council,PCC,Children's and Education Services,Family Support Services,Children's Services and Education,Third Party Payments,Other establishments,06-Jul-22,6646402,75,SUPPLIER,ENABLE ABILITY,300000020465080
Portsmouth City Council,PCC,Children's and Education Services,Family Support Services,Children's Services and Education,Third Party Payments,Other establishments,06-Jul-22,6646402,75,SUPPLIER,ENABLE ABILITY,300000020465080
Portsmouth City Council,PCC,Children's and Education Services,Family Support Services,Children's Services and Education,Third Party Payments,Other establishments,06-Jul-22,6646402,75,SUPPLIER,ENABLE ABILITY,300000020465080
Portsmouth City Council,PCC,Children's and Education Services,Family Support Services,Children's Services and Education,Third Party Payments,Other establishments,06-Jul-22,6646402,75,SUPPLIER,ENABLE ABILITY,300000020465080
Portsmouth City Council,PCC,Children's and Education Services,Family Support Services,Children's Services and Education,Third Party Payments,Other establishments,06-Jul-22,6646402,75,SUPPLIER,ENABLE ABILITY,300000020465080
Portsmouth City Council,PCC,Children's and Education Services,Family Support Services,Children's Services and Education,Third Party Payments,Other establishments,06-Jul-22,6646402,75,SUPPLIER,ENABLE ABILITY,300000020465080
Portsmouth City Council,PCC,Children's and Education Services,Family Support Services,Children's Services and Education,Third Party Payments,Other establishments,06-Jul-22,6646402,75,SUPPLIER,ENABLE ABILITY,300000020465080
Portsmouth City Council,PCC,Children's and Education Services,Family Support Services,Children's Services and Education,Third Party Payments,Other establishments,06-Jul-22,6646402,75,SUPPLIER,ENABLE ABILITY,300000020465080
Portsmouth City Council,PCC,Children's and Education Services,Family Support Services,Children's Services and Education,Third Party Payments,Other establishments,06-Jul-22,6646402,-75,SUPPLIER,ENABLE ABILITY,300000020465080
Portsmouth City Council,PCC,Children's and Education Services,Family Support Services,Children's Services and Education,Third Party Payments,Other establishments,06-Jul-22,6646402,75,SUPPLIER,ENABLE ABILITY,300000020465080
Portsmouth City Council,PCC,Children's and Education Services,Family Support Services,Children's Services and Education,Third Party Payments,Other establishments,06-Jul-22,6646402,75,SUPPLIER,ENABLE ABILITY,300000020465080
Portsmouth City Council,PCC,Children's and Education Services,Other Children and Family Services,Children's Services and Education,Third Party Payments,Other establishments,06-Jul-22,6646402,-75,SUPPLIER,ENABLE ABILITY,300000020465080
Portsmouth City Council,PCC,Children's and Education Services,Other Children and Family Services,Children's Services and Education,Third Party Payments,Other establishments,06-Jul-22,6646402,75,SUPPLIER,ENABLE ABILITY,300000020465080
Portsmouth City Council,PCC,Children's and Education Services,Other Children and Family Services,Children's Services and Education,Third Party Payments,Other establishments,06-Jul-22,6646402,75,SUPPLIER,ENABLE ABILITY,300000020465080
Portsmouth City Council,PCC,Children's and Education Services,Other Children and Family Services,Children's Services and Education,Third Party Payments,Other establishments,06-Jul-22,6646402,75,SUPPLIER,ENABLE ABILITY,300000020465080
Portsmouth City Council,PCC,Children's and Education Services,Other Children and Family Services,Children's Services and Education,Third Party Payments,Other establishments,06-Jul-22,6646402,75,SUPPLIER,ENABLE ABILITY,300000020465080
Portsmouth City Council,PCC,Children's and Education Services,Family Support Services,Children's Services and Education,Third Party Payments,Other establishments,06-Jul-22,6646402,75,SUPPLIER,ENABLE ABILITY,300000020465080
Portsmouth City Council,PCC,Children's and Education Services,Family Support Services,Children's Services and Education,Third Party Payments,Other establishments,06-Jul-22,6646402,75,SUPPLIER,ENABLE ABILITY,300000020465080
Portsmouth City Council,PCC,Children's and Education Services,Other Children and Family Services,Children's Services and Education,Third Party Payments,Other establishments,06-Jul-22,6646402,-150,SUPPLIER,ENABLE ABILITY,300000020465080
Portsmouth City Council,PCC,Children's and Education Services,Other Children and Family Services,Children's Services and Education,Third Party Payments,Other establishments,06-Jul-22,6646402,75,SUPPLIER,ENABLE ABILITY,300000020465080
Portsmouth City Council,PCC,Children's and Education Services,Other Children and Family Services,Children's Services and Education,Third Party Payments,Other establishments,06-Jul-22,6646402,75,SUPPLIER,ENABLE ABILITY,300000020465080
Portsmouth City Council,PCC,Children's and Education Services,Other Children and Family Services,Children's Services and Education,Third Party Payments,Other establishments,06-Jul-22,6646402,75,SUPPLIER,ENABLE ABILITY,300000020465080
Portsmouth City Council,PCC,Children's and Education Services,Other Children and Family Services,Children's Services and Education,Third Party Payments,Other establishments,06-Jul-22,6646402,75,SUPPLIER,ENABLE ABILITY,300000020465080
Portsmouth City Council,PCC,Children's and Education Services,Other Children and Family Services,Children's Services and Education,Third Party Payments,Other establishments,06-Jul-22,6646402,75,SUPPLIER,ENABLE ABILITY,300000020465080
Portsmouth City Council,PCC,Children's and Education Services,Family Support Services,Children's Services and Education,Third Party Payments,Other establishments,06-Jul-22,6646402,75,SUPPLIER,ENABLE ABILITY,300000020465080
Portsmouth City Council,PCC,Children's and Education Services,Family Support Services,Children's Services and Education,Third Party Payments,Other establishments,06-Jul-22,6646402,75,SUPPLIER,ENABLE ABILITY,300000020465080
Portsmouth City Council,PCC,Children's and Education Services,Family Support Services,Children's Services and Education,Third Party Payments,Other establishments,06-Jul-22,6646402,75,SUPPLIER,ENABLE ABILITY,300000020465080
Portsmouth City Council,PCC,Children's and Education Services,Family Support Services,Children's Services and Education,Third Party Payments,Other establishments,06-Jul-22,6646402,150,SUPPLIER,ENABLE ABILITY,300000020465080
Portsmouth City Council,PCC,Children's and Education Services,Family Support Services,Children's Services and Education,Third Party Payments,Other establishments,06-Jul-22,6646402,150,SUPPLIER,ENABLE ABILITY,300000020465080
Portsmouth City Council,PCC,Children's and Education Services,Family Support Services,Children's Services and Education,Third Party Payments,Other establishments,06-Jul-22,6646402,150,SUPPLIER,ENABLE ABILITY,300000020465080
Portsmouth City Council,PCC,Children's and Education Services,Safeguarding Children and Young Peoples Services,Children's Services and Education,Third Party Payments,Other establishments,12-Jul-22,6648591,-248.15,SUPPLIER,LILIAN DAVIS GROUP LTD,300000020467263
Portsmouth City Council,PCC,Children's and Education Services,Safeguarding Children and Young Peoples Services,Children's Services and Education,Third Party Payments,Other establishments,12-Jul-22,6648591,-7.14,SUPPLIER,LILIAN DAVIS GROUP LTD,300000020467263
Portsmouth City Council,PCC,Children's and Education Services,Safeguarding Children and Young Peoples Services,Children's Services and Education,Third Party Payments,Other establishments,12-Jul-22,6648591,-5.71,SUPPLIER,LILIAN DAVIS GROUP LTD,300000020467263
Portsmouth City Council,PCC,Children's and Education Services,Safeguarding Children and Young Peoples Services,Children's Services and Education,Third Party Payments,Other establishments,12-Jul-22,6648591,42.86,SUPPLIER,LILIAN DAVIS GROUP LTD,300000020467263
Portsmouth City Council,PCC,Children's and Education Services,Safeguarding Children and Young Peoples Services,Children's Services and Education,Third Party Payments,Other establishments,12-Jul-22,6648591,53.57,SUPPLIER,LILIAN DAVIS GROUP LTD,300000020467263
Portsmouth City Council,PCC,Children's and Education Services,Safeguarding Children and Young Peoples Services,Children's Services and Education,Third Party Payments,Other establishments,12-Jul-22,6648591,248.57,SUPPLIER,LILIAN DAVIS GROUP LTD,300000020467263
Portsmouth City Council,PCC,Children's and Education Services,Safeguarding Children and Young Peoples Services,Children's Services and Education,Third Party Payments,Other establishments,12-Jul-22,6648591,310.71,SUPPLIER,LILIAN DAVIS GROUP LTD,300000020467263
Portsmouth City Council,PCC,Children's and Education Services,Children Looked After,Children's Services and Education,Third Party Payments,Other establishments,12-Jul-22,6648703,0.07,SUPPLIER,FOSTERING SOLUTIONS,300000009793967
Portsmouth City Council,PCC,Children's and Education Services,Children Looked After,Children's Services and Education,Third Party Payments,Other establishments,12-Jul-22,6648703,429.35,SUPPLIER,FOSTERING SOLUTIONS,300000009793967
Portsmouth City Council,PCC,Children's and Education Services,Children Looked After,Children's Services and Education,Third Party Payments,Other establishments,12-Jul-22,6648703,536.69,SUPPLIER,FOSTERING SOLUTIONS,300000009793967
Portsmouth City Council,PCC,Children's and Education Services,Children Looked After,Children's Services and Education,Third Party Payments,Other establishments,12-Jul-22,6648703,751.37,SUPPLIER,FOSTERING SOLUTIONS,300000009793967
Portsmouth City Council,PCC,Children's and Education Services,Children Looked After,Children's Services and Education,Third Party Payments,Other establishments,12-Jul-22,6648703,751.37,SUPPLIER,FOSTERING SOLUTIONS,300000009793967
Portsmouth City Council,PCC,Children's and Education Services,Children Looked After,Children's Services and Education,Third Party Payments,Other establishments,12-Jul-22,6648703,751.37,SUPPLIER,FOSTERING SOLUTIONS,300000009793967
Portsmouth City Council,PCC,Housing Services,Private Sector Housing Renewal,"Housing, Neighbourhood and Building Services",Income,Other grants reimbursements and contributions,08-Jul-22,6647945,"-1,019.55",SUPPLIER,D&T BATHROOMS LTD,300000020476584
Portsmouth City Council,PCC,Other,Suspense and Capital Schemes,Capital - Housing General Fund,Capital Charges,REFCUS,08-Jul-22,6647945,"1,223.46",SUPPLIER,D&T BATHROOMS LTD,300000020476584
Portsmouth City Council,PCC,Other,Suspense and Capital Schemes,Capital - Housing General Fund,Capital Charges,REFCUS,08-Jul-22,6647945,"6,797.00",SUPPLIER,D&T BATHROOMS LTD,300000020476584
Portsmouth City Council,PCC,Children's and Education Services,Primary Schools,Children's Services and Education,Premises-Related Expenditure,Energy costs,14-Jul-22,6649769,"11,360.17",LIMITED COMPANY,GAZPROM MARKETING AND TRADING LTD,300000250807105
Portsmouth City Council,PCC,Housing Revenue Account,Special Services,"Housing, Neighbourhood and Building Services",Premises-Related Expenditure,Energy costs,14-Jul-22,6649769,"1,550.15",LIMITED COMPANY,GAZPROM MARKETING AND TRADING LTD,300000250807105
Portsmouth City Council,PCC,Planning Services,Business support,Regeneration,Premises-Related Expenditure,Energy costs,14-Jul-22,6649769,10.94,LIMITED COMPANY,GAZPROM MARKETING AND TRADING LTD,300000250807105
Portsmouth City Council,PCC,Housing Revenue Account,Special Services,"Housing, Neighbourhood and Building Services",Premises-Related Expenditure,Energy costs,14-Jul-22,6649769,164.44,LIMITED COMPANY,GAZPROM MARKETING AND TRADING LTD,300000250807105
Portsmouth City Council,PCC,Housing Revenue Account,Special Services,"Housing, Neighbourhood and Building Services",Premises-Related Expenditure,Energy costs,14-Jul-22,6649769,"3,023.79",LIMITED COMPANY,GAZPROM MARKETING AND TRADING LTD,300000250807105
Portsmouth City Council,PCC,Children's and Education Services,Primary Schools,Children's Services and Education,Premises-Related Expenditure,Energy costs,14-Jul-22,6649769,237.44,LIMITED COMPANY,GAZPROM MARKETING AND TRADING LTD,300000250807105
Portsmouth City Council,PCC,Children's and Education Services,Primary Schools,Children's Services and Education,Premises-Related Expenditure,Energy costs,14-Jul-22,6649769,81.76,LIMITED COMPANY,GAZPROM MARKETING AND TRADING LTD,300000250807105
Portsmouth City Council,PCC,Other,Suspense and Capital Schemes,"Housing, Neighbourhood and Building Services",Premises-Related Expenditure,Energy costs,14-Jul-22,6649769,22.96,LIMITED COMPANY,GAZPROM MARKETING AND TRADING LTD,300000250807105
Portsmouth City Council,PCC,Highways and Transport Services,"Airports, Harbours and Toll Facilities",Portsmouth International Port,Premises-Related Expenditure,Energy costs,14-Jul-22,6649769,6.22,LIMITED COMPANY,GAZPROM MARKETING AND TRADING LTD,300000250807105
Portsmouth City Council,PCC,Other,Suspense and Capital Schemes,"Housing, Neighbourhood and Building Services",Premises-Related Expenditure,Energy costs,14-Jul-22,6649769,816.47,LIMITED COMPANY,GAZPROM MARKETING AND TRADING LTD,300000250807105
Portsmouth City Council,PCC,Housing Revenue Account,"Rents, Rates, Taxes and Other Charges","Housing, Neighbourhood and Building Services",Premises-Related Expenditure,Energy costs,14-Jul-22,6649769,62.53,LIMITED COMPANY,GAZPROM MARKETING AND TRADING LTD,300000250807105
Portsmouth City Council,PCC,Housing Revenue Account,Special Services,"Housing, Neighbourhood and Building Services",Premises-Related Expenditure,CRC Allowances,14-Jul-22,6649769,15.75,LIMITED COMPANY,GAZPROM MARKETING AND TRADING LTD,300000250807105
Portsmouth City Council,PCC,Housing Revenue Account,Special Services,"Housing, Neighbourhood and Building Services",Premises-Related Expenditure,Energy costs,14-Jul-22,6649769,306.57,LIMITED COMPANY,GAZPROM MARKETING AND TRADING LTD,300000250807105
Portsmouth City Council,PCC,Housing Revenue Account,Special Services,"Housing, Neighbourhood and Building Services",Premises-Related Expenditure,CRC Allowances,14-Jul-22,6649769,30.72,LIMITED COMPANY,GAZPROM MARKETING AND TRADING LTD,300000250807105
Portsmouth City Council,PCC,Housing Revenue Account,Special Services,"Housing, Neighbourhood and Building Services",Premises-Related Expenditure,Energy costs,14-Jul-22,6649769,85.86,LIMITED COMPANY,GAZPROM MARKETING AND TRADING LTD,300000250807105
Portsmouth City Council,PCC,Housing Revenue Account,Special Services,"Housing, Neighbourhood and Building Services",Premises-Related Expenditure,Energy costs,14-Jul-22,6649769,501.96,LIMITED COMPANY,GAZPROM MARKETING AND TRADING LTD,300000250807105
Portsmouth City Council,PCC,Housing Revenue Account,Special Services,"Housing, Neighbourhood and Building Services",Premises-Related Expenditure,Energy costs,14-Jul-22,6649769,"31,038.52",LIMITED COMPANY,GAZPROM MARKETING AND TRADING LTD,300000250807105
Portsmouth City Council,PCC,Housing Revenue Account,Special Services,"Housing, Neighbourhood and Building Services",Premises-Related Expenditure,Energy costs,14-Jul-22,6649769,188.73,LIMITED COMPANY,GAZPROM MARKETING AND TRADING LTD,300000250807105
Portsmouth City Council,PCC,Children's and Education Services,Primary Schools,Children's Services and Education,Premises-Related Expenditure,Energy costs,14-Jul-22,6649769,471.6,LIMITED COMPANY,GAZPROM MARKETING AND TRADING LTD,300000250807105
Portsmouth City Council,PCC,Planning Services,Business support,Regeneration,Premises-Related Expenditure,Energy costs,14-Jul-22,6649769,"1,568.42",LIMITED COMPANY,GAZPROM MARKETING AND TRADING LTD,300000250807105
Portsmouth City Council,PCC,Children's and Education Services,Primary Schools,Children's Services and Education,Premises-Related Expenditure,Energy costs,14-Jul-22,6649769,23.23,LIMITED COMPANY,GAZPROM MARKETING AND TRADING LTD,300000250807105
Portsmouth City Council,PCC,Adult Social Care,Learning Disability Support Adults (18 - 64),Adult Care,Third Party Payments,Other establishments,12-Jul-22,6648571,"7,181.15",SUPPLIER, ACHIEVE TOGETHER LIMITED,300000020469986
Portsmouth City Council,PCC,Housing Revenue Account,"Rents, Rates, Taxes and Other Charges","Housing, Neighbourhood and Building Services",Premises-Related Expenditure,Energy costs,14-Jul-22,6649769,61.03,LIMITED COMPANY,GAZPROM MARKETING AND TRADING LTD,300000250807105
Portsmouth City Council,PCC,Housing Revenue Account,Special Services,"Housing, Neighbourhood and Building Services",Premises-Related Expenditure,Energy costs,14-Jul-22,6649769,94.89,LIMITED COMPANY,GAZPROM MARKETING AND TRADING LTD,300000250807105
Portsmouth City Council,PCC,Housing Revenue Account,"Rents, Rates, Taxes and Other Charges","Housing, Neighbourhood and Building Services",Premises-Related Expenditure,Energy costs,14-Jul-22,6649769,85.75,LIMITED COMPANY,GAZPROM MARKETING AND TRADING LTD,300000250807105
Portsmouth City Council,PCC,Housing Revenue Account,Special Services,"Housing, Neighbourhood and Building Services",Premises-Related Expenditure,Energy costs,14-Jul-22,6649769,15.05,LIMITED COMPANY,GAZPROM MARKETING AND TRADING LTD,300000250807105
Portsmouth City Council,PCC,Housing Revenue Account,Special Services,"Housing, Neighbourhood and Building Services",Premises-Related Expenditure,Energy costs,14-Jul-22,6649769,106.72,LIMITED COMPANY,GAZPROM MARKETING AND TRADING LTD,300000250807105
Portsmouth City Council,PCC,Housing Revenue Account,Special Services,"Housing, Neighbourhood and Building Services",Premises-Related Expenditure,Energy costs,14-Jul-22,6649769,"5,512.18",LIMITED COMPANY,GAZPROM MARKETING AND TRADING LTD,300000250807105
Portsmouth City Council,PCC,Planning Services,Business support,Regeneration,Premises-Related Expenditure,Energy costs,14-Jul-22,6649769,"1,265.99",LIMITED COMPANY,GAZPROM MARKETING AND TRADING LTD,300000250807105
Portsmouth City Council,PCC,Housing Revenue Account,Special Services,"Housing, Neighbourhood and Building Services",Premises-Related Expenditure,Energy costs,14-Jul-22,6649769,55.23,LIMITED COMPANY,GAZPROM MARKETING AND TRADING LTD,300000250807105
Portsmouth City Council,PCC,Children's and Education Services,Primary Schools,Children's Services and Education,Premises-Related Expenditure,Energy costs,14-Jul-22,6649769,559.58,LIMITED COMPANY,GAZPROM MARKETING AND TRADING LTD,300000250807105
Portsmouth City Council,PCC,Housing Revenue Account,Special Services,"Housing, Neighbourhood and Building Services",Premises-Related Expenditure,Energy costs,14-Jul-22,6649769,168.76,LIMITED COMPANY,GAZPROM MARKETING AND TRADING LTD,300000250807105
Portsmouth City Council,PCC,Housing Revenue Account,Special Services,"Housing, Neighbourhood and Building Services",Premises-Related Expenditure,Energy costs,14-Jul-22,6649769,71.22,LIMITED COMPANY,GAZPROM MARKETING AND TRADING LTD,300000250807105
Portsmouth City Council,PCC,Children's and Education Services,Primary Schools,Children's Services and Education,Premises-Related Expenditure,Energy costs,14-Jul-22,6649769,47.84,LIMITED COMPANY,GAZPROM MARKETING AND TRADING LTD,300000250807105
Portsmouth City Council,PCC,Housing Revenue Account,Special Services,"Housing, Neighbourhood and Building Services",Premises-Related Expenditure,Energy costs,14-Jul-22,6649769,173.77,LIMITED COMPANY,GAZPROM MARKETING AND TRADING LTD,300000250807105
Portsmouth City Council,PCC,Children's and Education Services,Primary Schools,Children's Services and Education,Premises-Related Expenditure,Energy costs,14-Jul-22,6649769,737.88,LIMITED COMPANY,GAZPROM MARKETING AND TRADING LTD,300000250807105
Portsmouth City Council,PCC,Housing Revenue Account,Special Services,"Housing, Neighbourhood and Building Services",Premises-Related Expenditure,Energy costs,14-Jul-22,6649769,36.81,LIMITED COMPANY,GAZPROM MARKETING AND TRADING LTD,300000250807105
Portsmouth City Council,PCC,Housing Revenue Account,Special Services,"Housing, Neighbourhood and Building Services",Premises-Related Expenditure,Energy costs,14-Jul-22,6649769,32.85,LIMITED COMPANY,GAZPROM MARKETING AND TRADING LTD,300000250807105
Portsmouth City Council,PCC,Cultural and Related Services,Library Service,"Culture, Leisure & Regulatory Services",Premises-Related Expenditure,Energy costs,14-Jul-22,6649769,447.9,LIMITED COMPANY,GAZPROM MARKETING AND TRADING LTD,300000250807105
Portsmouth City Council,PCC,Cultural and Related Services,Culture and Heritage,"Culture, Leisure & Regulatory Services",Premises-Related Expenditure,Energy costs,14-Jul-22,6649769,6.02,LIMITED COMPANY,GAZPROM MARKETING AND TRADING LTD,300000250807105
Portsmouth City Council,PCC,Other,Suspense and Capital Schemes,"Housing, Neighbourhood and Building Services",Premises-Related Expenditure,Energy costs,14-Jul-22,6649769,"1,596.26",LIMITED COMPANY,GAZPROM MARKETING AND TRADING LTD,300000250807105
Portsmouth City Council,PCC,Housing Revenue Account,Special Services,"Housing, Neighbourhood and Building Services",Premises-Related Expenditure,Energy costs,14-Jul-22,6649769,81.98,LIMITED COMPANY,GAZPROM MARKETING AND TRADING LTD,300000250807105
Portsmouth City Council,PCC,Housing Revenue Account,Special Services,"Housing, Neighbourhood and Building Services",Premises-Related Expenditure,Energy costs,14-Jul-22,6649769,168.45,LIMITED COMPANY,GAZPROM MARKETING AND TRADING LTD,300000250807105
Portsmouth City Council,PCC,Children's and Education Services,Primary Schools,Children's Services and Education,Premises-Related Expenditure,Energy costs,14-Jul-22,6649769,868.33,LIMITED COMPANY,GAZPROM MARKETING AND TRADING LTD,300000250807105
Portsmouth City Council,PCC,Housing Revenue Account,Special Services,"Housing, Neighbourhood and Building Services",Premises-Related Expenditure,Energy costs,14-Jul-22,6649769,322.08,LIMITED COMPANY,GAZPROM MARKETING AND TRADING LTD,300000250807105
Portsmouth City Council,PCC,Costs below Net Cost of Services,Trading,Regeneration,Premises-Related Expenditure,Energy costs,14-Jul-22,6649769,108.68,LIMITED COMPANY,GAZPROM MARKETING AND TRADING LTD,300000250807105
Portsmouth City Council,PCC,Housing Services,Homelessness,"Housing, Neighbourhood and Building Services",Premises-Related Expenditure,Energy costs,14-Jul-22,6649769,88.67,LIMITED COMPANY,GAZPROM MARKETING AND TRADING LTD,300000250807105
Portsmouth City Council,PCC,Other,Suspense and Capital Schemes,"Housing, Neighbourhood and Building Services",Premises-Related Expenditure,Energy costs,14-Jul-22,6649769,17.54,LIMITED COMPANY,GAZPROM MARKETING AND TRADING LTD,300000250807105
Portsmouth City Council,PCC,Housing Revenue Account,Special Services,"Housing, Neighbourhood and Building Services",Premises-Related Expenditure,Energy costs,14-Jul-22,6649769,694.71,LIMITED COMPANY,GAZPROM MARKETING AND TRADING LTD,300000250807105
Portsmouth City Council,PCC,Housing Revenue Account,Special Services,"Housing, Neighbourhood and Building Services",Premises-Related Expenditure,Energy costs,14-Jul-22,6649769,6.11,LIMITED COMPANY,GAZPROM MARKETING AND TRADING LTD,300000250807105
Portsmouth City Council,PCC,Children's and Education Services,Family Support Services,Children's Services and Education,Premises-Related Expenditure,Energy costs,14-Jul-22,6649769,982.68,LIMITED COMPANY,GAZPROM MARKETING AND TRADING LTD,300000250807105
Portsmouth City Council,PCC,Housing Revenue Account,Supervision and Management,"Housing, Neighbourhood and Building Services",Premises-Related Expenditure,Energy costs,14-Jul-22,6649769,114.15,LIMITED COMPANY,GAZPROM MARKETING AND TRADING LTD,300000250807105
Portsmouth City Council,PCC,Housing Revenue Account,Special Services,"Housing, Neighbourhood and Building Services",Premises-Related Expenditure,Energy costs,14-Jul-22,6649769,-133.84,LIMITED COMPANY,GAZPROM MARKETING AND TRADING LTD,300000250807105
Portsmouth City Council,PCC,Housing Revenue Account,Special Services,"Housing, Neighbourhood and Building Services",Premises-Related Expenditure,Energy costs,14-Jul-22,6649769,"-2,480.82",LIMITED COMPANY,GAZPROM MARKETING AND TRADING LTD,300000250807105
Portsmouth City Council,PCC,Housing Revenue Account,Special Services,"Housing, Neighbourhood and Building Services",Premises-Related Expenditure,Energy costs,14-Jul-22,6649769,-79.12,LIMITED COMPANY,GAZPROM MARKETING AND TRADING LTD,300000250807105
Portsmouth City Council,PCC,Housing Revenue Account,Special Services,"Housing, Neighbourhood and Building Services",Premises-Related Expenditure,Energy costs,14-Jul-22,6649769,-87.21,LIMITED COMPANY,GAZPROM MARKETING AND TRADING LTD,300000250807105
Portsmouth City Council,PCC,Housing Revenue Account,Special Services,"Housing, Neighbourhood and Building Services",Premises-Related Expenditure,Energy costs,14-Jul-22,6649769,-69.81,LIMITED COMPANY,GAZPROM MARKETING AND TRADING LTD,300000250807105
Portsmouth City Council,PCC,Housing Revenue Account,Special Services,"Housing, Neighbourhood and Building Services",Premises-Related Expenditure,Energy costs,14-Jul-22,6649769,-67.11,LIMITED COMPANY,GAZPROM MARKETING AND TRADING LTD,300000250807105
Portsmouth City Council,PCC,Housing Revenue Account,Special Services,"Housing, Neighbourhood and Building Services",Premises-Related Expenditure,Energy costs,14-Jul-22,6649769,-51.19,LIMITED COMPANY,GAZPROM MARKETING AND TRADING LTD,300000250807105
Portsmouth City Council,PCC,Children's and Education Services,Primary Schools,Children's Services and Education,Premises-Related Expenditure,Energy costs,14-Jul-22,6649769,-91.07,LIMITED COMPANY,GAZPROM MARKETING AND TRADING LTD,300000250807105
Portsmouth City Council,PCC,Housing Revenue Account,Special Services,"Housing, Neighbourhood and Building Services",Premises-Related Expenditure,Energy costs,14-Jul-22,6649769,-895.54,LIMITED COMPANY,GAZPROM MARKETING AND TRADING LTD,300000250807105
Portsmouth City Council,PCC,Housing Revenue Account,Special Services,"Housing, Neighbourhood and Building Services",Premises-Related Expenditure,Energy costs,14-Jul-22,6649769,"-1,227.64",LIMITED COMPANY,GAZPROM MARKETING AND TRADING LTD,300000250807105
Portsmouth City Council,PCC,Housing Revenue Account,Special Services,"Housing, Neighbourhood and Building Services",Premises-Related Expenditure,Energy costs,14-Jul-22,6649769,"-1,616.41",LIMITED COMPANY,GAZPROM MARKETING AND TRADING LTD,300000250807105
Portsmouth City Council,PCC,Housing Revenue Account,Special Services,"Housing, Neighbourhood and Building Services",Premises-Related Expenditure,Energy costs,14-Jul-22,6649769,"-4,840.81",LIMITED COMPANY,GAZPROM MARKETING AND TRADING LTD,300000250807105
Portsmouth City Council,PCC,Housing Revenue Account,Special Services,"Housing, Neighbourhood and Building Services",Premises-Related Expenditure,Energy costs,14-Jul-22,6649769,-346.29,LIMITED COMPANY,GAZPROM MARKETING AND TRADING LTD,300000250807105
Portsmouth City Council,PCC,Housing Revenue Account,Special Services,"Housing, Neighbourhood and Building Services",Premises-Related Expenditure,Energy costs,14-Jul-22,6649769,-501.32,LIMITED COMPANY,GAZPROM MARKETING AND TRADING LTD,300000250807105
Portsmouth City Council,PCC,Housing Revenue Account,Special Services,"Housing, Neighbourhood and Building Services",Premises-Related Expenditure,Energy costs,14-Jul-22,6649769,-650.33,LIMITED COMPANY,GAZPROM MARKETING AND TRADING LTD,300000250807105
Portsmouth City Council,PCC,Housing Revenue Account,Special Services,"Housing, Neighbourhood and Building Services",Premises-Related Expenditure,Energy costs,14-Jul-22,6649769,-721.83,LIMITED COMPANY,GAZPROM MARKETING AND TRADING LTD,300000250807105
Portsmouth City Council,PCC,Other,Suspense and Capital Schemes,Portsmouth International Port,Premises-Related Expenditure,Energy costs,14-Jul-22,6649769,-485.8,LIMITED COMPANY,GAZPROM MARKETING AND TRADING LTD,300000250807105
Portsmouth City Council,PCC,Children's and Education Services,Primary Schools,Children's Services and Education,Premises-Related Expenditure,Energy costs,14-Jul-22,6649769,"-1,264.21",LIMITED COMPANY,GAZPROM MARKETING AND TRADING LTD,300000250807105
Portsmouth City Council,PCC,Children's and Education Services,Primary Schools,Children's Services and Education,Premises-Related Expenditure,Energy costs,14-Jul-22,6649769,-264.57,LIMITED COMPANY,GAZPROM MARKETING AND TRADING LTD,300000250807105
Portsmouth City Council,PCC,Children's and Education Services,Primary Schools,Children's Services and Education,Premises-Related Expenditure,Energy costs,14-Jul-22,6649769,-204.07,LIMITED COMPANY,GAZPROM MARKETING AND TRADING LTD,300000250807105
Portsmouth City Council,PCC,Housing Revenue Account,Special Services,"Housing, Neighbourhood and Building Services",Premises-Related Expenditure,Energy costs,14-Jul-22,6649769,6.11,LIMITED COMPANY,GAZPROM MARKETING AND TRADING LTD,300000250807105
Portsmouth City Council,PCC,Children's and Education Services,Primary Schools,Children's Services and Education,Premises-Related Expenditure,Energy costs,14-Jul-22,6649769,17.61,LIMITED COMPANY,GAZPROM MARKETING AND TRADING LTD,300000250807105
Portsmouth City Council,PCC,Other,Suspense and Capital Schemes,"Housing, Neighbourhood and Building Services",Premises-Related Expenditure,Energy costs,14-Jul-22,6649769,25.13,LIMITED COMPANY,GAZPROM MARKETING AND TRADING LTD,300000250807105
Portsmouth City Council,PCC,Housing Revenue Account,Special Services,"Housing, Neighbourhood and Building Services",Premises-Related Expenditure,Energy costs,14-Jul-22,6649769,6.11,LIMITED COMPANY,GAZPROM MARKETING AND TRADING LTD,300000250807105
Portsmouth City Council,PCC,Adult Social Care,Learning Disability Support Adults (18 - 64),Adult Care,Third Party Payments,Other establishments,12-Jul-22,6648571,"8,335.28",SUPPLIER, ACHIEVE TOGETHER LIMITED,300000020469986
Portsmouth City Council,PCC,Housing Revenue Account,Special Services,"Housing, Neighbourhood and Building Services",Premises-Related Expenditure,Energy costs,14-Jul-22,6649769,6.22,LIMITED COMPANY,GAZPROM MARKETING AND TRADING LTD,300000250807105
Portsmouth City Council,PCC,Housing Revenue Account,Special Services,"Housing, Neighbourhood and Building Services",Premises-Related Expenditure,Energy costs,14-Jul-22,6649769,6.11,LIMITED COMPANY,GAZPROM MARKETING AND TRADING LTD,300000250807105
Portsmouth City Council,PCC,Adult Social Care,Learning Disability Support Adults (18 - 64),Adult Care,Third Party Payments,Other establishments,12-Jul-22,6648571,"8,466.10",SUPPLIER, ACHIEVE TOGETHER LIMITED,300000020469986
Portsmouth City Council,PCC,Housing Revenue Account,Special Services,"Housing, Neighbourhood and Building Services",Premises-Related Expenditure,Energy costs,14-Jul-22,6649769,198.87,LIMITED COMPANY,GAZPROM MARKETING AND TRADING LTD,300000250807105
Portsmouth City Council,PCC,Housing Revenue Account,Special Services,"Housing, Neighbourhood and Building Services",Premises-Related Expenditure,Energy costs,14-Jul-22,6649769,41.34,LIMITED COMPANY,GAZPROM MARKETING AND TRADING LTD,300000250807105
Portsmouth City Council,PCC,Housing Revenue Account,Special Services,"Housing, Neighbourhood and Building Services",Premises-Related Expenditure,Energy costs,14-Jul-22,6649769,95.4,LIMITED COMPANY,GAZPROM MARKETING AND TRADING LTD,300000250807105
Portsmouth City Council,PCC,Housing Revenue Account,Special Services,"Housing, Neighbourhood and Building Services",Premises-Related Expenditure,Energy costs,14-Jul-22,6649769,780.45,LIMITED COMPANY,GAZPROM MARKETING AND TRADING LTD,300000250807105
Portsmouth City Council,PCC,Housing Revenue Account,Special Services,"Housing, Neighbourhood and Building Services",Premises-Related Expenditure,Energy costs,14-Jul-22,6649769,100.44,LIMITED COMPANY,GAZPROM MARKETING AND TRADING LTD,300000250807105
Portsmouth City Council,PCC,Housing Revenue Account,Special Services,"Housing, Neighbourhood and Building Services",Premises-Related Expenditure,Energy costs,14-Jul-22,6649769,81.66,LIMITED COMPANY,GAZPROM MARKETING AND TRADING LTD,300000250807105
Portsmouth City Council,PCC,Children's and Education Services,Primary Schools,Children's Services and Education,Premises-Related Expenditure,Energy costs,14-Jul-22,6649769,274.47,LIMITED COMPANY,GAZPROM MARKETING AND TRADING LTD,300000250807105
Portsmouth City Council,PCC,Housing Revenue Account,Special Services,"Housing, Neighbourhood and Building Services",Premises-Related Expenditure,Energy costs,14-Jul-22,6649769,43.09,LIMITED COMPANY,GAZPROM MARKETING AND TRADING LTD,300000250807105
Portsmouth City Council,PCC,Housing Revenue Account,Special Services,"Housing, Neighbourhood and Building Services",Premises-Related Expenditure,Energy costs,14-Jul-22,6649769,60.38,LIMITED COMPANY,GAZPROM MARKETING AND TRADING LTD,300000250807105
Portsmouth City Council,PCC,Housing Revenue Account,Special Services,"Housing, Neighbourhood and Building Services",Premises-Related Expenditure,Energy costs,14-Jul-22,6649769,7.81,LIMITED COMPANY,GAZPROM MARKETING AND TRADING LTD,300000250807105
Portsmouth City Council,PCC,Housing Revenue Account,Special Services,"Housing, Neighbourhood and Building Services",Premises-Related Expenditure,Energy costs,14-Jul-22,6649769,9.35,LIMITED COMPANY,GAZPROM MARKETING AND TRADING LTD,300000250807105
Portsmouth City Council,PCC,Children's and Education Services,Primary Schools,Children's Services and Education,Premises-Related Expenditure,Energy costs,14-Jul-22,6649769,"1,109.78",LIMITED COMPANY,GAZPROM MARKETING AND TRADING LTD,300000250807105
Portsmouth City Council,PCC,Housing Revenue Account,Special Services,"Housing, Neighbourhood and Building Services",Premises-Related Expenditure,Energy costs,14-Jul-22,6649769,121.07,LIMITED COMPANY,GAZPROM MARKETING AND TRADING LTD,300000250807105
Portsmouth City Council,PCC,Children's and Education Services,Primary Schools,Children's Services and Education,Premises-Related Expenditure,Energy costs,14-Jul-22,6649769,"3,594.66",LIMITED COMPANY,GAZPROM MARKETING AND TRADING LTD,300000250807105
Portsmouth City Council,PCC,Housing Revenue Account,Supervision and Management,"Housing, Neighbourhood and Building Services",Premises-Related Expenditure,Energy costs,14-Jul-22,6649769,314.33,LIMITED COMPANY,GAZPROM MARKETING AND TRADING LTD,300000250807105
Portsmouth City Council,PCC,Housing Revenue Account,Supervision and Management,"Housing, Neighbourhood and Building Services",Premises-Related Expenditure,Energy costs,14-Jul-22,6649769,386.45,LIMITED COMPANY,GAZPROM MARKETING AND TRADING LTD,300000250807105
Portsmouth City Council,PCC,Housing Revenue Account,Special Services,"Housing, Neighbourhood and Building Services",Premises-Related Expenditure,Energy costs,14-Jul-22,6649769,6.22,LIMITED COMPANY,GAZPROM MARKETING AND TRADING LTD,300000250807105
Portsmouth City Council,PCC,Housing Revenue Account,Special Services,"Housing, Neighbourhood and Building Services",Premises-Related Expenditure,Energy costs,14-Jul-22,6649769,136.36,LIMITED COMPANY,GAZPROM MARKETING AND TRADING LTD,300000250807105
Portsmouth City Council,PCC,Children's and Education Services,Primary Schools,Children's Services and Education,Premises-Related Expenditure,Energy costs,14-Jul-22,6649769,-337.23,LIMITED COMPANY,GAZPROM MARKETING AND TRADING LTD,300000250807105
Portsmouth City Council,PCC,Children's and Education Services,Primary Schools,Children's Services and Education,Premises-Related Expenditure,Energy costs,14-Jul-22,6649769,-518.62,LIMITED COMPANY,GAZPROM MARKETING AND TRADING LTD,300000250807105
Portsmouth City Council,PCC,Children's and Education Services,Primary Schools,Children's Services and Education,Premises-Related Expenditure,Energy costs,14-Jul-22,6649769,-647.14,LIMITED COMPANY,GAZPROM MARKETING AND TRADING LTD,300000250807105
Portsmouth City Council,PCC,Other,Suspense and Capital Schemes,Portsmouth International Port,Premises-Related Expenditure,Energy costs,14-Jul-22,6649769,347.93,LIMITED COMPANY,GAZPROM MARKETING AND TRADING LTD,300000250807105
Portsmouth City Council,PCC,Housing Revenue Account,Special Services,"Housing, Neighbourhood and Building Services",Premises-Related Expenditure,Energy costs,14-Jul-22,6649769,-428.56,LIMITED COMPANY,GAZPROM MARKETING AND TRADING LTD,300000250807105
Portsmouth City Council,PCC,Housing Revenue Account,Special Services,"Housing, Neighbourhood and Building Services",Premises-Related Expenditure,Energy costs,14-Jul-22,6649769,-632.7,LIMITED COMPANY,GAZPROM MARKETING AND TRADING LTD,300000250807105
Portsmouth City Council,PCC,Housing Revenue Account,Special Services,"Housing, Neighbourhood and Building Services",Premises-Related Expenditure,Energy costs,14-Jul-22,6649769,-813.95,LIMITED COMPANY,GAZPROM MARKETING AND TRADING LTD,300000250807105
Portsmouth City Council,PCC,Housing Revenue Account,Special Services,"Housing, Neighbourhood and Building Services",Premises-Related Expenditure,Energy costs,14-Jul-22,6649769,-904.73,LIMITED COMPANY,GAZPROM MARKETING AND TRADING LTD,300000250807105
Portsmouth City Council,PCC,Housing Revenue Account,Special Services,"Housing, Neighbourhood and Building Services",Premises-Related Expenditure,Energy costs,14-Jul-22,6649769,-672.13,LIMITED COMPANY,GAZPROM MARKETING AND TRADING LTD,300000250807105
Portsmouth City Council,PCC,Housing Revenue Account,Special Services,"Housing, Neighbourhood and Building Services",Premises-Related Expenditure,Energy costs,14-Jul-22,6649769,-535.55,LIMITED COMPANY,GAZPROM MARKETING AND TRADING LTD,300000250807105
Portsmouth City Council,PCC,Housing Revenue Account,Special Services,"Housing, Neighbourhood and Building Services",Premises-Related Expenditure,Energy costs,14-Jul-22,6649769,-334.92,LIMITED COMPANY,GAZPROM MARKETING AND TRADING LTD,300000250807105
Portsmouth City Council,PCC,Support Service / Transparency Costs Unallocated,AMS,Corporate Services,Premises-Related Expenditure,Energy costs,14-Jul-22,6649769,"32,040.28",LIMITED COMPANY,GAZPROM MARKETING AND TRADING LTD,300000250807105
Portsmouth City Council,PCC,Housing Revenue Account,Special Services,"Housing, Neighbourhood and Building Services",Premises-Related Expenditure,Energy costs,14-Jul-22,6649769,304.7,LIMITED COMPANY,GAZPROM MARKETING AND TRADING LTD,300000250807105
Portsmouth City Council,PCC,Housing Revenue Account,Special Services,"Housing, Neighbourhood and Building Services",Premises-Related Expenditure,Energy costs,14-Jul-22,6649769,"1,551.93",LIMITED COMPANY,GAZPROM MARKETING AND TRADING LTD,300000250807105
Portsmouth City Council,PCC,Cultural and Related Services,Library Service,"Culture, Leisure & Regulatory Services",Premises-Related Expenditure,Energy costs,14-Jul-22,6649769,113.33,LIMITED COMPANY,GAZPROM MARKETING AND TRADING LTD,300000250807105
Portsmouth City Council,PCC,Housing Revenue Account,Special Services,"Housing, Neighbourhood and Building Services",Premises-Related Expenditure,Energy costs,14-Jul-22,6649769,280.59,LIMITED COMPANY,GAZPROM MARKETING AND TRADING LTD,300000250807105
Portsmouth City Council,PCC,Children's and Education Services,Children Looked After,Children's Services and Education,Premises-Related Expenditure,Energy costs,14-Jul-22,6649769,163.3,LIMITED COMPANY,GAZPROM MARKETING AND TRADING LTD,300000250807105
Portsmouth City Council,PCC,Housing Revenue Account,Special Services,"Housing, Neighbourhood and Building Services",Premises-Related Expenditure,Energy costs,14-Jul-22,6649769,555.82,LIMITED COMPANY,GAZPROM MARKETING AND TRADING LTD,300000250807105
Portsmouth City Council,PCC,Costs below Net Cost of Services,Trading,Regeneration,Premises-Related Expenditure,Energy costs,14-Jul-22,6649769,6.22,LIMITED COMPANY,GAZPROM MARKETING AND TRADING LTD,300000250807105
Portsmouth City Council,PCC,Cultural and Related Services,Open Spaces,"Culture, Leisure & Regulatory Services",Premises-Related Expenditure,Energy costs,14-Jul-22,6649769,378.62,LIMITED COMPANY,GAZPROM MARKETING AND TRADING LTD,300000250807105
Portsmouth City Council,PCC,Children's and Education Services,Other Education and Community Budget,Regeneration,Premises-Related Expenditure,Energy costs,14-Jul-22,6649769,460.24,LIMITED COMPANY,GAZPROM MARKETING AND TRADING LTD,300000250807105
Portsmouth City Council,PCC,Housing Revenue Account,Special Services,"Housing, Neighbourhood and Building Services",Premises-Related Expenditure,Energy costs,14-Jul-22,6649769,52.23,LIMITED COMPANY,GAZPROM MARKETING AND TRADING LTD,300000250807105
Portsmouth City Council,PCC,Costs below Net Cost of Services,Trading,Regeneration,Premises-Related Expenditure,Energy costs,14-Jul-22,6649769,"41,774.49",LIMITED COMPANY,GAZPROM MARKETING AND TRADING LTD,300000250807105
Portsmouth City Council,PCC,Highways and Transport Services,"Airports, Harbours and Toll Facilities",Portsmouth International Port,Premises-Related Expenditure,Energy costs,14-Jul-22,6649769,6.11,LIMITED COMPANY,GAZPROM MARKETING AND TRADING LTD,300000250807105
Portsmouth City Council,PCC,Housing Revenue Account,Special Services,"Housing, Neighbourhood and Building Services",Premises-Related Expenditure,Energy costs,14-Jul-22,6649769,326.93,LIMITED COMPANY,GAZPROM MARKETING AND TRADING LTD,300000250807105
Portsmouth City Council,PCC,Housing Revenue Account,Special Services,"Housing, Neighbourhood and Building Services",Premises-Related Expenditure,Energy costs,14-Jul-22,6649769,13.13,LIMITED COMPANY,GAZPROM MARKETING AND TRADING LTD,300000250807105
Portsmouth City Council,PCC,Housing Revenue Account,Special Services,"Housing, Neighbourhood and Building Services",Premises-Related Expenditure,Energy costs,14-Jul-22,6649769,"6,026.26",LIMITED COMPANY,GAZPROM MARKETING AND TRADING LTD,300000250807105
Portsmouth City Council,PCC,Highways and Transport Services,"Airports, Harbours and Toll Facilities",Portsmouth International Port,Premises-Related Expenditure,Energy costs,14-Jul-22,6649769,59.49,LIMITED COMPANY,GAZPROM MARKETING AND TRADING LTD,300000250807105
Portsmouth City Council,PCC,Housing Revenue Account,Special Services,"Housing, Neighbourhood and Building Services",Premises-Related Expenditure,Energy costs,14-Jul-22,6649769,154.22,LIMITED COMPANY,GAZPROM MARKETING AND TRADING LTD,300000250807105
Portsmouth City Council,PCC,Housing Revenue Account,Special Services,"Housing, Neighbourhood and Building Services",Premises-Related Expenditure,Energy costs,14-Jul-22,6649769,198.82,LIMITED COMPANY,GAZPROM MARKETING AND TRADING LTD,300000250807105
Portsmouth City Council,PCC,Housing Revenue Account,Special Services,"Housing, Neighbourhood and Building Services",Premises-Related Expenditure,Energy costs,14-Jul-22,6649769,25.75,LIMITED COMPANY,GAZPROM MARKETING AND TRADING LTD,300000250807105
Portsmouth City Council,PCC,Housing Revenue Account,Special Services,"Housing, Neighbourhood and Building Services",Premises-Related Expenditure,Energy costs,14-Jul-22,6649769,107.57,LIMITED COMPANY,GAZPROM MARKETING AND TRADING LTD,300000250807105
Portsmouth City Council,PCC,Other,Suspense and Capital Schemes,Portsmouth International Port,Premises-Related Expenditure,Energy costs,14-Jul-22,6649769,330.34,LIMITED COMPANY,GAZPROM MARKETING AND TRADING LTD,300000250807105
Portsmouth City Council,PCC,Housing Services,Homelessness,"Housing, Neighbourhood and Building Services",Premises-Related Expenditure,Energy costs,14-Jul-22,6649769,91.1,LIMITED COMPANY,GAZPROM MARKETING AND TRADING LTD,300000250807105
Portsmouth City Council,PCC,Cultural and Related Services,Recreation and Sport,"Culture, Leisure & Regulatory Services",Premises-Related Expenditure,Energy costs,14-Jul-22,6649769,71.96,LIMITED COMPANY,GAZPROM MARKETING AND TRADING LTD,300000250807105
Portsmouth City Council,PCC,Children's and Education Services,Primary Schools,Children's Services and Education,Premises-Related Expenditure,Energy costs,14-Jul-22,6649769,"1,333.81",LIMITED COMPANY,GAZPROM MARKETING AND TRADING LTD,300000250807105
Portsmouth City Council,PCC,Housing Services,Homelessness,"Housing, Neighbourhood and Building Services",Premises-Related Expenditure,Energy costs,14-Jul-22,6649769,132.2,LIMITED COMPANY,GAZPROM MARKETING AND TRADING LTD,300000250807105
Portsmouth City Council,PCC,Planning Services,Business support,Regeneration,Premises-Related Expenditure,Energy costs,14-Jul-22,6649769,26.56,LIMITED COMPANY,GAZPROM MARKETING AND TRADING LTD,300000250807105
Portsmouth City Council,PCC,Children's and Education Services,Other Children and Family Services,Children's Services and Education,Premises-Related Expenditure,Energy costs,14-Jul-22,6649769,173.94,LIMITED COMPANY,GAZPROM MARKETING AND TRADING LTD,300000250807105
Portsmouth City Council,PCC,Children's and Education Services,Primary Schools,Children's Services and Education,Premises-Related Expenditure,Energy costs,14-Jul-22,6649769,564.56,LIMITED COMPANY,GAZPROM MARKETING AND TRADING LTD,300000250807105
Portsmouth City Council,PCC,Housing Revenue Account,Special Services,"Housing, Neighbourhood and Building Services",Premises-Related Expenditure,Energy costs,14-Jul-22,6649769,328.4,LIMITED COMPANY,GAZPROM MARKETING AND TRADING LTD,300000250807105
Portsmouth City Council,PCC,Children's and Education Services,Family Support Services,Children's Services and Education,Premises-Related Expenditure,Energy costs,14-Jul-22,6649769,300.83,LIMITED COMPANY,GAZPROM MARKETING AND TRADING LTD,300000250807105
Portsmouth City Council,PCC,Housing Revenue Account,Special Services,"Housing, Neighbourhood and Building Services",Premises-Related Expenditure,Energy costs,14-Jul-22,6649769,188.3,LIMITED COMPANY,GAZPROM MARKETING AND TRADING LTD,300000250807105
Portsmouth City Council,PCC,Housing Revenue Account,"Rents, Rates, Taxes and Other Charges","Housing, Neighbourhood and Building Services",Premises-Related Expenditure,Energy costs,14-Jul-22,6649769,16.65,LIMITED COMPANY,GAZPROM MARKETING AND TRADING LTD,300000250807105
Portsmouth City Council,PCC,Housing Revenue Account,Special Services,"Housing, Neighbourhood and Building Services",Premises-Related Expenditure,Energy costs,14-Jul-22,6649769,426.04,LIMITED COMPANY,GAZPROM MARKETING AND TRADING LTD,300000250807105
Portsmouth City Council,PCC,Housing Services,Homelessness,"Housing, Neighbourhood and Building Services",Premises-Related Expenditure,Energy costs,14-Jul-22,6649769,127.13,LIMITED COMPANY,GAZPROM MARKETING AND TRADING LTD,300000250807105
Portsmouth City Council,PCC,Adult Social Care,Learning Disability Support Adults (18 - 64),Adult Care,Third Party Payments,Other establishments,12-Jul-22,6648571,"8,694.26",SUPPLIER, ACHIEVE TOGETHER LIMITED,300000020469986
Portsmouth City Council,PCC,Central Services,"Registration of Births, Deaths and Marriages","Culture, Leisure & Regulatory Services",Premises-Related Expenditure,Energy costs,14-Jul-22,6649769,94.53,LIMITED COMPANY,GAZPROM MARKETING AND TRADING LTD,300000250807105
Portsmouth City Council,PCC,Housing Services,Homelessness,"Housing, Neighbourhood and Building Services",Premises-Related Expenditure,Energy costs,14-Jul-22,6649769,112.08,LIMITED COMPANY,GAZPROM MARKETING AND TRADING LTD,300000250807105
Portsmouth City Council,PCC,Children's and Education Services,Primary Schools,Children's Services and Education,Premises-Related Expenditure,Energy costs,14-Jul-22,6649769,960.77,LIMITED COMPANY,GAZPROM MARKETING AND TRADING LTD,300000250807105
Portsmouth City Council,PCC,Children's and Education Services,Children Looked After,Children's Services and Education,Premises-Related Expenditure,Energy costs,14-Jul-22,6649769,464.52,LIMITED COMPANY,GAZPROM MARKETING AND TRADING LTD,300000250807105
Portsmouth City Council,PCC,Housing Revenue Account,Special Services,"Housing, Neighbourhood and Building Services",Premises-Related Expenditure,Energy costs,14-Jul-22,6649769,103.79,LIMITED COMPANY,GAZPROM MARKETING AND TRADING LTD,300000250807105
Portsmouth City Council,PCC,Other,Suspense and Capital Schemes,Capital - Housing General Fund,Capital Charges,Capital Expenditure (WIP),14-Jul-22,6649769,16.11,LIMITED COMPANY,GAZPROM MARKETING AND TRADING LTD,300000250807105
Portsmouth City Council,PCC,Children's and Education Services,Primary Schools,Children's Services and Education,Premises-Related Expenditure,Energy costs,14-Jul-22,6649769,85.93,LIMITED COMPANY,GAZPROM MARKETING AND TRADING LTD,300000250807105
Portsmouth City Council,PCC,Children's and Education Services,Primary Schools,Children's Services and Education,Premises-Related Expenditure,Energy costs,14-Jul-22,6649769,644.82,LIMITED COMPANY,GAZPROM MARKETING AND TRADING LTD,300000250807105
Portsmouth City Council,PCC,Children's and Education Services,Primary Schools,Children's Services and Education,Premises-Related Expenditure,Energy costs,14-Jul-22,6649769,23.22,LIMITED COMPANY,GAZPROM MARKETING AND TRADING LTD,300000250807105
Portsmouth City Council,PCC,Children's and Education Services,Children Looked After,Children's Services and Education,Premises-Related Expenditure,Energy costs,14-Jul-22,6649769,160.71,LIMITED COMPANY,GAZPROM MARKETING AND TRADING LTD,300000250807105
Portsmouth City Council,PCC,Environmental and Regulatory Services,"Cemetery, Cremation and Mortuary Services","Culture, Leisure & Regulatory Services",Premises-Related Expenditure,Energy costs,14-Jul-22,6649769,172.61,LIMITED COMPANY,GAZPROM MARKETING AND TRADING LTD,300000250807105
Portsmouth City Council,PCC,Children's and Education Services,Primary Schools,Children's Services and Education,Premises-Related Expenditure,Energy costs,14-Jul-22,6649769,125.85,LIMITED COMPANY,GAZPROM MARKETING AND TRADING LTD,300000250807105
Portsmouth City Council,PCC,Cultural and Related Services,Library Service,"Culture, Leisure & Regulatory Services",Premises-Related Expenditure,Energy costs,14-Jul-22,6649769,42.53,LIMITED COMPANY,GAZPROM MARKETING AND TRADING LTD,300000250807105
Portsmouth City Council,PCC,Children's and Education Services,Children Looked After,Children's Services and Education,Premises-Related Expenditure,Energy costs,14-Jul-22,6649769,446.03,LIMITED COMPANY,GAZPROM MARKETING AND TRADING LTD,300000250807105
Portsmouth City Council,PCC,Children's and Education Services,Primary Schools,Children's Services and Education,Premises-Related Expenditure,Energy costs,14-Jul-22,6649769,417.52,LIMITED COMPANY,GAZPROM MARKETING AND TRADING LTD,300000250807105
Portsmouth City Council,PCC,Other,Suspense and Capital Schemes,"Housing, Neighbourhood and Building Services",Premises-Related Expenditure,Energy costs,14-Jul-22,6649769,42.38,LIMITED COMPANY,GAZPROM MARKETING AND TRADING LTD,300000250807105
Portsmouth City Council,PCC,Housing Revenue Account,Supervision and Management,"Housing, Neighbourhood and Building Services",Premises-Related Expenditure,Energy costs,14-Jul-22,6649769,108.59,LIMITED COMPANY,GAZPROM MARKETING AND TRADING LTD,300000250807105
Portsmouth City Council,PCC,Other,Suspense and Capital Schemes,"Housing, Neighbourhood and Building Services",Premises-Related Expenditure,Energy costs,14-Jul-22,6649769,42.83,LIMITED COMPANY,GAZPROM MARKETING AND TRADING LTD,300000250807105
Portsmouth City Council,PCC,Housing Revenue Account,Special Services,"Housing, Neighbourhood and Building Services",Premises-Related Expenditure,CRC Allowances,14-Jul-22,6649769,67.1,LIMITED COMPANY,GAZPROM MARKETING AND TRADING LTD,300000250807105
Portsmouth City Council,PCC,Housing Revenue Account,Special Services,"Housing, Neighbourhood and Building Services",Premises-Related Expenditure,Energy costs,14-Jul-22,6649769,21.23,LIMITED COMPANY,GAZPROM MARKETING AND TRADING LTD,300000250807105
Portsmouth City Council,PCC,Housing Revenue Account,Special Services,"Housing, Neighbourhood and Building Services",Premises-Related Expenditure,Energy costs,14-Jul-22,6649769,"1,647.00",LIMITED COMPANY,GAZPROM MARKETING AND TRADING LTD,300000250807105
Portsmouth City Council,PCC,Planning Services,Business support,Regeneration,Premises-Related Expenditure,Energy costs,14-Jul-22,6649769,"2,795.67",LIMITED COMPANY,GAZPROM MARKETING AND TRADING LTD,300000250807105
Portsmouth City Council,PCC,Housing Revenue Account,Special Services,"Housing, Neighbourhood and Building Services",Premises-Related Expenditure,Energy costs,14-Jul-22,6649769,"1,973.67",LIMITED COMPANY,GAZPROM MARKETING AND TRADING LTD,300000250807105
Portsmouth City Council,PCC,Housing Revenue Account,Special Services,"Housing, Neighbourhood and Building Services",Premises-Related Expenditure,Energy costs,14-Jul-22,6649769,"1,953.39",LIMITED COMPANY,GAZPROM MARKETING AND TRADING LTD,300000250807105
Portsmouth City Council,PCC,Cultural and Related Services,Culture and Heritage,"Culture, Leisure & Regulatory Services",Premises-Related Expenditure,Energy costs,14-Jul-22,6649769,626.16,LIMITED COMPANY,GAZPROM MARKETING AND TRADING LTD,300000250807105
Portsmouth City Council,PCC,Cultural and Related Services,Culture and Heritage,"Culture, Leisure & Regulatory Services",Premises-Related Expenditure,Energy costs,14-Jul-22,6649769,351.38,LIMITED COMPANY,GAZPROM MARKETING AND TRADING LTD,300000250807105
Portsmouth City Council,PCC,Housing Revenue Account,Special Services,"Housing, Neighbourhood and Building Services",Premises-Related Expenditure,Energy costs,14-Jul-22,6649769,509.32,LIMITED COMPANY,GAZPROM MARKETING AND TRADING LTD,300000250807105
Portsmouth City Council,PCC,Cultural and Related Services,Recreation and Sport,"Culture, Leisure & Regulatory Services",Premises-Related Expenditure,Energy costs,14-Jul-22,6649769,"1,398.71",LIMITED COMPANY,GAZPROM MARKETING AND TRADING LTD,300000250807105
Portsmouth City Council,PCC,Housing Revenue Account,Supervision and Management,"Housing, Neighbourhood and Building Services",Premises-Related Expenditure,Energy costs,14-Jul-22,6649769,106.62,LIMITED COMPANY,GAZPROM MARKETING AND TRADING LTD,300000250807105
Portsmouth City Council,PCC,Highways and Transport Services,"Airports, Harbours and Toll Facilities",Portsmouth International Port,Premises-Related Expenditure,Energy costs,14-Jul-22,6649769,30.8,LIMITED COMPANY,GAZPROM MARKETING AND TRADING LTD,300000250807105
Portsmouth City Council,PCC,Housing Revenue Account,Special Services,"Housing, Neighbourhood and Building Services",Premises-Related Expenditure,Energy costs,14-Jul-22,6649769,616.61,LIMITED COMPANY,GAZPROM MARKETING AND TRADING LTD,300000250807105
Portsmouth City Council,PCC,Housing Revenue Account,Special Services,"Housing, Neighbourhood and Building Services",Premises-Related Expenditure,Energy costs,14-Jul-22,6649769,28.9,LIMITED COMPANY,GAZPROM MARKETING AND TRADING LTD,300000250807105
Portsmouth City Council,PCC,Children's and Education Services,Children Looked After,Children's Services and Education,Premises-Related Expenditure,Energy costs,14-Jul-22,6649769,"2,112.66",LIMITED COMPANY,GAZPROM MARKETING AND TRADING LTD,300000250807105
Portsmouth City Council,PCC,Housing Revenue Account,Supervision and Management,"Housing, Neighbourhood and Building Services",Premises-Related Expenditure,Energy costs,14-Jul-22,6649769,34.96,LIMITED COMPANY,GAZPROM MARKETING AND TRADING LTD,300000250807105
Portsmouth City Council,PCC,Adult Social Care,Learning Disability Support Adults (18 - 64),Adult Care,Third Party Payments,Other establishments,12-Jul-22,6648571,"9,003.95",SUPPLIER, ACHIEVE TOGETHER LIMITED,300000020469986
Portsmouth City Council,PCC,Adult Social Care,Learning Disability Support Adults (18 - 64),Adult Care,Third Party Payments,Other establishments,12-Jul-22,6648571,"9,164.84",SUPPLIER, ACHIEVE TOGETHER LIMITED,300000020469986
Portsmouth City Council,PCC,Adult Social Care,Learning Disability Support Adults (18 - 64),Adult Care,Third Party Payments,Other establishments,12-Jul-22,6648571,"9,490.96",SUPPLIER, ACHIEVE TOGETHER LIMITED,300000020469986
Portsmouth City Council,PCC,Housing Revenue Account,Supervision and Management,"Housing, Neighbourhood and Building Services",Premises-Related Expenditure,Energy costs,14-Jul-22,6649769,586.42,LIMITED COMPANY,GAZPROM MARKETING AND TRADING LTD,300000250807105
Portsmouth City Council,PCC,Children's and Education Services,Primary Schools,Children's Services and Education,Premises-Related Expenditure,Energy costs,14-Jul-22,6649769,234.51,LIMITED COMPANY,GAZPROM MARKETING AND TRADING LTD,300000250807105
Portsmouth City Council,PCC,Housing Revenue Account,Special Services,"Housing, Neighbourhood and Building Services",Premises-Related Expenditure,Energy costs,14-Jul-22,6649769,60.13,LIMITED COMPANY,GAZPROM MARKETING AND TRADING LTD,300000250807105
Portsmouth City Council,PCC,Children's and Education Services,Family Support Services,Children's Services and Education,Third Party Payments,Other establishments,06-Jul-22,6646402,75,SUPPLIER,ENABLE ABILITY,300000020465080
Portsmouth City Council,PCC,Children's and Education Services,Family Support Services,Children's Services and Education,Third Party Payments,Other establishments,06-Jul-22,6646402,75,SUPPLIER,ENABLE ABILITY,300000020465080
Portsmouth City Council,PCC,Children's and Education Services,Family Support Services,Children's Services and Education,Third Party Payments,Other establishments,06-Jul-22,6646402,75,SUPPLIER,ENABLE ABILITY,300000020465080
Portsmouth City Council,PCC,Children's and Education Services,Family Support Services,Children's Services and Education,Third Party Payments,Other establishments,06-Jul-22,6646402,-150,SUPPLIER,ENABLE ABILITY,300000020465080
Portsmouth City Council,PCC,Children's and Education Services,Family Support Services,Children's Services and Education,Third Party Payments,Other establishments,06-Jul-22,6646402,75,SUPPLIER,ENABLE ABILITY,300000020465080
Portsmouth City Council,PCC,Children's and Education Services,Family Support Services,Children's Services and Education,Third Party Payments,Other establishments,06-Jul-22,6646402,75,SUPPLIER,ENABLE ABILITY,300000020465080
Portsmouth City Council,PCC,Children's and Education Services,Family Support Services,Children's Services and Education,Third Party Payments,Other establishments,06-Jul-22,6646402,75,SUPPLIER,ENABLE ABILITY,300000020465080
Portsmouth City Council,PCC,Children's and Education Services,Family Support Services,Children's Services and Education,Third Party Payments,Other establishments,06-Jul-22,6646402,75,SUPPLIER,ENABLE ABILITY,300000020465080
Portsmouth City Council,PCC,Children's and Education Services,Family Support Services,Children's Services and Education,Third Party Payments,Other establishments,06-Jul-22,6646402,75,SUPPLIER,ENABLE ABILITY,300000020465080
Portsmouth City Council,PCC,Children's and Education Services,Children Looked After,Children's Services and Education,Third Party Payments,Other establishments,12-Jul-22,6648697,305.76,SUPPLIER,FAIR WAYS COMMUNITY BENEFIT SOCEITY T/A FAIRWAYS CARE (UK) LTD,300000020459125
Portsmouth City Council,PCC,Children's and Education Services,Children Looked After,Children's Services and Education,Third Party Payments,Other establishments,12-Jul-22,6648697,"1,834.54",SUPPLIER,FAIR WAYS COMMUNITY BENEFIT SOCEITY T/A FAIRWAYS CARE (UK) LTD,300000020459125
Portsmouth City Council,PCC,Children's and Education Services,Children Looked After,Children's Services and Education,Third Party Payments,Other establishments,12-Jul-22,6648697,"2,140.30",SUPPLIER,FAIR WAYS COMMUNITY BENEFIT SOCEITY T/A FAIRWAYS CARE (UK) LTD,300000020459125
Portsmouth City Council,PCC,Children's and Education Services,Safeguarding Children and Young Peoples Services,Children's Services and Education,Third Party Payments,Other establishments,13-Jul-22,6649346,-430,SUPPLIER,PATHWAYS TO INDEPENDENCE HOUSING (UK) LIMITED,300000020480095
Portsmouth City Council,PCC,Children's and Education Services,Safeguarding Children and Young Peoples Services,Children's Services and Education,Third Party Payments,Other establishments,13-Jul-22,6649346,-10,SUPPLIER,PATHWAYS TO INDEPENDENCE HOUSING (UK) LIMITED,300000020480095
Portsmouth City Council,PCC,Children's and Education Services,Safeguarding Children and Young Peoples Services,Children's Services and Education,Third Party Payments,Other establishments,13-Jul-22,6649346,-10,SUPPLIER,PATHWAYS TO INDEPENDENCE HOUSING (UK) LIMITED,300000020480095
Portsmouth City Council,PCC,Children's and Education Services,Safeguarding Children and Young Peoples Services,Children's Services and Education,Third Party Payments,Other establishments,13-Jul-22,6649346,-10,SUPPLIER,PATHWAYS TO INDEPENDENCE HOUSING (UK) LIMITED,300000020480095
Portsmouth City Council,PCC,Children's and Education Services,Safeguarding Children and Young Peoples Services,Children's Services and Education,Third Party Payments,Other establishments,13-Jul-22,6649346,-10,SUPPLIER,PATHWAYS TO INDEPENDENCE HOUSING (UK) LIMITED,300000020480095
Portsmouth City Council,PCC,Children's and Education Services,Safeguarding Children and Young Peoples Services,Children's Services and Education,Third Party Payments,Other establishments,13-Jul-22,6649346,-4.29,SUPPLIER,PATHWAYS TO INDEPENDENCE HOUSING (UK) LIMITED,300000020480095
Portsmouth City Council,PCC,Children's and Education Services,Safeguarding Children and Young Peoples Services,Children's Services and Education,Third Party Payments,Other establishments,13-Jul-22,6649346,45,SUPPLIER,PATHWAYS TO INDEPENDENCE HOUSING (UK) LIMITED,300000020480095
Portsmouth City Council,PCC,Children's and Education Services,Safeguarding Children and Young Peoples Services,Children's Services and Education,Third Party Payments,Other establishments,13-Jul-22,6649346,105,SUPPLIER,PATHWAYS TO INDEPENDENCE HOUSING (UK) LIMITED,300000020480095
Portsmouth City Council,PCC,Children's and Education Services,Safeguarding Children and Young Peoples Services,Children's Services and Education,Third Party Payments,Other establishments,13-Jul-22,6649346,105,SUPPLIER,PATHWAYS TO INDEPENDENCE HOUSING (UK) LIMITED,300000020480095
Portsmouth City Council,PCC,Children's and Education Services,Safeguarding Children and Young Peoples Services,Children's Services and Education,Third Party Payments,Other establishments,13-Jul-22,6649346,105,SUPPLIER,PATHWAYS TO INDEPENDENCE HOUSING (UK) LIMITED,300000020480095
Portsmouth City Council,PCC,Children's and Education Services,Safeguarding Children and Young Peoples Services,Children's Services and Education,Third Party Payments,Other establishments,13-Jul-22,6649346,105,SUPPLIER,PATHWAYS TO INDEPENDENCE HOUSING (UK) LIMITED,300000020480095
Portsmouth City Council,PCC,Children's and Education Services,Safeguarding Children and Young Peoples Services,Children's Services and Education,Third Party Payments,Other establishments,13-Jul-22,6649346,178.29,SUPPLIER,PATHWAYS TO INDEPENDENCE HOUSING (UK) LIMITED,300000020480095
Portsmouth City Council,PCC,Children's and Education Services,Safeguarding Children and Young Peoples Services,Children's Services and Education,Third Party Payments,Other establishments,13-Jul-22,6649346,416,SUPPLIER,PATHWAYS TO INDEPENDENCE HOUSING (UK) LIMITED,300000020480095
Portsmouth City Council,PCC,Children's and Education Services,Safeguarding Children and Young Peoples Services,Children's Services and Education,Third Party Payments,Other establishments,13-Jul-22,6649346,416,SUPPLIER,PATHWAYS TO INDEPENDENCE HOUSING (UK) LIMITED,300000020480095
Portsmouth City Council,PCC,Children's and Education Services,Safeguarding Children and Young Peoples Services,Children's Services and Education,Third Party Payments,Other establishments,13-Jul-22,6649346,416,SUPPLIER,PATHWAYS TO INDEPENDENCE HOUSING (UK) LIMITED,300000020480095
Portsmouth City Council,PCC,Children's and Education Services,Safeguarding Children and Young Peoples Services,Children's Services and Education,Third Party Payments,Other establishments,13-Jul-22,6649346,416,SUPPLIER,PATHWAYS TO INDEPENDENCE HOUSING (UK) LIMITED,300000020480095
Portsmouth City Council,PCC,Children's and Education Services,Safeguarding Children and Young Peoples Services,Children's Services and Education,Third Party Payments,Other establishments,13-Jul-22,6649346,-10,SUPPLIER,PATHWAYS TO INDEPENDENCE HOUSING (UK) LIMITED,300000020480095
Portsmouth City Council,PCC,Children's and Education Services,Safeguarding Children and Young Peoples Services,Children's Services and Education,Third Party Payments,Other establishments,13-Jul-22,6649346,-10,SUPPLIER,PATHWAYS TO INDEPENDENCE HOUSING (UK) LIMITED,300000020480095
Portsmouth City Council,PCC,Children's and Education Services,Safeguarding Children and Young Peoples Services,Children's Services and Education,Third Party Payments,Other establishments,13-Jul-22,6649346,-10,SUPPLIER,PATHWAYS TO INDEPENDENCE HOUSING (UK) LIMITED,300000020480095
Portsmouth City Council,PCC,Children's and Education Services,Safeguarding Children and Young Peoples Services,Children's Services and Education,Third Party Payments,Other establishments,13-Jul-22,6649346,-10,SUPPLIER,PATHWAYS TO INDEPENDENCE HOUSING (UK) LIMITED,300000020480095
Portsmouth City Council,PCC,Children's and Education Services,Safeguarding Children and Young Peoples Services,Children's Services and Education,Third Party Payments,Other establishments,13-Jul-22,6649346,-4.29,SUPPLIER,PATHWAYS TO INDEPENDENCE HOUSING (UK) LIMITED,300000020480095
Portsmouth City Council,PCC,Children's and Education Services,Safeguarding Children and Young Peoples Services,Children's Services and Education,Third Party Payments,Other establishments,13-Jul-22,6649346,-0.17,SUPPLIER,PATHWAYS TO INDEPENDENCE HOUSING (UK) LIMITED,300000020480095
Portsmouth City Council,PCC,Children's and Education Services,Safeguarding Children and Young Peoples Services,Children's Services and Education,Third Party Payments,Other establishments,13-Jul-22,6649346,45,SUPPLIER,PATHWAYS TO INDEPENDENCE HOUSING (UK) LIMITED,300000020480095
Portsmouth City Council,PCC,Children's and Education Services,Safeguarding Children and Young Peoples Services,Children's Services and Education,Third Party Payments,Other establishments,13-Jul-22,6649346,105,SUPPLIER,PATHWAYS TO INDEPENDENCE HOUSING (UK) LIMITED,300000020480095
Portsmouth City Council,PCC,Children's and Education Services,Safeguarding Children and Young Peoples Services,Children's Services and Education,Third Party Payments,Other establishments,13-Jul-22,6649346,105,SUPPLIER,PATHWAYS TO INDEPENDENCE HOUSING (UK) LIMITED,300000020480095
Portsmouth City Council,PCC,Children's and Education Services,Safeguarding Children and Young Peoples Services,Children's Services and Education,Third Party Payments,Other establishments,13-Jul-22,6649346,105,SUPPLIER,PATHWAYS TO INDEPENDENCE HOUSING (UK) LIMITED,300000020480095
Portsmouth City Council,PCC,Children's and Education Services,Safeguarding Children and Young Peoples Services,Children's Services and Education,Third Party Payments,Other establishments,13-Jul-22,6649346,105,SUPPLIER,PATHWAYS TO INDEPENDENCE HOUSING (UK) LIMITED,300000020480095
Portsmouth City Council,PCC,Children's and Education Services,Safeguarding Children and Young Peoples Services,Children's Services and Education,Third Party Payments,Other establishments,13-Jul-22,6649346,179.14,SUPPLIER,PATHWAYS TO INDEPENDENCE HOUSING (UK) LIMITED,300000020480095
Portsmouth City Council,PCC,Children's and Education Services,Safeguarding Children and Young Peoples Services,Children's Services and Education,Third Party Payments,Other establishments,13-Jul-22,6649346,418,SUPPLIER,PATHWAYS TO INDEPENDENCE HOUSING (UK) LIMITED,300000020480095
Portsmouth City Council,PCC,Children's and Education Services,Safeguarding Children and Young Peoples Services,Children's Services and Education,Third Party Payments,Other establishments,13-Jul-22,6649346,418,SUPPLIER,PATHWAYS TO INDEPENDENCE HOUSING (UK) LIMITED,300000020480095
Portsmouth City Council,PCC,Children's and Education Services,Safeguarding Children and Young Peoples Services,Children's Services and Education,Third Party Payments,Other establishments,13-Jul-22,6649346,418,SUPPLIER,PATHWAYS TO INDEPENDENCE HOUSING (UK) LIMITED,300000020480095
Portsmouth City Council,PCC,Children's and Education Services,Safeguarding Children and Young Peoples Services,Children's Services and Education,Third Party Payments,Other establishments,13-Jul-22,6649346,418,SUPPLIER,PATHWAYS TO INDEPENDENCE HOUSING (UK) LIMITED,300000020480095
Portsmouth City Council,PCC,Children's and Education Services,Safeguarding Children and Young Peoples Services,Children's Services and Education,Third Party Payments,Other establishments,13-Jul-22,6649346,-875.6,SUPPLIER,PATHWAYS TO INDEPENDENCE HOUSING (UK) LIMITED,300000020480095
Portsmouth City Council,PCC,Children's and Education Services,Safeguarding Children and Young Peoples Services,Children's Services and Education,Third Party Payments,Other establishments,13-Jul-22,6649346,-10,SUPPLIER,PATHWAYS TO INDEPENDENCE HOUSING (UK) LIMITED,300000020480095
Portsmouth City Council,PCC,Children's and Education Services,Safeguarding Children and Young Peoples Services,Children's Services and Education,Third Party Payments,Other establishments,13-Jul-22,6649346,-10,SUPPLIER,PATHWAYS TO INDEPENDENCE HOUSING (UK) LIMITED,300000020480095
Portsmouth City Council,PCC,Children's and Education Services,Safeguarding Children and Young Peoples Services,Children's Services and Education,Third Party Payments,Other establishments,13-Jul-22,6649346,-10,SUPPLIER,PATHWAYS TO INDEPENDENCE HOUSING (UK) LIMITED,300000020480095
Portsmouth City Council,PCC,Children's and Education Services,Safeguarding Children and Young Peoples Services,Children's Services and Education,Third Party Payments,Other establishments,13-Jul-22,6649346,-10,SUPPLIER,PATHWAYS TO INDEPENDENCE HOUSING (UK) LIMITED,300000020480095
Portsmouth City Council,PCC,Children's and Education Services,Safeguarding Children and Young Peoples Services,Children's Services and Education,Third Party Payments,Other establishments,13-Jul-22,6649346,-8.85,SUPPLIER,PATHWAYS TO INDEPENDENCE HOUSING (UK) LIMITED,300000020480095
Portsmouth City Council,PCC,Children's and Education Services,Safeguarding Children and Young Peoples Services,Children's Services and Education,Third Party Payments,Other establishments,13-Jul-22,6649346,-4.29,SUPPLIER,PATHWAYS TO INDEPENDENCE HOUSING (UK) LIMITED,300000020480095
Portsmouth City Council,PCC,Children's and Education Services,Safeguarding Children and Young Peoples Services,Children's Services and Education,Third Party Payments,Other establishments,13-Jul-22,6649346,0.6,SUPPLIER,PATHWAYS TO INDEPENDENCE HOUSING (UK) LIMITED,300000020480095
Portsmouth City Council,PCC,Children's and Education Services,Safeguarding Children and Young Peoples Services,Children's Services and Education,Third Party Payments,Other establishments,13-Jul-22,6649346,45,SUPPLIER,PATHWAYS TO INDEPENDENCE HOUSING (UK) LIMITED,300000020480095
Portsmouth City Council,PCC,Children's and Education Services,Safeguarding Children and Young Peoples Services,Children's Services and Education,Third Party Payments,Other establishments,13-Jul-22,6649346,105,SUPPLIER,PATHWAYS TO INDEPENDENCE HOUSING (UK) LIMITED,300000020480095
Portsmouth City Council,PCC,Children's and Education Services,Safeguarding Children and Young Peoples Services,Children's Services and Education,Third Party Payments,Other establishments,13-Jul-22,6649346,105,SUPPLIER,PATHWAYS TO INDEPENDENCE HOUSING (UK) LIMITED,300000020480095
Portsmouth City Council,PCC,Children's and Education Services,Safeguarding Children and Young Peoples Services,Children's Services and Education,Third Party Payments,Other establishments,13-Jul-22,6649346,105,SUPPLIER,PATHWAYS TO INDEPENDENCE HOUSING (UK) LIMITED,300000020480095
Portsmouth City Council,PCC,Children's and Education Services,Safeguarding Children and Young Peoples Services,Children's Services and Education,Third Party Payments,Other establishments,13-Jul-22,6649346,105,SUPPLIER,PATHWAYS TO INDEPENDENCE HOUSING (UK) LIMITED,300000020480095
Portsmouth City Council,PCC,Children's and Education Services,Safeguarding Children and Young Peoples Services,Children's Services and Education,Third Party Payments,Other establishments,13-Jul-22,6649346,179.14,SUPPLIER,PATHWAYS TO INDEPENDENCE HOUSING (UK) LIMITED,300000020480095
Portsmouth City Council,PCC,Children's and Education Services,Safeguarding Children and Young Peoples Services,Children's Services and Education,Third Party Payments,Other establishments,13-Jul-22,6649346,418,SUPPLIER,PATHWAYS TO INDEPENDENCE HOUSING (UK) LIMITED,300000020480095
Portsmouth City Council,PCC,Children's and Education Services,Safeguarding Children and Young Peoples Services,Children's Services and Education,Third Party Payments,Other establishments,13-Jul-22,6649346,418,SUPPLIER,PATHWAYS TO INDEPENDENCE HOUSING (UK) LIMITED,300000020480095
Portsmouth City Council,PCC,Children's and Education Services,Safeguarding Children and Young Peoples Services,Children's Services and Education,Third Party Payments,Other establishments,13-Jul-22,6649346,418,SUPPLIER,PATHWAYS TO INDEPENDENCE HOUSING (UK) LIMITED,300000020480095
Portsmouth City Council,PCC,Children's and Education Services,Safeguarding Children and Young Peoples Services,Children's Services and Education,Third Party Payments,Other establishments,13-Jul-22,6649346,418,SUPPLIER,PATHWAYS TO INDEPENDENCE HOUSING (UK) LIMITED,300000020480095
Portsmouth City Council,PCC,Children's and Education Services,Safeguarding Children and Young Peoples Services,Children's Services and Education,Third Party Payments,Other establishments,13-Jul-22,6649346,-875,SUPPLIER,PATHWAYS TO INDEPENDENCE HOUSING (UK) LIMITED,300000020480095
Portsmouth City Council,PCC,Children's and Education Services,Safeguarding Children and Young Peoples Services,Children's Services and Education,Third Party Payments,Other establishments,13-Jul-22,6649346,-10,SUPPLIER,PATHWAYS TO INDEPENDENCE HOUSING (UK) LIMITED,300000020480095
Portsmouth City Council,PCC,Children's and Education Services,Safeguarding Children and Young Peoples Services,Children's Services and Education,Third Party Payments,Other establishments,13-Jul-22,6649346,-10,SUPPLIER,PATHWAYS TO INDEPENDENCE HOUSING (UK) LIMITED,300000020480095
Portsmouth City Council,PCC,Children's and Education Services,Safeguarding Children and Young Peoples Services,Children's Services and Education,Third Party Payments,Other establishments,13-Jul-22,6649346,-10,SUPPLIER,PATHWAYS TO INDEPENDENCE HOUSING (UK) LIMITED,300000020480095
Portsmouth City Council,PCC,Children's and Education Services,Safeguarding Children and Young Peoples Services,Children's Services and Education,Third Party Payments,Other establishments,13-Jul-22,6649346,-10,SUPPLIER,PATHWAYS TO INDEPENDENCE HOUSING (UK) LIMITED,300000020480095
Portsmouth City Council,PCC,Children's and Education Services,Safeguarding Children and Young Peoples Services,Children's Services and Education,Third Party Payments,Other establishments,13-Jul-22,6649346,-8.85,SUPPLIER,PATHWAYS TO INDEPENDENCE HOUSING (UK) LIMITED,300000020480095
Portsmouth City Council,PCC,Children's and Education Services,Safeguarding Children and Young Peoples Services,Children's Services and Education,Third Party Payments,Other establishments,13-Jul-22,6649346,-4.29,SUPPLIER,PATHWAYS TO INDEPENDENCE HOUSING (UK) LIMITED,300000020480095
Portsmouth City Council,PCC,Children's and Education Services,Safeguarding Children and Young Peoples Services,Children's Services and Education,Third Party Payments,Other establishments,13-Jul-22,6649346,45,SUPPLIER,PATHWAYS TO INDEPENDENCE HOUSING (UK) LIMITED,300000020480095
Portsmouth City Council,PCC,Children's and Education Services,Safeguarding Children and Young Peoples Services,Children's Services and Education,Third Party Payments,Other establishments,13-Jul-22,6649346,105,SUPPLIER,PATHWAYS TO INDEPENDENCE HOUSING (UK) LIMITED,300000020480095
Portsmouth City Council,PCC,Children's and Education Services,Safeguarding Children and Young Peoples Services,Children's Services and Education,Third Party Payments,Other establishments,13-Jul-22,6649346,105,SUPPLIER,PATHWAYS TO INDEPENDENCE HOUSING (UK) LIMITED,300000020480095
Portsmouth City Council,PCC,Children's and Education Services,Safeguarding Children and Young Peoples Services,Children's Services and Education,Third Party Payments,Other establishments,13-Jul-22,6649346,105,SUPPLIER,PATHWAYS TO INDEPENDENCE HOUSING (UK) LIMITED,300000020480095
Portsmouth City Council,PCC,Children's and Education Services,Safeguarding Children and Young Peoples Services,Children's Services and Education,Third Party Payments,Other establishments,13-Jul-22,6649346,105,SUPPLIER,PATHWAYS TO INDEPENDENCE HOUSING (UK) LIMITED,300000020480095
Portsmouth City Council,PCC,Children's and Education Services,Safeguarding Children and Young Peoples Services,Children's Services and Education,Third Party Payments,Other establishments,13-Jul-22,6649346,179.14,SUPPLIER,PATHWAYS TO INDEPENDENCE HOUSING (UK) LIMITED,300000020480095
Portsmouth City Council,PCC,Children's and Education Services,Safeguarding Children and Young Peoples Services,Children's Services and Education,Third Party Payments,Other establishments,13-Jul-22,6649346,418,SUPPLIER,PATHWAYS TO INDEPENDENCE HOUSING (UK) LIMITED,300000020480095
Portsmouth City Council,PCC,Children's and Education Services,Safeguarding Children and Young Peoples Services,Children's Services and Education,Third Party Payments,Other establishments,13-Jul-22,6649346,418,SUPPLIER,PATHWAYS TO INDEPENDENCE HOUSING (UK) LIMITED,300000020480095
Portsmouth City Council,PCC,Children's and Education Services,Safeguarding Children and Young Peoples Services,Children's Services and Education,Third Party Payments,Other establishments,13-Jul-22,6649346,418,SUPPLIER,PATHWAYS TO INDEPENDENCE HOUSING (UK) LIMITED,300000020480095
Portsmouth City Council,PCC,Children's and Education Services,Safeguarding Children and Young Peoples Services,Children's Services and Education,Third Party Payments,Other establishments,13-Jul-22,6649346,418,SUPPLIER,PATHWAYS TO INDEPENDENCE HOUSING (UK) LIMITED,300000020480095
Portsmouth City Council,PCC,Children's and Education Services,Asylum seekers,Children's Services and Education,Third Party Payments,Other establishments,14-Jul-22,6649817,-0.22,SUPPLIER,FAIR WAYS COMMUNITY BENEFIT SOCEITY T/A FAIRWAYS CARE (UK) LTD,300000020459125
Portsmouth City Council,PCC,Children's and Education Services,Asylum seekers,Children's Services and Education,Third Party Payments,Other establishments,14-Jul-22,6649817,523.87,SUPPLIER,FAIR WAYS COMMUNITY BENEFIT SOCEITY T/A FAIRWAYS CARE (UK) LTD,300000020459125
Portsmouth City Council,PCC,Children's and Education Services,Asylum seekers,Children's Services and Education,Third Party Payments,Other establishments,14-Jul-22,6649817,654.84,SUPPLIER,FAIR WAYS COMMUNITY BENEFIT SOCEITY T/A FAIRWAYS CARE (UK) LTD,300000020459125
Portsmouth City Council,PCC,Children's and Education Services,Asylum seekers,Children's Services and Education,Third Party Payments,Other establishments,14-Jul-22,6649817,916.77,SUPPLIER,FAIR WAYS COMMUNITY BENEFIT SOCEITY T/A FAIRWAYS CARE (UK) LTD,300000020459125
Portsmouth City Council,PCC,Children's and Education Services,Asylum seekers,Children's Services and Education,Third Party Payments,Other establishments,14-Jul-22,6649817,916.77,SUPPLIER,FAIR WAYS COMMUNITY BENEFIT SOCEITY T/A FAIRWAYS CARE (UK) LTD,300000020459125
Portsmouth City Council,PCC,Children's and Education Services,Asylum seekers,Children's Services and Education,Third Party Payments,Other establishments,14-Jul-22,6649817,916.77,SUPPLIER,FAIR WAYS COMMUNITY BENEFIT SOCEITY T/A FAIRWAYS CARE (UK) LTD,300000020459125
Portsmouth City Council,PCC,Children's and Education Services,Safeguarding Children and Young Peoples Services,Children's Services and Education,Third Party Payments,Other establishments,13-Jul-22,6649346,-875,SUPPLIER,PATHWAYS TO INDEPENDENCE HOUSING (UK) LIMITED,300000020480095
Portsmouth City Council,PCC,Children's and Education Services,Safeguarding Children and Young Peoples Services,Children's Services and Education,Third Party Payments,Other establishments,13-Jul-22,6649346,75,SUPPLIER,PATHWAYS TO INDEPENDENCE HOUSING (UK) LIMITED,300000020480095
Portsmouth City Council,PCC,Children's and Education Services,Safeguarding Children and Young Peoples Services,Children's Services and Education,Third Party Payments,Other establishments,13-Jul-22,6649346,75,SUPPLIER,PATHWAYS TO INDEPENDENCE HOUSING (UK) LIMITED,300000020480095
Portsmouth City Council,PCC,Children's and Education Services,Safeguarding Children and Young Peoples Services,Children's Services and Education,Third Party Payments,Other establishments,13-Jul-22,6649346,105,SUPPLIER,PATHWAYS TO INDEPENDENCE HOUSING (UK) LIMITED,300000020480095
Portsmouth City Council,PCC,Children's and Education Services,Safeguarding Children and Young Peoples Services,Children's Services and Education,Third Party Payments,Other establishments,13-Jul-22,6649346,105,SUPPLIER,PATHWAYS TO INDEPENDENCE HOUSING (UK) LIMITED,300000020480095
Portsmouth City Council,PCC,Children's and Education Services,Safeguarding Children and Young Peoples Services,Children's Services and Education,Third Party Payments,Other establishments,13-Jul-22,6649346,105,SUPPLIER,PATHWAYS TO INDEPENDENCE HOUSING (UK) LIMITED,300000020480095
Portsmouth City Council,PCC,Children's and Education Services,Safeguarding Children and Young Peoples Services,Children's Services and Education,Third Party Payments,Other establishments,13-Jul-22,6649346,290,SUPPLIER,PATHWAYS TO INDEPENDENCE HOUSING (UK) LIMITED,300000020480095
Portsmouth City Council,PCC,Children's and Education Services,Safeguarding Children and Young Peoples Services,Children's Services and Education,Third Party Payments,Other establishments,13-Jul-22,6649346,290,SUPPLIER,PATHWAYS TO INDEPENDENCE HOUSING (UK) LIMITED,300000020480095
Portsmouth City Council,PCC,Children's and Education Services,Safeguarding Children and Young Peoples Services,Children's Services and Education,Third Party Payments,Other establishments,13-Jul-22,6649346,406,SUPPLIER,PATHWAYS TO INDEPENDENCE HOUSING (UK) LIMITED,300000020480095
Portsmouth City Council,PCC,Children's and Education Services,Safeguarding Children and Young Peoples Services,Children's Services and Education,Third Party Payments,Other establishments,13-Jul-22,6649346,406,SUPPLIER,PATHWAYS TO INDEPENDENCE HOUSING (UK) LIMITED,300000020480095
Portsmouth City Council,PCC,Children's and Education Services,Safeguarding Children and Young Peoples Services,Children's Services and Education,Third Party Payments,Other establishments,13-Jul-22,6649346,406,SUPPLIER,PATHWAYS TO INDEPENDENCE HOUSING (UK) LIMITED,300000020480095
Portsmouth City Council,PCC,Children's and Education Services,Safeguarding Children and Young Peoples Services,Children's Services and Education,Third Party Payments,Other establishments,14-Jul-22,6649797,-875,SUPPLIER,PATHWAYS TO INDEPENDENCE HOUSING (UK) LIMITED,300000020480095
Portsmouth City Council,PCC,Children's and Education Services,Safeguarding Children and Young Peoples Services,Children's Services and Education,Third Party Payments,Other establishments,14-Jul-22,6649797,45,SUPPLIER,PATHWAYS TO INDEPENDENCE HOUSING (UK) LIMITED,300000020480095
Portsmouth City Council,PCC,Children's and Education Services,Safeguarding Children and Young Peoples Services,Children's Services and Education,Third Party Payments,Other establishments,14-Jul-22,6649797,105,SUPPLIER,PATHWAYS TO INDEPENDENCE HOUSING (UK) LIMITED,300000020480095
Portsmouth City Council,PCC,Children's and Education Services,Safeguarding Children and Young Peoples Services,Children's Services and Education,Third Party Payments,Other establishments,14-Jul-22,6649797,105,SUPPLIER,PATHWAYS TO INDEPENDENCE HOUSING (UK) LIMITED,300000020480095
Portsmouth City Council,PCC,Children's and Education Services,Safeguarding Children and Young Peoples Services,Children's Services and Education,Third Party Payments,Other establishments,14-Jul-22,6649797,105,SUPPLIER,PATHWAYS TO INDEPENDENCE HOUSING (UK) LIMITED,300000020480095
Portsmouth City Council,PCC,Children's and Education Services,Safeguarding Children and Young Peoples Services,Children's Services and Education,Third Party Payments,Other establishments,14-Jul-22,6649797,105,SUPPLIER,PATHWAYS TO INDEPENDENCE HOUSING (UK) LIMITED,300000020480095
Portsmouth City Council,PCC,Children's and Education Services,Safeguarding Children and Young Peoples Services,Children's Services and Education,Third Party Payments,Other establishments,14-Jul-22,6649797,174,SUPPLIER,PATHWAYS TO INDEPENDENCE HOUSING (UK) LIMITED,300000020480095
Portsmouth City Council,PCC,Children's and Education Services,Safeguarding Children and Young Peoples Services,Children's Services and Education,Third Party Payments,Other establishments,14-Jul-22,6649797,406,SUPPLIER,PATHWAYS TO INDEPENDENCE HOUSING (UK) LIMITED,300000020480095
Portsmouth City Council,PCC,Children's and Education Services,Safeguarding Children and Young Peoples Services,Children's Services and Education,Third Party Payments,Other establishments,14-Jul-22,6649797,406,SUPPLIER,PATHWAYS TO INDEPENDENCE HOUSING (UK) LIMITED,300000020480095
Portsmouth City Council,PCC,Children's and Education Services,Safeguarding Children and Young Peoples Services,Children's Services and Education,Third Party Payments,Other establishments,14-Jul-22,6649797,406,SUPPLIER,PATHWAYS TO INDEPENDENCE HOUSING (UK) LIMITED,300000020480095
Portsmouth City Council,PCC,Children's and Education Services,Safeguarding Children and Young Peoples Services,Children's Services and Education,Third Party Payments,Other establishments,14-Jul-22,6649797,406,SUPPLIER,PATHWAYS TO INDEPENDENCE HOUSING (UK) LIMITED,300000020480095
Portsmouth City Council,PCC,Children's and Education Services,Safeguarding Children and Young Peoples Services,Children's Services and Education,Third Party Payments,Other establishments,12-Jul-22,6648591,-10,SUPPLIER,LILIAN DAVIS GROUP LTD,300000020467263
Portsmouth City Council,PCC,Children's and Education Services,Safeguarding Children and Young Peoples Services,Children's Services and Education,Third Party Payments,Other establishments,12-Jul-22,6648591,-10,SUPPLIER,LILIAN DAVIS GROUP LTD,300000020467263
Portsmouth City Council,PCC,Children's and Education Services,Safeguarding Children and Young Peoples Services,Children's Services and Education,Third Party Payments,Other establishments,12-Jul-22,6648591,-10,SUPPLIER,LILIAN DAVIS GROUP LTD,300000020467263
Portsmouth City Council,PCC,Children's and Education Services,Safeguarding Children and Young Peoples Services,Children's Services and Education,Third Party Payments,Other establishments,12-Jul-22,6648591,-7.14,SUPPLIER,LILIAN DAVIS GROUP LTD,300000020467263
Portsmouth City Council,PCC,Children's and Education Services,Safeguarding Children and Young Peoples Services,Children's Services and Education,Third Party Payments,Other establishments,12-Jul-22,6648591,-5.71,SUPPLIER,LILIAN DAVIS GROUP LTD,300000020467263
Portsmouth City Council,PCC,Children's and Education Services,Safeguarding Children and Young Peoples Services,Children's Services and Education,Third Party Payments,Other establishments,12-Jul-22,6648591,-0.01,SUPPLIER,LILIAN DAVIS GROUP LTD,300000020467263
Portsmouth City Council,PCC,Children's and Education Services,Safeguarding Children and Young Peoples Services,Children's Services and Education,Third Party Payments,Other establishments,12-Jul-22,6648591,71.43,SUPPLIER,LILIAN DAVIS GROUP LTD,300000020467263
Portsmouth City Council,PCC,Children's and Education Services,Safeguarding Children and Young Peoples Services,Children's Services and Education,Third Party Payments,Other establishments,12-Jul-22,6648591,89.29,SUPPLIER,LILIAN DAVIS GROUP LTD,300000020467263
Portsmouth City Council,PCC,Children's and Education Services,Safeguarding Children and Young Peoples Services,Children's Services and Education,Third Party Payments,Other establishments,12-Jul-22,6648591,125,SUPPLIER,LILIAN DAVIS GROUP LTD,300000020467263
Portsmouth City Council,PCC,Children's and Education Services,Safeguarding Children and Young Peoples Services,Children's Services and Education,Third Party Payments,Other establishments,12-Jul-22,6648591,125,SUPPLIER,LILIAN DAVIS GROUP LTD,300000020467263
Portsmouth City Council,PCC,Children's and Education Services,Safeguarding Children and Young Peoples Services,Children's Services and Education,Third Party Payments,Other establishments,12-Jul-22,6648591,125,SUPPLIER,LILIAN DAVIS GROUP LTD,300000020467263
Portsmouth City Council,PCC,Children's and Education Services,Safeguarding Children and Young Peoples Services,Children's Services and Education,Third Party Payments,Other establishments,12-Jul-22,6648591,248.57,SUPPLIER,LILIAN DAVIS GROUP LTD,300000020467263
Portsmouth City Council,PCC,Children's and Education Services,Safeguarding Children and Young Peoples Services,Children's Services and Education,Third Party Payments,Other establishments,12-Jul-22,6648591,310.71,SUPPLIER,LILIAN DAVIS GROUP LTD,300000020467263
Portsmouth City Council,PCC,Children's and Education Services,Safeguarding Children and Young Peoples Services,Children's Services and Education,Third Party Payments,Other establishments,12-Jul-22,6648591,435,SUPPLIER,LILIAN DAVIS GROUP LTD,300000020467263
Portsmouth City Council,PCC,Children's and Education Services,Safeguarding Children and Young Peoples Services,Children's Services and Education,Third Party Payments,Other establishments,12-Jul-22,6648591,435,SUPPLIER,LILIAN DAVIS GROUP LTD,300000020467263
Portsmouth City Council,PCC,Children's and Education Services,Safeguarding Children and Young Peoples Services,Children's Services and Education,Third Party Payments,Other establishments,12-Jul-22,6648591,435,SUPPLIER,LILIAN DAVIS GROUP LTD,300000020467263
Portsmouth City Council,PCC,Adult Social Care,Learning Disability Support Adults (18 - 64),Adult Care,Third Party Payments,Other establishments,12-Jul-22,6648571,"12,996.75",SUPPLIER, ACHIEVE TOGETHER LIMITED,300000020469986
Portsmouth City Council,PCC,Adult Social Care,Learning Disability Support Adults (18 - 64),Adult Care,Third Party Payments,Other establishments,25-Jul-22,6652100,396.74,SUPPLIER, ACHIEVE TOGETHER LIMITED,300000020469986
Portsmouth City Council,PCC,Adult Social Care,Learning Disability Support Adults (18 - 64),Adult Care,Third Party Payments,Other establishments,25-Jul-22,6652100,661.23,SUPPLIER, ACHIEVE TOGETHER LIMITED,300000020469986
Portsmouth City Council,PCC,Adult Social Care,Learning Disability Support Adults (18 - 64),Adult Care,Third Party Payments,Other establishments,25-Jul-22,6652100,661.23,SUPPLIER, ACHIEVE TOGETHER LIMITED,300000020469986
Portsmouth City Council,PCC,Adult Social Care,Learning Disability Support Adults (18 - 64),Adult Care,Third Party Payments,Other establishments,25-Jul-22,6652100,661.23,SUPPLIER, ACHIEVE TOGETHER LIMITED,300000020469986
Portsmouth City Council,PCC,Adult Social Care,Learning Disability Support Adults (18 - 64),Adult Care,Third Party Payments,Other establishments,25-Jul-22,6652100,661.23,SUPPLIER, ACHIEVE TOGETHER LIMITED,300000020469986
Portsmouth City Council,PCC,Adult Social Care,Learning Disability Support Adults (18 - 64),Adult Care,Third Party Payments,Other establishments,25-Jul-22,6652100,661.23,SUPPLIER, ACHIEVE TOGETHER LIMITED,300000020469986
Portsmouth City Council,PCC,Housing Services,Private Sector Housing Renewal,"Housing, Neighbourhood and Building Services",Income,Other grants reimbursements and contributions,11-Jul-22,6648146,-350,LIMITED COMPANY,LIFTECH SYSTEMS (SE) LIMITED,300000020461913
Portsmouth City Council,PCC,Other,Suspense and Capital Schemes,Capital - Housing General Fund,Capital Charges,REFCUS,11-Jul-22,6648146,420,LIMITED COMPANY,LIFTECH SYSTEMS (SE) LIMITED,300000020461913
Portsmouth City Council,PCC,Other,Suspense and Capital Schemes,Capital - Housing General Fund,Capital Charges,REFCUS,11-Jul-22,6648146,"1,955.00",LIMITED COMPANY,LIFTECH SYSTEMS (SE) LIMITED,300000020461913
Portsmouth City Council,PCC,Adult Social Care,Learning Disability Support Adults (18 - 64),Adult Care,Third Party Payments,Other establishments,25-Jul-22,6652100,661.23,SUPPLIER, ACHIEVE TOGETHER LIMITED,300000020469986
Portsmouth City Council,PCC,Adult Social Care,Learning Disability Support Adults (18 - 64),Adult Care,Third Party Payments,Other establishments,25-Jul-22,6652100,661.23,SUPPLIER, ACHIEVE TOGETHER LIMITED,300000020469986
Portsmouth City Council,PCC,Adult Social Care,Learning Disability Support Adults (18 - 64),Adult Care,Third Party Payments,Other establishments,25-Jul-22,6652100,661.23,SUPPLIER, ACHIEVE TOGETHER LIMITED,300000020469986
Portsmouth City Council,PCC,Adult Social Care,Learning Disability Support Adults (18 - 64),Adult Care,Third Party Payments,Other establishments,25-Jul-22,6652100,661.23,SUPPLIER, ACHIEVE TOGETHER LIMITED,300000020469986
Portsmouth City Council,PCC,Adult Social Care,Learning Disability Support Adults (18 - 64),Adult Care,Third Party Payments,Other establishments,25-Jul-22,6652100,661.23,SUPPLIER, ACHIEVE TOGETHER LIMITED,300000020469986
Portsmouth City Council,PCC,Adult Social Care,Learning Disability Support Adults (18 - 64),Adult Care,Third Party Payments,Other establishments,25-Jul-22,6652100,661.23,SUPPLIER, ACHIEVE TOGETHER LIMITED,300000020469986
Portsmouth City Council,PCC,Adult Social Care,Learning Disability Support Adults (18 - 64),Adult Care,Third Party Payments,Other establishments,25-Jul-22,6652100,881.64,SUPPLIER, ACHIEVE TOGETHER LIMITED,300000020469986
Portsmouth City Council,PCC,Adult Social Care,Learning Disability Support Adults (18 - 64),Adult Care,Third Party Payments,Other establishments,25-Jul-22,6652100,"1,586.95",SUPPLIER, ACHIEVE TOGETHER LIMITED,300000020469986
Portsmouth City Council,PCC,Adult Social Care,Learning Disability Support Adults (18 - 64),Adult Care,Third Party Payments,Other establishments,25-Jul-22,6652100,"1,653.08",SUPPLIER, ACHIEVE TOGETHER LIMITED,300000020469986
Portsmouth City Council,PCC,Adult Social Care,Learning Disability Support Adults (18 - 64),Adult Care,Third Party Payments,Other establishments,25-Jul-22,6652100,"1,653.08",SUPPLIER, ACHIEVE TOGETHER LIMITED,300000020469986
Portsmouth City Council,PCC,Adult Social Care,Learning Disability Support Adults (18 - 64),Adult Care,Third Party Payments,Other establishments,25-Jul-22,6652100,"1,719.20",SUPPLIER, ACHIEVE TOGETHER LIMITED,300000020469986
Portsmouth City Council,PCC,Adult Social Care,Learning Disability Support Adults (18 - 64),Adult Care,Third Party Payments,Other establishments,25-Jul-22,6652100,"1,818.38",SUPPLIER, ACHIEVE TOGETHER LIMITED,300000020469986
Portsmouth City Council,PCC,Adult Social Care,Learning Disability Support Adults (18 - 64),Adult Care,Third Party Payments,Other establishments,25-Jul-22,6652100,"3,504.52",SUPPLIER, ACHIEVE TOGETHER LIMITED,300000020469986
Portsmouth City Council,PCC,Adult Social Care,Learning Disability Support Adults (18 - 64),Adult Care,Third Party Payments,Other establishments,25-Jul-22,6652100,"3,695.54",SUPPLIER, ACHIEVE TOGETHER LIMITED,300000020469986
Portsmouth City Council,PCC,Adult Social Care,Learning Disability Support Adults (18 - 64),Adult Care,Third Party Payments,Other establishments,25-Jul-22,6652100,"3,716.11",SUPPLIER, ACHIEVE TOGETHER LIMITED,300000020469986
Portsmouth City Council,PCC,Adult Social Care,Learning Disability Support Adults (18 - 64),Adult Care,Third Party Payments,Other establishments,25-Jul-22,6652100,"3,889.50",SUPPLIER, ACHIEVE TOGETHER LIMITED,300000020469986
Portsmouth City Council,PCC,Adult Social Care,Learning Disability Support Adults (18 - 64),Adult Care,Third Party Payments,Other establishments,25-Jul-22,6652100,"4,531.63",SUPPLIER, ACHIEVE TOGETHER LIMITED,300000020469986
Portsmouth City Council,PCC,Adult Social Care,Learning Disability Support Adults (18 - 64),Adult Care,Third Party Payments,Other establishments,25-Jul-22,6652100,"4,555.14",SUPPLIER, ACHIEVE TOGETHER LIMITED,300000020469986
Portsmouth City Council,PCC,Adult Social Care,Learning Disability Support Adults (18 - 64),Adult Care,Third Party Payments,Other establishments,25-Jul-22,6652100,"4,643.30",SUPPLIER, ACHIEVE TOGETHER LIMITED,300000020469986
Portsmouth City Council,PCC,Adult Social Care,Learning Disability Support Adults (18 - 64),Adult Care,Third Party Payments,Other establishments,25-Jul-22,6652100,"4,770.41",SUPPLIER, ACHIEVE TOGETHER LIMITED,300000020469986
Portsmouth City Council,PCC,Adult Social Care,Learning Disability Support Adults (18 - 64),Adult Care,Third Party Payments,Other establishments,25-Jul-22,6652100,"6,818.02",SUPPLIER, ACHIEVE TOGETHER LIMITED,300000020469986
Portsmouth City Council,PCC,Adult Social Care,Physical Support Adults (18 - 64),Adult Care,Third Party Payments,Other establishments,15-Jul-22,6649991,"1,393.44",PRIVATE PROVIDER,Classified as 'personal data' (under the Data Protection Act 2018),300000020462967
Portsmouth City Council,PCC,Adult Social Care,Social Support - Support for Carer,Adult Care,Third Party Payments,Other establishments,15-Jul-22,6649955,333.6,PRIVATE PROVIDER,Classified as 'personal data' (under the Data Protection Act 2018),300000020460102
Portsmouth City Council,PCC,Adult Social Care,Physical Support Adults (18 - 64),Adult Care,Third Party Payments,Other establishments,15-Jul-22,6649955,"1,593.92",PRIVATE PROVIDER,Classified as 'personal data' (under the Data Protection Act 2018),300000020460102
Portsmouth City Council,PCC,Adult Social Care,Social Care Activities,Adult Care,Third Party Payments,Other establishments,15-Jul-22,6649935,"5,004.96",PRIVATE PROVIDER,Classified as 'personal data' (under the Data Protection Act 2018),300000020477178
Portsmouth City Council,PCC,Adult Social Care,Social Care Activities,Adult Care,Third Party Payments,Other establishments,29-Jul-22,6654811,"-1,251.24",PRIVATE PROVIDER,Classified as 'personal data' (under the Data Protection Act 2018),300000020477178
Portsmouth City Council,PCC,Adult Social Care,Social Care Activities,Adult Care,Third Party Payments,Other establishments,29-Jul-22,6654811,"1,951.24",PRIVATE PROVIDER,Classified as 'personal data' (under the Data Protection Act 2018),300000020477178
Portsmouth City Council,PCC,Adult Social Care,Learning Disability Support Adults (18 - 64),Adult Care,Third Party Payments,Other establishments,15-Jul-22,6649933,"1,337.80",PRIVATE PROVIDER,Classified as 'personal data' (under the Data Protection Act 2018),300000020481843
Portsmouth City Council,PCC,Adult Social Care,Learning Disability Support Adults (18 - 64),Adult Care,Third Party Payments,Other establishments,29-Jul-22,6654810,"-2,259.70",PRIVATE PROVIDER,Classified as 'personal data' (under the Data Protection Act 2018),300000020481843
Portsmouth City Council,PCC,Adult Social Care,Learning Disability Support Adults (18 - 64),Adult Care,Third Party Payments,Other establishments,29-Jul-22,6654810,"-1,337.80",PRIVATE PROVIDER,Classified as 'personal data' (under the Data Protection Act 2018),300000020481843
Portsmouth City Council,PCC,Adult Social Care,Learning Disability Support Adults (18 - 64),Adult Care,Third Party Payments,Other establishments,29-Jul-22,6654810,"1,003.35",PRIVATE PROVIDER,Classified as 'personal data' (under the Data Protection Act 2018),300000020481843
Portsmouth City Council,PCC,Adult Social Care,Learning Disability Support Adults (18 - 64),Adult Care,Third Party Payments,Other establishments,29-Jul-22,6654810,"2,259.70",PRIVATE PROVIDER,Classified as 'personal data' (under the Data Protection Act 2018),300000020481843
Portsmouth City Council,PCC,Adult Social Care,Learning Disability Support Adults (18 - 64),Adult Care,Third Party Payments,Other establishments,29-Jul-22,6654810,"2,262.70",PRIVATE PROVIDER,Classified as 'personal data' (under the Data Protection Act 2018),300000020481843
Portsmouth City Council,PCC,Adult Social Care,Physical Support Adults (18 - 64),Adult Care,Third Party Payments,Other establishments,15-Jul-22,6649937,561.44,PRIVATE PROVIDER,Classified as 'personal data' (under the Data Protection Act 2018),300000020483065
Portsmouth City Council,PCC,Adult Social Care,Physical Support Adults (18 - 64),Adult Care,Third Party Payments,Other establishments,15-Jul-22,6649951,846.04,PRIVATE PROVIDER,Classified as 'personal data' (under the Data Protection Act 2018),300000020480632
Portsmouth City Council,PCC,Adult Social Care,Social Care Activities,Adult Care,Third Party Payments,Other establishments,15-Jul-22,6649932,"3,000.00",PRIVATE PROVIDER,Classified as 'personal data' (under the Data Protection Act 2018),300000020480170
Portsmouth City Council,PCC,Adult Social Care,Physical Support Older People (85+),Adult Care,Employees,Direct employee expenses,19-Jul-22,6650172,606.47,SUPPLIER,A24 GROUP LIMITED T/A AMBITION 24 HOURS,300000020481251
Portsmouth City Council,PCC,Adult Social Care,Physical Support Older People (85+),Adult Care,Third Party Payments,Other establishments,12-Jul-22,6648589,"1,132.60",SUPPLIER,ABICARE SERVICES LTD,300000020470310
Portsmouth City Council,PCC,Adult Social Care,Physical Support Older People (85+),Adult Care,Third Party Payments,Other establishments,15-Jul-22,6649989,"-2,002.56",SUPPLIER,ABICARE SERVICES LTD,300000020470310
Portsmouth City Council,PCC,Adult Social Care,Physical Support Older People (85+),Adult Care,Third Party Payments,Other establishments,15-Jul-22,6649989,"-2,002.56",SUPPLIER,ABICARE SERVICES LTD,300000020470310
Portsmouth City Council,PCC,Adult Social Care,Physical Support Older People (85+),Adult Care,Third Party Payments,Other establishments,15-Jul-22,6649989,-214.56,SUPPLIER,ABICARE SERVICES LTD,300000020470310
Portsmouth City Council,PCC,Adult Social Care,Physical Support Older People (85+),Adult Care,Third Party Payments,Other establishments,15-Jul-22,6649989,233.85,SUPPLIER,ABICARE SERVICES LTD,300000020470310
Portsmouth City Council,PCC,Adult Social Care,Physical Support Older People (85+),Adult Care,Third Party Payments,Other establishments,15-Jul-22,6649989,857.45,SUPPLIER,ABICARE SERVICES LTD,300000020470310
Portsmouth City Council,PCC,Adult Social Care,Physical Support Older People (85+),Adult Care,Third Party Payments,Other establishments,15-Jul-22,6649989,"2,182.60",SUPPLIER,ABICARE SERVICES LTD,300000020470310
Portsmouth City Council,PCC,Adult Social Care,Physical Support Older People (85+),Adult Care,Third Party Payments,Other establishments,15-Jul-22,6649989,"2,182.60",SUPPLIER,ABICARE SERVICES LTD,300000020470310
Portsmouth City Council,PCC,Adult Social Care,Learning Disability Support Adults (18 - 64),Adult Care,Third Party Payments,Other establishments,15-Jul-22,6649936,578.88,PRIVATE PROVIDER,Classified as 'personal data' (under the Data Protection Act 2018),300000020478185
Portsmouth City Council,PCC,Adult Social Care,Social Care Activities,Adult Care,Third Party Payments,Other establishments,20-Jul-22,6650766,"-5,757.69",SUPPLIER,ADMIRAL CARE LTD,300000020477405
Portsmouth City Council,PCC,Adult Social Care,Social Care Activities,Adult Care,Third Party Payments,Other establishments,20-Jul-22,6650766,"-3,838.46",SUPPLIER,ADMIRAL CARE LTD,300000020477405
Portsmouth City Council,PCC,Adult Social Care,Social Care Activities,Adult Care,Third Party Payments,Other establishments,20-Jul-22,6650766,"-1,214.72",SUPPLIER,ADMIRAL CARE LTD,300000020477405
Portsmouth City Council,PCC,Adult Social Care,Social Care Activities,Adult Care,Third Party Payments,Other establishments,20-Jul-22,6650766,-809.81,SUPPLIER,ADMIRAL CARE LTD,300000020477405
Portsmouth City Council,PCC,Adult Social Care,Physical Support Older People (85+),Adult Care,Third Party Payments,Other establishments,20-Jul-22,6650766,-96.8,SUPPLIER,ADMIRAL CARE LTD,300000020477405
Portsmouth City Council,PCC,Adult Social Care,Physical Support Older People (85+),Adult Care,Third Party Payments,Other establishments,20-Jul-22,6650766,-96.8,SUPPLIER,ADMIRAL CARE LTD,300000020477405
Portsmouth City Council,PCC,Adult Social Care,Physical Support Older People (85+),Adult Care,Third Party Payments,Other establishments,20-Jul-22,6650766,-46.1,SUPPLIER,ADMIRAL CARE LTD,300000020477405
Portsmouth City Council,PCC,Adult Social Care,Mental Health Support Older People (65 - 74),Adult Care,Third Party Payments,Other establishments,20-Jul-22,6650766,-33.88,SUPPLIER,ADMIRAL CARE LTD,300000020477405
Portsmouth City Council,PCC,Adult Social Care,Physical Support Older People (85+),Adult Care,Third Party Payments,Other establishments,20-Jul-22,6650766,78.56,SUPPLIER,ADMIRAL CARE LTD,300000020477405
Portsmouth City Council,PCC,Adult Social Care,Physical Support Older People (85+),Adult Care,Third Party Payments,Other establishments,20-Jul-22,6650766,78.56,SUPPLIER,ADMIRAL CARE LTD,300000020477405
Portsmouth City Council,PCC,Adult Social Care,Physical Support Older People (85+),Adult Care,Third Party Payments,Other establishments,20-Jul-22,6650766,85.07,SUPPLIER,ADMIRAL CARE LTD,300000020477405
Portsmouth City Council,PCC,Adult Social Care,Social Support - Support for Carer,Adult Care,Third Party Payments,Other establishments,20-Jul-22,6650766,133.44,SUPPLIER,ADMIRAL CARE LTD,300000020477405
Portsmouth City Council,PCC,Adult Social Care,Information and Early Intervention,Adult Care,Third Party Payments,Other establishments,20-Jul-22,6650766,135.52,SUPPLIER,ADMIRAL CARE LTD,300000020477405
Portsmouth City Council,PCC,Adult Social Care,Mental Health Support Older People (65 - 74),Adult Care,Third Party Payments,Other establishments,20-Jul-22,6650766,154.88,SUPPLIER,ADMIRAL CARE LTD,300000020477405
Portsmouth City Council,PCC,Adult Social Care,Mental Health Support Older People (65 - 74),Adult Care,Third Party Payments,Other establishments,20-Jul-22,6650766,154.88,SUPPLIER,ADMIRAL CARE LTD,300000020477405
Portsmouth City Council,PCC,Adult Social Care,Mental Health Support Older People (65 - 74),Adult Care,Third Party Payments,Other establishments,20-Jul-22,6650766,154.88,SUPPLIER,ADMIRAL CARE LTD,300000020477405
Portsmouth City Council,PCC,Adult Social Care,Physical Support Older People (85+),Adult Care,Third Party Payments,Other establishments,20-Jul-22,6650766,154.88,SUPPLIER,ADMIRAL CARE LTD,300000020477405
Portsmouth City Council,PCC,Adult Social Care,Physical Support Older People (85+),Adult Care,Third Party Payments,Other establishments,20-Jul-22,6650766,170.14,SUPPLIER,ADMIRAL CARE LTD,300000020477405
Portsmouth City Council,PCC,Adult Social Care,Mental Health Support Older People (65 - 74),Adult Care,Third Party Payments,Other establishments,20-Jul-22,6650766,174.24,SUPPLIER,ADMIRAL CARE LTD,300000020477405
Portsmouth City Council,PCC,Adult Social Care,Physical Support Older People (85+),Adult Care,Third Party Payments,Other establishments,20-Jul-22,6650766,184.4,SUPPLIER,ADMIRAL CARE LTD,300000020477405
Portsmouth City Council,PCC,Adult Social Care,Mental Health Support Older People (65 - 74),Adult Care,Third Party Payments,Other establishments,20-Jul-22,6650766,184.4,SUPPLIER,ADMIRAL CARE LTD,300000020477405
Portsmouth City Council,PCC,Adult Social Care,Physical Support Older People (85+),Adult Care,Third Party Payments,Other establishments,20-Jul-22,6650766,271.04,SUPPLIER,ADMIRAL CARE LTD,300000020477405
Portsmouth City Council,PCC,Adult Social Care,Physical Support Older People (85+),Adult Care,Third Party Payments,Other establishments,20-Jul-22,6650766,271.04,SUPPLIER,ADMIRAL CARE LTD,300000020477405
Portsmouth City Council,PCC,Adult Social Care,Physical Support Older People (85+),Adult Care,Third Party Payments,Other establishments,20-Jul-22,6650766,300.08,SUPPLIER,ADMIRAL CARE LTD,300000020477405
Portsmouth City Council,PCC,Adult Social Care,Physical Support Older People (85+),Adult Care,Third Party Payments,Other establishments,20-Jul-22,6650766,300.08,SUPPLIER,ADMIRAL CARE LTD,300000020477405
Portsmouth City Council,PCC,Adult Social Care,Social Support - Support for Carer,Adult Care,Third Party Payments,Other establishments,20-Jul-22,6650766,316.92,SUPPLIER,ADMIRAL CARE LTD,300000020477405
Portsmouth City Council,PCC,Adult Social Care,Social Support - Support for Carer,Adult Care,Third Party Payments,Other establishments,20-Jul-22,6650766,400.32,SUPPLIER,ADMIRAL CARE LTD,300000020477405
Portsmouth City Council,PCC,Adult Social Care,Social Support - Support for Carer,Adult Care,Third Party Payments,Other establishments,20-Jul-22,6650766,400.32,SUPPLIER,ADMIRAL CARE LTD,300000020477405
Portsmouth City Council,PCC,Adult Social Care,Social Support - Support for Carer,Adult Care,Third Party Payments,Other establishments,20-Jul-22,6650766,400.32,SUPPLIER,ADMIRAL CARE LTD,300000020477405
Portsmouth City Council,PCC,Adult Social Care,Mental Health Support Older People (65 - 74),Adult Care,Third Party Payments,Other establishments,20-Jul-22,6650766,406.56,SUPPLIER,ADMIRAL CARE LTD,300000020477405
Portsmouth City Council,PCC,Adult Social Care,Physical Support Older People (85+),Adult Care,Third Party Payments,Other establishments,20-Jul-22,6650766,464.64,SUPPLIER,ADMIRAL CARE LTD,300000020477405
Portsmouth City Council,PCC,Adult Social Care,Physical Support Older People (85+),Adult Care,Third Party Payments,Other establishments,20-Jul-22,6650766,493.68,SUPPLIER,ADMIRAL CARE LTD,300000020477405
Portsmouth City Council,PCC,Adult Social Care,Physical Support Older People (85+),Adult Care,Third Party Payments,Other establishments,20-Jul-22,6650766,493.68,SUPPLIER,ADMIRAL CARE LTD,300000020477405
Portsmouth City Council,PCC,Adult Social Care,Physical Support Older People (85+),Adult Care,Third Party Payments,Other establishments,20-Jul-22,6650766,553.2,SUPPLIER,ADMIRAL CARE LTD,300000020477405
Portsmouth City Council,PCC,Adult Social Care,Mental Health Support Older People (65 - 74),Adult Care,Third Party Payments,Other establishments,20-Jul-22,6650766,619.52,SUPPLIER,ADMIRAL CARE LTD,300000020477405
Portsmouth City Council,PCC,Adult Social Care,Physical Support Older People (85+),Adult Care,Third Party Payments,Other establishments,20-Jul-22,6650766,677.6,SUPPLIER,ADMIRAL CARE LTD,300000020477405
Portsmouth City Council,PCC,Adult Social Care,Physical Support Older People (85+),Adult Care,Third Party Payments,Other establishments,20-Jul-22,6650766,803.44,SUPPLIER,ADMIRAL CARE LTD,300000020477405
Portsmouth City Council,PCC,Adult Social Care,Physical Support Older People (85+),Adult Care,Third Party Payments,Other establishments,20-Jul-22,6650766,813.12,SUPPLIER,ADMIRAL CARE LTD,300000020477405
Portsmouth City Council,PCC,Adult Social Care,Physical Support Older People (85+),Adult Care,Third Party Payments,Other establishments,20-Jul-22,6650766,813.12,SUPPLIER,ADMIRAL CARE LTD,300000020477405
Portsmouth City Council,PCC,Adult Social Care,Physical Support Older People (85+),Adult Care,Third Party Payments,Other establishments,20-Jul-22,6650766,813.12,SUPPLIER,ADMIRAL CARE LTD,300000020477405
Portsmouth City Council,PCC,Adult Social Care,Physical Support Older People (85+),Adult Care,Third Party Payments,Other establishments,20-Jul-22,6650766,813.12,SUPPLIER,ADMIRAL CARE LTD,300000020477405
Portsmouth City Council,PCC,Adult Social Care,Physical Support Older People (85+),Adult Care,Third Party Payments,Other establishments,20-Jul-22,6650766,948.64,SUPPLIER,ADMIRAL CARE LTD,300000020477405
Portsmouth City Council,PCC,Adult Social Care,Physical Support Older People (85+),Adult Care,Third Party Payments,Other establishments,20-Jul-22,6650766,948.64,SUPPLIER,ADMIRAL CARE LTD,300000020477405
Portsmouth City Council,PCC,Adult Social Care,Physical Support Adults (18 - 64),Adult Care,Third Party Payments,Other establishments,20-Jul-22,6650766,"1,198.60",SUPPLIER,ADMIRAL CARE LTD,300000020477405
Portsmouth City Council,PCC,Adult Social Care,Social Care Activities,Adult Care,Third Party Payments,Other establishments,20-Jul-22,6650766,"1,219.68",SUPPLIER,ADMIRAL CARE LTD,300000020477405
Portsmouth City Council,PCC,Adult Social Care,Social Care Activities,Adult Care,Third Party Payments,Other establishments,20-Jul-22,6650766,"1,219.68",SUPPLIER,ADMIRAL CARE LTD,300000020477405
Portsmouth City Council,PCC,Adult Social Care,Social Care Activities,Adult Care,Third Party Payments,Other establishments,20-Jul-22,6650766,"1,481.04",SUPPLIER,ADMIRAL CARE LTD,300000020477405
Portsmouth City Council,PCC,Adult Social Care,Social Care Activities,Adult Care,Third Party Payments,Other establishments,20-Jul-22,6650766,"1,481.04",SUPPLIER,ADMIRAL CARE LTD,300000020477405
Portsmouth City Council,PCC,Adult Social Care,Physical Support Older People (85+),Adult Care,Third Party Payments,Other establishments,20-Jul-22,6650766,"1,955.36",SUPPLIER,ADMIRAL CARE LTD,300000020477405
Portsmouth City Council,PCC,Adult Social Care,Physical Support Older People (85+),Adult Care,Third Party Payments,Other establishments,20-Jul-22,6650766,"3,291.20",SUPPLIER,ADMIRAL CARE LTD,300000020477405
Portsmouth City Council,PCC,Adult Social Care,Learning Disability Support Adults (18 - 64),Adult Care,Third Party Payments,Other establishments,12-Jul-22,6648769,"7,453.02",SUPPLIER,AFFINITY TRUST LTD,300000020477195
Portsmouth City Council,PCC,Adult Social Care,Learning Disability Support Adults (18 - 64),Adult Care,Third Party Payments,Other establishments,12-Jul-22,6648769,"7,795.57",SUPPLIER,AFFINITY TRUST LTD,300000020477195
Portsmouth City Council,PCC,Adult Social Care,Learning Disability Support Adults (18 - 64),Adult Care,Third Party Payments,Other establishments,12-Jul-22,6648769,"7,979.09",SUPPLIER,AFFINITY TRUST LTD,300000020477195
Portsmouth City Council,PCC,Adult Social Care,Learning Disability Support Adults (18 - 64),Adult Care,Third Party Payments,Other establishments,12-Jul-22,6648769,"8,066.82",SUPPLIER,AFFINITY TRUST LTD,300000020477195
Portsmouth City Council,PCC,Adult Social Care,Learning Disability Support Adults (18 - 64),Adult Care,Third Party Payments,Other establishments,12-Jul-22,6648769,"9,559.78",SUPPLIER,AFFINITY TRUST LTD,300000020477195
Portsmouth City Council,PCC,Adult Social Care,Learning Disability Support Adults (18 - 64),Adult Care,Third Party Payments,Other establishments,12-Jul-22,6648769,"10,166.14",SUPPLIER,AFFINITY TRUST LTD,300000020477195
Portsmouth City Council,PCC,Adult Social Care,Learning Disability Support Adults (18 - 64),Adult Care,Third Party Payments,Other establishments,12-Jul-22,6648769,"10,166.14",SUPPLIER,AFFINITY TRUST LTD,300000020477195
Portsmouth City Council,PCC,Adult Social Care,Physical Support Adults (18 - 64),Adult Care,Third Party Payments,Other establishments,08-Jul-22,6647979,474.32,SUPPLIER,AGINCARE UK,300000020481869
Portsmouth City Council,PCC,Adult Social Care,Social Support - Support for Carer,Adult Care,Third Party Payments,Other establishments,08-Jul-22,6647979,241.86,SUPPLIER,AGINCARE UK,300000020481869
Portsmouth City Council,PCC,Adult Social Care,Physical Support Older People (85+),Adult Care,Third Party Payments,Other establishments,08-Jul-22,6647979,595.32,SUPPLIER,AGINCARE UK,300000020481869
Portsmouth City Council,PCC,Adult Social Care,Social Support - Support for Carer,Adult Care,Third Party Payments,Other establishments,08-Jul-22,6647979,266.88,SUPPLIER,AGINCARE UK,300000020481869
Portsmouth City Council,PCC,Adult Social Care,Social Support - Support for Carer,Adult Care,Third Party Payments,Other establishments,08-Jul-22,6647979,83.4,SUPPLIER,AGINCARE UK,300000020481869
Portsmouth City Council,PCC,Adult Social Care,Social Support - Support for Carer,Adult Care,Third Party Payments,Other establishments,08-Jul-22,6647979,50.04,SUPPLIER,AGINCARE UK,300000020481869
Portsmouth City Council,PCC,Adult Social Care,Physical Support Adults (18 - 64),Adult Care,Third Party Payments,Other establishments,08-Jul-22,6647979,212.96,SUPPLIER,AGINCARE UK,300000020481869
Portsmouth City Council,PCC,Adult Social Care,Social Support - Support for Carer,Adult Care,Third Party Payments,Other establishments,08-Jul-22,6647979,100.08,SUPPLIER,AGINCARE UK,300000020481869
Portsmouth City Council,PCC,Adult Social Care,Social Support - Support for Carer,Adult Care,Third Party Payments,Other establishments,08-Jul-22,6647979,91.74,SUPPLIER,AGINCARE UK,300000020481869
Portsmouth City Council,PCC,Adult Social Care,Physical Support Older People (85+),Adult Care,Third Party Payments,Other establishments,08-Jul-22,6647979,396.88,SUPPLIER,AGINCARE UK,300000020481869
Portsmouth City Council,PCC,Adult Social Care,Physical Support Older People (85+),Adult Care,Third Party Payments,Other establishments,08-Jul-22,6647979,590.48,SUPPLIER,AGINCARE UK,300000020481869
Portsmouth City Council,PCC,Adult Social Care,Physical Support Older People (85+),Adult Care,Third Party Payments,Other establishments,08-Jul-22,6647979,135.52,SUPPLIER,AGINCARE UK,300000020481869
Portsmouth City Council,PCC,Adult Social Care,Physical Support Older People (85+),Adult Care,Third Party Payments,Other establishments,08-Jul-22,6647979,106.48,SUPPLIER,AGINCARE UK,300000020481869
Portsmouth City Council,PCC,Adult Social Care,Social Care Activities,Adult Care,Third Party Payments,Other establishments,12-Jul-22,6648572,"2,057.13",SUPPLIER,AGINCARE UK,300000020481869
Portsmouth City Council,PCC,Adult Social Care,Social Care Activities,Adult Care,Third Party Payments,Other establishments,12-Jul-22,6648572,"7,085.67",SUPPLIER,AGINCARE UK,300000020481869
Portsmouth City Council,PCC,Adult Social Care,Social Care Activities,Adult Care,Third Party Payments,Other establishments,12-Jul-22,6648772,"15,884.40",SUPPLIER,ALBANY CARE (PORTCHESTER) LIMITED,300000020467728
Portsmouth City Council,PCC,Adult Social Care,Mental Health Support Adults (18 - 64),Adult Care,Third Party Payments,Other establishments,12-Jul-22,6648689,"2,969.80",SUPPLIER,ALBANY FARM CARE (HAMPSHIRE) LTD,300000020477794
Portsmouth City Council,PCC,Adult Social Care,Learning Disability Support Adults (18 - 64),Adult Care,Third Party Payments,Other establishments,12-Jul-22,6648689,"7,542.30",SUPPLIER,ALBANY FARM CARE (HAMPSHIRE) LTD,300000020477794
Portsmouth City Council,PCC,Adult Social Care,Learning Disability Support Adults (18 - 64),Adult Care,Third Party Payments,Other establishments,12-Jul-22,6648674,"4,877.54",SUPPLIER,ALLIED CARE ASHSTEAD HOUSE,300000020473831
Portsmouth City Council,PCC,Adult Social Care,Learning Disability Support Adults (18 - 64),Adult Care,Third Party Payments,Other establishments,25-Jul-22,6652220,"1,430.12",SUPPLIER,ALLIED CARE LTD,300000020478714
Portsmouth City Council,PCC,Adult Social Care,Learning Disability Support Adults (18 - 64),Adult Care,Transport-Related Expenditure,Direct transport costs,28-Jul-22,6654657,660.13,SUPPLIER,ALLSTAR BUSINESS SOLUTIONS LTD,300000020477226
Portsmouth City Council,PCC,Other,Suspense and Capital Schemes,Capital - Housing General Fund,Capital Charges,REFCUS,11-Jul-22,6648146,"3,825.00",LIMITED COMPANY,LIFTECH SYSTEMS (SE) LIMITED,300000020461913
Portsmouth City Council,PCC,Children's and Education Services,Family Support Services,Children's Services and Education,Third Party Payments,Other establishments,12-Jul-22,6648634,"2,966.69",SUPPLIER,SRH MANAGEMENT LIMITED,300000252166548
Portsmouth City Council,PCC,Children's and Education Services,Family Support Services,Children's Services and Education,Third Party Payments,Other establishments,12-Jul-22,6648634,"2,322.51",SUPPLIER,SRH MANAGEMENT LIMITED,300000252166548
Portsmouth City Council,PCC,Children's and Education Services,Family Support Services,Children's Services and Education,Third Party Payments,Other establishments,12-Jul-22,6648634,"2,065.01",SUPPLIER,SRH MANAGEMENT LIMITED,300000252166548
Portsmouth City Council,PCC,Housing Revenue Account,"Rents, Rates, Taxes and Other Charges","Housing, Neighbourhood and Building Services",Premises-Related Expenditure,Rates,25-Jul-22,6652225,149,OTHER LOCAL AUTHORITY,HAVANT BOROUGH COUNCIL,300000020457057
Portsmouth City Council,PCC,Adult Social Care,Social Care Activities,Adult Care,Third Party Payments,Other establishments,05-Jul-22,6646064,-30.04,SUPPLIER,ALTOGETHER CARE LLP,300000120931464
Portsmouth City Council,PCC,Adult Social Care,Physical Support Older People (85+),Adult Care,Third Party Payments,Other establishments,05-Jul-22,6646064,11.64,SUPPLIER,ALTOGETHER CARE LLP,300000120931464
Portsmouth City Council,PCC,Adult Social Care,Social Care Activities,Adult Care,Third Party Payments,Other establishments,05-Jul-22,6646064,15.02,SUPPLIER,ALTOGETHER CARE LLP,300000120931464
Portsmouth City Council,PCC,Adult Social Care,Physical Support Older People (85+),Adult Care,Third Party Payments,Other establishments,05-Jul-22,6646064,15.02,SUPPLIER,ALTOGETHER CARE LLP,300000120931464
Portsmouth City Council,PCC,Adult Social Care,Social Care Activities,Adult Care,Third Party Payments,Other establishments,05-Jul-22,6646064,30.04,SUPPLIER,ALTOGETHER CARE LLP,300000120931464
Portsmouth City Council,PCC,Adult Social Care,Physical Support Older People (85+),Adult Care,Third Party Payments,Other establishments,05-Jul-22,6646064,30.04,SUPPLIER,ALTOGETHER CARE LLP,300000120931464
Portsmouth City Council,PCC,Adult Social Care,Physical Support Adults (18 - 64),Adult Care,Third Party Payments,Other establishments,05-Jul-22,6646064,60.08,SUPPLIER,ALTOGETHER CARE LLP,300000120931464
Portsmouth City Council,PCC,Adult Social Care,Physical Support Older People (85+),Adult Care,Third Party Payments,Other establishments,05-Jul-22,6646064,209.52,SUPPLIER,ALTOGETHER CARE LLP,300000120931464
Portsmouth City Council,PCC,Adult Social Care,Physical Support Older People (85+),Adult Care,Third Party Payments,Other establishments,05-Jul-22,6646064,209.52,SUPPLIER,ALTOGETHER CARE LLP,300000120931464
Portsmouth City Council,PCC,Adult Social Care,Social Care Activities,Adult Care,Third Party Payments,Other establishments,05-Jul-22,6646064,210.28,SUPPLIER,ALTOGETHER CARE LLP,300000120931464
